{"text_format":"1","workbook":"xlsx","n_sheets":6,"sheets":["Notice","1. Présentation","2. Données de caractérisation","3. Auto-positionnement","4. Données","Nomenclature"],"not_rendered":{"charts":0,"images":1,"macros":1,"external_links":0,"defined_names":24,"comments":0,"pivot_tables":0},"unopened":[],"bounds":{"document_bytes":16777216,"sheet_cells":100000,"rows_first":2000,"rows_last":500,"rows_between":2000,"halvings":0,"cell_chars":16384,"cell_head_chars":4096},"cells_cut":0,"cells_raw":0,"read":"whole","date_system":"1900"}

{"sheet":"Notice","index":0,"n_rows":41,"n_cols":3,"rows_kept":41,"cut":false,"hidden":false,"merged":[[0,2,3,12]]}
[null,null,"DÉPARTEMENT D’ÉVALUATION DES FORMATIONS"]
["DEF 2e cycle","V2.09"]
[]
[]
[]
[null,"Note d'utilisation"]
[]
[null,"Pourquoi ces tableaux ?"]
[null,"Ces tableaux ont pour finalité la collecte de données en vue de l'évaluation des formations de la vague C."]
[null,"Ces données seront utilisées par les comités d'experts dans le processus d'évaluation. "]
[null,"Ces données peuvent être de nature quantitative ou qualitative, à renseigner alors sous forme de texte court (environ 500 caractères par donnée)."]
[]
[null,"Comment le remplir ?"]
[null,"Le mode d'emploi est le suivant."]
[]
[null,"1. Activer le contenu à l'ouverture du fichier"]
[null,null,"À l'ouverture du fichier, il est indispensable d'accepter l'activation des macros (ou des contenus) lorsque le tableur vous y invite, sans quoi le fichier ne pourra pas fonctionner correctement."]
[]
[null,"2. Renseigner d'abord les informations de l'onglet Présentation"]
[null,null,"En premier lieu, choisissez votre établissement et la formation concernée."]
[null,null,"Indiquez ensuite le nombre de parcours de votre formation. Ceci génèrera les zones de saisie adaptées aux données déclinées pour chaque parcours dans l'ensemble des onglets repérées par un astérisque."]
[null,null,"Attention, une fois le nombre de parcours saisi, vous ne pourrez plus le modifier. En cas de doute, choisissez un nombre supérieur, nous acceptons les lignes vides lors du dépôt du fichier."]
[null,null,"Il ne faut pas intervenir sur le fichier pendant le processus de génération de lignes. Ce processus peut prendre quelques instants."]
[null,null,"Renseigner alors l'intitulé de chaque parcours en face des cellules \"Intitulé des parcours\"."]
[]
[null,"3. Renseigner ensuite les autres onglets."]
[null,null,"Vous pouvez les saisir dans l'ordre de votre choix."]
[null,null,"Aucune saisie n'est attendue dans les cellules grisées, toute donnée saisie est ignorée."]
[]
[null,"Une vidéo vous montrant comment remplir ce fichier est disponible sur la chaîne Youtube du Hcéres (https://www.youtube.com/channel/UCeVUbvBdAa33ibJmHGwVNTw)"]
[]
[null,"Comment assurons-nous le traitement de ces données ?"]
[null,"Lors du dépôt du fichier sur la plateforme PEliCan, ce fichier sera traité automatiquement pour produire les indicateurs et les tableaux d'analyse qui seront soumis aux comités d'experts."]
[null,"La qualité des données est assurée en deux temps. "]
[null,"Lors de la saisie, des contrôles sur les données entrées permettent de vérifier le format attendu."]
[null,"Vous constaterez également que le fichier a été verrouillé pour assurer la cohérence de sa structure, ce qui est nécessaire à son traitement automatisé."]
[null,"Lors de la soumission du fichier sur PEliCan, un contrôle sera également effectué. Les éventuelles erreurs résiduelles seront indiquées. Vous devrez les corriger pour que le fichier soit accepté."]
[null,"Vous disposerez d'une plateforme pour tester la validité de votre fichier en amont de son dépôt final."]
[]
[null,"Que faire en cas de difficulté ?"]
[null,"Pour toute difficulté, contacter le Hcéres pour obtenir du support."]

{"sheet":"1. Présentation","index":1,"n_rows":905,"n_cols":6,"rows_kept":905,"cut":false,"hidden":false,"merged":[[17,5,17,11],[10,5,10,11],[8,5,8,11],[15,5,15,11],[5,1,5,2],[1,6,6,11],[0,1,3,4]]}
[null,"DÉPARTEMENT D’ÉVALUATION DES FORMATIONS"]
[]
[]
[]
[]
[null,"1. Présentation de la formation"]
[]
["Code Hcéres"]
["P1","CI1","Établissement",null,null,"Sélectionner un établissement dans la liste déroulante"]
["P2","CI2","Code UAI",{"$f":"IF(ISERROR(VLOOKUP($D$9,Nomenclature!$A$2:$B$22,2,FALSE)),\"\",VLOOKUP($D$9,Nomenclature!$A$2:$B$22,2,FALSE))","v":""}]
["P3","CI4","Intitulé de la formation",null,null,"Sélectionner un intitulé de formation dans la liste déroulante. \nCet intitulé correspond à la liste envoyée par l'établissement au Hcéres le 01/10/2021."]
["P4",null,"Type de cursus",{"$f":"IF(ISERROR(INDEX(Nomenclature!$AC$2:$AC$645,MATCH(1,(Nomenclature!$Z$2:$Z$645=$D$9)*(Nomenclature!$AA$2:$AA$645=$D$11),0))),\"\",(INDEX(Nomenclature!$AC$2:$AC$645,MATCH(1,(Nomenclature!$Z$2:$Z$645=$D$9)*(Nomenclature!$AA$2:$AA$645=$D$11),0))))","v":""}]
["P5","s","Lieu(x) de formation (y compris parcours délocalisés)"]
["P6","CI5","Numéro d'accréditation",{"$f":"IF(ISERROR(INDEX(Nomenclature!$AB$2:$AB$645,MATCH(1,(Nomenclature!$Z$2:$Z$645=$D$9)*(Nomenclature!$AA$2:$AA$645=$D$11),0))),\"\",(INDEX(Nomenclature!$AB$2:$AB$645,MATCH(1,(Nomenclature!$Z$2:$Z$645=$D$9)*(Nomenclature!$AA$2:$AA$645=$D$11),0))))","v":""}]
["P7","CI6","Responsable(s) de la formation"]
["P8","CI8","Nombre de parcours de la formation",null,null,"Indiquer le nombre de parcours. Celui-ci doit correspondre aux lignes qui seront ajoutées automatiquement dans les données déclinées par parcours. \nAttention : il ne sera pas possible d'ajouter ou de supprimer d'autres parcours par la suite, sans refaire la saisie."]
["P9",null,"Intitulé des parcours"]
["P10","CI9","Éléments différenciants de la formation",null,null,"Préciser les particularités de la formation ou d’un parcours de la mention devant être pris en considération pour la compréhension des données (ex: parcours exclusivement réservé aux étudiants internationaux)."]
[]
[]
[]
[null,null,"étab","formation_nom"]
[null,null,"La_Rochelle_U","Droit"]
[null,null,"La_Rochelle_U","Génie civil"]
[null,null,"La_Rochelle_U","Géographie et aménagement"]
[null,null,"La_Rochelle_U","Gestion"]
[null,null,"La_Rochelle_U","Histoire"]
[null,null,"La_Rochelle_U","Informatique"]
[null,null,"La_Rochelle_U","Langues étrangères appliquées"]
[null,null,"La_Rochelle_U","Lettres"]
[null,null,"La_Rochelle_U","Mathématiques"]
[null,null,"La_Rochelle_U","Physique, chimie"]
[null,null,"La_Rochelle_U","Sciences de la Terre"]
[null,null,"La_Rochelle_U","Sciences de la vie"]
[null,null,"La_Rochelle_U","Sciences pour la santé"]
[null,null,"La_Rochelle_U","Activités juridiques : assistant juridique"]
[null,null,"La_Rochelle_U","Analyse, qualité et contrôle des matériaux produits"]
[null,null,"La_Rochelle_U","Cartographie, topographie et systèmes d'information géographique"]
[null,null,"La_Rochelle_U","E-commerce et marketing numérique"]
[null,null,"La_Rochelle_U","Industries agroalimentaires : gestion, production et valorisation"]
[null,null,"La_Rochelle_U","Métiers de l’informatique : conception, développement et test de logiciels"]
[null,null,"La_Rochelle_U","Métiers de la protection et de la gestion de l'environnement"]
[null,null,"La_Rochelle_U","Métiers de l'immobilier : gestion et administration de biens"]
[null,null,"La_Rochelle_U","Métiers de l'informatique : applications web"]
[null,null,"La_Rochelle_U","Métiers des réseaux informatiques et télécommunications"]
[null,null,"La_Rochelle_U","Métiers du BTP : bâtiment et construction"]
[null,null,"La_Rochelle_U","Métiers du BTP : génie civil et construction"]
[null,null,"La_Rochelle_U","Métiers du BTP : performance énergétique et environnementale des bâtiments "]
[null,null,"La_Rochelle_U","Métiers du BTP : travaux publics"]
[null,null,"La_Rochelle_U","Métiers du tourisme : commercialisation des produits touristiques"]
[null,null,"La_Rochelle_U","Métiers du tourisme et des loisirs"]
[null,null,"La_Rochelle_U","Optique professionnelle"]
[null,null,"La_Rochelle_U","Qualité, hygiène, sécurité, santé, environnement"]
[null,null,"U_Angers","Formation générale - Sc. maïeutiques"]
[null,null,"U_Angers","Formation générale - Sc. médicales"]
[null,null,"U_Angers","Formation générale - Sc. pharmaceutiques"]
[null,null,"U_Angers","Droit"]
[null,null,"U_Angers","Économie et gestion"]
[null,null,"U_Angers","Géographie et aménagement"]
[null,null,"U_Angers","Histoire"]
[null,null,"U_Angers","Informatique"]
[null,null,"U_Angers","Langues étrangères appliquées"]
[null,null,"U_Angers","Langues, littératures et civilisations étrangères et régionales"]
[null,null,"U_Angers","Lettres"]
[null,null,"U_Angers","Mathématiques"]
[null,null,"U_Angers","Physique, Chimie"]
[null,null,"U_Angers","Psychologie"]
[null,null,"U_Angers","Sciences de la vie et de la Terre"]
[null,null,"U_Angers","Sciences sociales"]
[null,null,"U_Angers","Agriculture biologique : production, conseil, certification et commercialisation"]
[null,null,"U_Angers","Agronomie"]
[null,null,"U_Angers","Aménagement paysager : conception, gestion, entretien"]
[null,null,"U_Angers","Assurance, banque, finance : supports opérationnels"]
[null,null,"U_Angers","Assurance, banque, finance : chargé de clientèle"]
[null,null,"U_Angers","Biologie Analytique et Expérimentale"]
[null,null,"U_Angers","Commerce et distribution"]
[null,null,"U_Angers","Commercialisation de produits et services"]
[null,null,"U_Angers","Commercialisation des produits alimentaires"]
[null,null,"U_Angers","Développement de Projets de Territoires"]
[null,null,"U_Angers","Gestion de projets et structures artistiques et culturels"]
[null,null,"U_Angers","Gestion des achats et des approvisionnements"]
[null,null,"U_Angers","Gestion des organisations agricoles et agroalimentaires"]
[null,null,"U_Angers","Guide-Conférencier"]
[null,null,"U_Angers","Intervention sociale : accompagnement de publics spécifiques"]
[null,null,"U_Angers","Intervention sociale : insertion et réinsertion sociale et professionnelle"]
[null,null,"U_Angers","Logistique et transports internationaux"]
[null,null,"U_Angers","Maintenance des systèmes industriels, de production et d'énergie"]
[null,null,"U_Angers","Maîtrise de l’énergie, électricité, développement durable"]
[null,null,"U_Angers","Management des activités commerciales"]
[null,null,"U_Angers","Management et gestion des organisations"]
[null,null,"U_Angers","Métiers de l’industrie : conception de produits industriels"]
[null,null,"U_Angers","Métiers de l’industrie : gestion de la production industrielle"]
[null,null,"U_Angers","Métiers de l’information : archives, médiation et patrimoine"]
[null,null,"U_Angers","Métiers de la gestion et de la comptabilité : Fiscalité"]
[null,null,"U_Angers","Métiers de la mode"]
[null,null,"U_Angers","Métiers de l'animation sociale, socio-éducative et socioculturelle"]
[null,null,"U_Angers","Métiers de l'électricité et de l’énergie"]
[null,null,"U_Angers","Métiers de l'immobilier : gestion et administration de biens"]
[null,null,"U_Angers","Métiers de l'informatique : systèmes d'information et gestion de données"]
[null,null,"U_Angers","Métiers des administrations et collectivités territoriales"]
[null,null,"U_Angers","Métiers des arts culinaires et des arts de la table"]
[null,null,"U_Angers","Métiers des réseaux informatiques et télécommunications"]
[null,null,"U_Angers","Métiers du BTP : Bâtiment et construction"]
[null,null,"U_Angers","Métiers du commerce international"]
[null,null,"U_Angers","Métiers du notariat"]
[null,null,"U_Angers","Métiers du tourisme : communication et valorisation des territoires "]
[null,null,"U_Angers","Productions animales"]
[null,null,"U_Angers","Productions végétales"]
[null,null,"U_Angers","Qualité, hygiène, sécurité, santé, environnement"]
[null,null,"U_Angers","Technico-commercial"]
[null,null,"U_Angers","Tourisme et loisirs sportifs"]
[null,null,"U_Antilles","Diplôme de formation générale en sciences maïeutiques (DFGSMa)"]
[null,null,"U_Antilles","Diplôme de fomation générale en sciences médicales"]
[null,null,"U_Antilles","Arts "]
[null,null,"U_Antilles","Arts du spectacle"]
[null,null,"U_Antilles","Droit"]
[null,null,"U_Antilles","Économie et gestion"]
[null,null,"U_Antilles","Géographie et aménagement"]
[null,null,"U_Antilles","Histoire"]
[null,null,"U_Antilles","Humanités"]
[null,null,"U_Antilles","Information-communication"]
[null,null,"U_Antilles","Informatique"]
[null,null,"U_Antilles","Langues étrangères appliquées"]
[null,null,"U_Antilles","Langues, littératures et civilisations étrangères et régionales"]
[null,null,"U_Antilles","Lettres"]
[null,null,"U_Antilles","Mathématiques"]
[null,null,"U_Antilles","Physique, chimie"]
[null,null,"U_Antilles","Science politique"]
[null,null,"U_Antilles","Sciences de la vie "]
[null,null,"U_Antilles","Sciences de la vie de la Terre"]
[null,null,"U_Antilles","Sciences de l'éducation"]
[null,null,"U_Antilles","Sciences et techniques des activités physiques et sportives - STAPS"]
[null,null,"U_Antilles","Sciences pour la santé"]
[null,null,"U_Antilles","Assurance, banque, finance : chargé de clientèle"]
[null,null,"U_Antilles","Bio-industries et biotechnologies"]
[null,null,"U_Antilles","Chimie analytique, contrôle, qualité, environnement"]
[null,null,"U_Antilles","Guide conférencier"]
[null,null,"U_Antilles","Management et gestion des organisations"]
[null,null,"U_Antilles","Métiers de la gestion et de la comptabilité : comptabilité et paie"]
[null,null,"U_Antilles","Métiers de la médiation par des approches artistiques et culturelles"]
[null,null,"U_Antilles","Métiers de la qualité"]
[null,null,"U_Antilles","Métiers de l'énergétique, de l'environnement et du génie climatique"]
[null,null,"U_Antilles","Métiers de l'informatique : applications web"]
[null,null,"U_Antilles","Organisation et gestion des établissements hôteliers et de restauration"]
[null,null,"U_Antilles","Spécialités plurivalentes de l'agronomie et de l'agriculture"]
[null,null,"U_Bordeaux","Administration économique et sociale"]
[null,null,"U_Bordeaux","Chimie"]
[null,null,"U_Bordeaux","Droit"]
[null,null,"U_Bordeaux","Économie et gestion"]
[null,null,"U_Bordeaux","Gestion"]
[null,null,"U_Bordeaux","Humanités"]
[null,null,"U_Bordeaux","Informatique"]
[null,null,"U_Bordeaux","Mathématiques"]
[null,null,"U_Bordeaux","Mathématiques et informatique appliquées aux sciences humaines et sociales"]
[null,null,"U_Bordeaux","Physique"]
[null,null,"U_Bordeaux","Physique, Chimie"]
[null,null,"U_Bordeaux","Psychologie"]
[null,null,"U_Bordeaux","Sciences de la terre"]
[null,null,"U_Bordeaux","Sciences de la vie"]
[null,null,"U_Bordeaux","Sciences de l'éducation"]
[null,null,"U_Bordeaux","Sciences de l'homme, anthropologie, ethnologie"]
[null,null,"U_Bordeaux","Sciences et techniques des activités physiques et sportives - STAPS"]
[null,null,"U_Bordeaux","Sciences pour l'ingénieur"]
[null,null,"U_Bordeaux","Sociologie"]
[null,null,"U_Bordeaux","Certificat de capacité d’orthoptiste"]
[null,null,"U_Bordeaux","Diplôme d’Etat d’audioprothésiste"]
[null,null,"U_Bordeaux","Diplôme de formation générale en sciences maïeutiques (DFGSMa)"]
[null,null,"U_Bordeaux","Diplôme de formation générale en sciences médicales (DFGSM)"]
[null,null,"U_Bordeaux","Diplôme de formation générale en sciences odontologiques (DFGSO)"]
[null,null,"U_Bordeaux","Diplôme de formation générale en sciences pharmaceutiques (DFGSP)"]
[null,null,"U_Bordeaux"," Métiers du notariat"]
[null,null,"U_Bordeaux","Activités juridiques : assistant juridique"]
[null,null,"U_Bordeaux","Activités juridiques : métiers du droit privé"]
[null,null,"U_Bordeaux","Agronomie"]
[null,null,"U_Bordeaux","Assurance, banque, finance : chargé de clientèle"]
[null,null,"U_Bordeaux","Chimie : formulation"]
[null,null,"U_Bordeaux","Chimie analytique, contrôle, qualité, environnement"]
[null,null,"U_Bordeaux","Chimie et physique des matériaux"]
[null,null,"U_Bordeaux","Commerce et distribution"]
[null,null,"U_Bordeaux","Commercialisation de produits et services"]
[null,null,"U_Bordeaux","Commercialisation des produits alimentaires"]
[null,null,"U_Bordeaux","Conception et contrôle des procédés"]
[null,null,"U_Bordeaux","E-commerce et marketing numérique"]
[null,null,"U_Bordeaux","Gestion des achats et des approvisionnements"]
[null,null,"U_Bordeaux","Gestion des structures sanitaires et sociales"]
[null,null,"U_Bordeaux","Gestion et développement des organisations, des services sportifs et de loisirs"]
[null,null,"U_Bordeaux","Gestion et maintenance des installations énergétiques"]
[null,null,"U_Bordeaux","Industries agroalimentaires : gestion, production et valorisation"]
[null,null,"U_Bordeaux","Industries pharmaceutiques, cosmétologiques et de santé : gestion, production et valorisation"]
[null,null,"U_Bordeaux","Intervention sociale : accompagnement de publics spécifiques"]
[null,null,"U_Bordeaux","Intervention sociale : accompagnement social"]
[null,null,"U_Bordeaux","Maintenance et technologie : systèmes pluritechniques"]
[null,null,"U_Bordeaux","Maîtrise de l’énergie, électricité, développement durable"]
[null,null,"U_Bordeaux","Management des activités commerciales"]
[null,null,"U_Bordeaux","Management des processus logistiques"]
[null,null,"U_Bordeaux","Management des transports et de la distribution"]
[null,null,"U_Bordeaux","Management et gestion des organisations"]
[null,null,"U_Bordeaux","Métier du tourisme, communication, et valorisation des territoires"]
[null,null,"U_Bordeaux","Métiers de la forme"]
[null,null,"U_Bordeaux","Métiers de la gestion et de la comptabilité : comptabilité et paie"]
[null,null,"U_Bordeaux","Métiers de la gestion et de la comptabilité : révision comptable"]
[null,null,"U_Bordeaux","Métiers de la GRH : formation, compétences et emploi"]
[null,null,"U_Bordeaux","Métiers de la mode"]
[null,null,"U_Bordeaux","Métiers de la qualité"]
[null,null,"U_Bordeaux","Métiers de la santé : nutrition, alimentation"]
[null,null,"U_Bordeaux","Métiers de la santé : technologies"]
[null,null,"U_Bordeaux","Métiers de l'électronique : fabrication de cartes et sous-ensembles électroniques"]
[null,null,"U_Bordeaux","Métiers de l'énergétique, de l'environnement et du génie climatique"]
[null,null,"U_Bordeaux","Métiers de l'entrepreneuriat"]
[null,null,"U_Bordeaux","Métiers de l'immobilier : gestion et développement de patrimoine immobilier"]
[null,null,"U_Bordeaux","Métiers de l'immobilier : transaction et commercialisation de biens immobiliers"]
[null,null,"U_Bordeaux","Métiers de l'industrie : conception de produits industriels"]
[null,null,"U_Bordeaux","Métiers de l'industrie : conception et amélioration de processus et procédés industriels"]
[null,null,"U_Bordeaux","Métiers de l'industrie : conception et processus de mise en forme des matériaux"]
[null,null,"U_Bordeaux","Métiers de l'industrie : gestion de la production industrielle"]
[null,null,"U_Bordeaux","Métiers de l'industrie : industrie aéronautique"]
[null,null,"U_Bordeaux","Métiers de l'informatique : administration et sécurité des systèmes et des réseaux"]
[null,null,"U_Bordeaux","Métiers de l'informatique : applications web"]
[null,null,"U_Bordeaux","Métiers de l'informatique : conception, développement et test de logiciels"]
[null,null,"U_Bordeaux","Métiers de l'instrumentation, de la mesure et du contrôle qualité"]
[null,null,"U_Bordeaux","Métiers des administrations et collectivités territoriales"]
[null,null,"U_Bordeaux","Métiers du BTP : génie civil et construction"]
[null,null,"U_Bordeaux","Métiers du BTP : performance énergétique et environnementale des bâtiments "]
[null,null,"U_Bordeaux","Métiers du commerce international"]
[null,null,"U_Bordeaux","Métiers du tourisme : commercialisation des produits touristiques"]
[null,null,"U_Bordeaux","Organisation, management des services de l'automobile"]
[null,null,"U_Bordeaux","Qualité, hygiène, sécurité, santé, environnement"]
[null,null,"U_Bordeaux","Systèmes automatisés, réseaux et informatique industrielle"]
[null,null,"U_Bordeaux","Technico-commercial"]
[null,null,"U_Bretagne_Occ_UBO","DFG sciences maïeutiques"]
[null,null,"U_Bretagne_Occ_UBO","DFG sciences médicales"]
[null,null,"U_Bretagne_Occ_UBO","DFG sciences odontologiques"]
[null,null,"U_Bretagne_Occ_UBO","Administration économique et sociale"]
[null,null,"U_Bretagne_Occ_UBO","Administration publique"]
[null,null,"U_Bretagne_Occ_UBO","Arts"]
[null,null,"U_Bretagne_Occ_UBO","Droit"]
[null,null,"U_Bretagne_Occ_UBO","Économie, gestion"]
[null,null,"U_Bretagne_Occ_UBO","Géographie et aménagement"]
[null,null,"U_Bretagne_Occ_UBO","Gestion"]
[null,null,"U_Bretagne_Occ_UBO","Histoire"]
[null,null,"U_Bretagne_Occ_UBO","Histoire de l'art et archéologie"]
[null,null,"U_Bretagne_Occ_UBO","Humanités"]
[null,null,"U_Bretagne_Occ_UBO","Informatique"]
[null,null,"U_Bretagne_Occ_UBO","Langues étrangères appliquées"]
[null,null,"U_Bretagne_Occ_UBO","Langues, littératures et civilisations étrangères et régionales"]
[null,null,"U_Bretagne_Occ_UBO","Lettres"]
[null,null,"U_Bretagne_Occ_UBO","Mathématiques"]
[null,null,"U_Bretagne_Occ_UBO","Mathématiques et informatique appliquées aux sciences humaines et sociales"]
[null,null,"U_Bretagne_Occ_UBO","Philosophie"]
[null,null,"U_Bretagne_Occ_UBO","Physique, chimie"]
[null,null,"U_Bretagne_Occ_UBO","Psychologie"]
[null,null,"U_Bretagne_Occ_UBO","Sciences de la terre"]
[null,null,"U_Bretagne_Occ_UBO","Sciences de la vie"]
[null,null,"U_Bretagne_Occ_UBO","Sciences de l'éducation"]
[null,null,"U_Bretagne_Occ_UBO","Sciences de l'homme, anthropologie, ethnologie"]
[null,null,"U_Bretagne_Occ_UBO","Sciences et techniques des activités physiques et sportives - STAPS"]
[null,null,"U_Bretagne_Occ_UBO","Sciences pour l'ingénieur"]
[null,null,"U_Bretagne_Occ_UBO","Sciences sanitaires et sociales"]
[null,null,"U_Bretagne_Occ_UBO","Sociologie"]
[null,null,"U_Bretagne_Occ_UBO","Agronomie"]
[null,null,"U_Bretagne_Occ_UBO","Aménagement paysager : conception, gestion, entretien"]
[null,null,"U_Bretagne_Occ_UBO","Assurance, banque, finance : chargé de clientèle"]
[null,null,"U_Bretagne_Occ_UBO","Bio-industries et biotechnologies"]
[null,null,"U_Bretagne_Occ_UBO","Commerce et distribution"]
[null,null,"U_Bretagne_Occ_UBO","Gestion et développement des organisations, des services sportifs et de loisirs"]
[null,null,"U_Bretagne_Occ_UBO","Industries agro-alimentaires : gestion, production et valorisation"]
[null,null,"U_Bretagne_Occ_UBO","Intervention sociale : accompagnement de publics spécifiques"]
[null,null,"U_Bretagne_Occ_UBO","Logistique et pilotage des flux"]
[null,null,"U_Bretagne_Occ_UBO","Management des activités commerciales"]
[null,null,"U_Bretagne_Occ_UBO","Métiers de la gestion et de la comptabilité : responsable de portefeuille clients en cabinet d'expertise"]
[null,null,"U_Bretagne_Occ_UBO","Métiers de la GRH : assistant"]
[null,null,"U_Bretagne_Occ_UBO","Métiers de la santé : technologies"]
[null,null,"U_Bretagne_Occ_UBO","Métiers de l'électricité et de l’énergie"]
[null,null,"U_Bretagne_Occ_UBO","Métiers de l'électronique : communication, systèmes embarqués"]
[null,null,"U_Bretagne_Occ_UBO","Métiers de l'entrepreneuriat"]
[null,null,"U_Bretagne_Occ_UBO","Métiers de l'immobilier : gestion et administration de biens"]
[null,null,"U_Bretagne_Occ_UBO","Métiers de l'industrie : conception de produits Industriels"]
[null,null,"U_Bretagne_Occ_UBO","Métiers de l'industrie : conception et amélioration de processus et procédés industriels"]
[null,null,"U_Bretagne_Occ_UBO","Métiers de l'industrie : conception et processus de mise en forme des matériaux"]
[null,null,"U_Bretagne_Occ_UBO","Métiers de l'industrie : Industrie navale et maritime"]
[null,null,"U_Bretagne_Occ_UBO","Métiers de l'industrie : métallurgie, mise en forme des matériaux et soudage"]
[null,null,"U_Bretagne_Occ_UBO","Métiers du BTP : bâtiment et construction"]
[null,null,"U_Bretagne_Occ_UBO","Métiers du BTP : performance énergétique et environnementale des bâtiments "]
[null,null,"U_Bretagne_Occ_UBO","Métiers du commerce international"]
[null,null,"U_Bretagne_Occ_UBO","Métiers du notariat"]
[null,null,"U_Bretagne_Occ_UBO","Métiers du tourisme et des loisirs"]
[null,null,"U_Bretagne_Occ_UBO","Productions végétales"]
[null,null,"U_Bretagne_Occ_UBO","Qualité, hygiène, sécurité, santé, environnement"]
[null,null,"U_Bretagne_Occ_UBO","Systèmes automatisés, réseaux et informatique industrielle"]
[null,null,"U_Bretagne_Sud_UBS","Droit"]
[null,null,"U_Bretagne_Sud_UBS","Économie et gestion"]
[null,null,"U_Bretagne_Sud_UBS","Histoire"]
[null,null,"U_Bretagne_Sud_UBS","Informatique"]
[null,null,"U_Bretagne_Sud_UBS","Langues étrangères appliquées"]
[null,null,"U_Bretagne_Sud_UBS","Langues, littératures et civilisations étrangères et régionales"]
[null,null,"U_Bretagne_Sud_UBS","Lettres"]
[null,null,"U_Bretagne_Sud_UBS","Mathématiques"]
[null,null,"U_Bretagne_Sud_UBS","Sciences de la vie et de la Terre"]
[null,null,"U_Bretagne_Sud_UBS","Sciences pour l'ingénieur"]
[null,null,"U_Bretagne_Sud_UBS","Sciences sanitaires et sociales"]
[null,null,"U_Bretagne_Sud_UBS","Assurance, banque, finance : chargé de clientèle"]
[null,null,"U_Bretagne_Sud_UBS","Bio-industries et biotechnologies"]
[null,null,"U_Bretagne_Sud_UBS","E-commerce et marketing numérique"]
[null,null,"U_Bretagne_Sud_UBS","Génie des procédés pour l'environnement"]
[null,null,"U_Bretagne_Sud_UBS","Gestion des organisations agricoles et agroalimentaires"]
[null,null,"U_Bretagne_Sud_UBS","Maintenance et technologie : systèmes pluritechniques"]
[null,null,"U_Bretagne_Sud_UBS","Maintenance et technologie : technologie médicale et biomédicale"]
[null,null,"U_Bretagne_Sud_UBS","Maîtrise de l’énergie, électricité, développement durable"]
[null,null,"U_Bretagne_Sud_UBS","Management des activités commerciales"]
[null,null,"U_Bretagne_Sud_UBS","Métiers de la gestion et de la comptabilité : contrôle de gestion"]
[null,null,"U_Bretagne_Sud_UBS","Métiers de la GRH : assistant"]
[null,null,"U_Bretagne_Sud_UBS","Métiers de la mer"]
[null,null,"U_Bretagne_Sud_UBS","Métiers de la qualité"]
[null,null,"U_Bretagne_Sud_UBS","Métiers de l'immobilier : gestion et administration de biens"]
[null,null,"U_Bretagne_Sud_UBS","Métiers de l'industrie : gestion de la production industrielle"]
[null,null,"U_Bretagne_Sud_UBS","Métiers de l'industrie : industrie navale et maritime"]
[null,null,"U_Bretagne_Sud_UBS","Métiers de l'informatique : conception, développement et test de logiciels"]
[null,null,"U_Bretagne_Sud_UBS","Métiers de l'informatique : systèmes d'information et gestion de données"]
[null,null,"U_Bretagne_Sud_UBS","Métiers du BTP : performance énergétique et environnementale des bâtiments "]
[null,null,"U_Bretagne_Sud_UBS","Métiers du commerce international"]
[null,null,"U_Bretagne_Sud_UBS","Métiers du décisionnel et de la statistique"]
[null,null,"U_Bretagne_Sud_UBS","Qualité, hygiène, sécurité, santé, environnement"]
[null,null,"U_Bx_Montaigne_BX3","Arts"]
[null,null,"U_Bx_Montaigne_BX3","Arts du spectacle"]
[null,null,"U_Bx_Montaigne_BX3","Géographie et aménagement"]
[null,null,"U_Bx_Montaigne_BX3","Histoire"]
[null,null,"U_Bx_Montaigne_BX3","Histoire de l'art et archéologie"]
[null,null,"U_Bx_Montaigne_BX3","Humanités"]
[null,null,"U_Bx_Montaigne_BX3","Information-communication"]
[null,null,"U_Bx_Montaigne_BX3","Langues étrangères appliquées"]
[null,null,"U_Bx_Montaigne_BX3","Langues, littératures et civilisations étrangères et régionales"]
[null,null,"U_Bx_Montaigne_BX3","Lettres"]
[null,null,"U_Bx_Montaigne_BX3","Lettres, Langues"]
[null,null,"U_Bx_Montaigne_BX3","Musicologie"]
[null,null,"U_Bx_Montaigne_BX3","Philosophie"]
[null,null,"U_Bx_Montaigne_BX3","Sciences du langage"]
[null,null,"U_Bx_Montaigne_BX3","Coopération et développement international"]
[null,null,"U_Bx_Montaigne_BX3","Développement de projets de territoires"]
[null,null,"U_Bx_Montaigne_BX3","E-commerce et marketing numérique"]
[null,null,"U_Bx_Montaigne_BX3","Gestion de projets et structures artistiques et culturels"]
[null,null,"U_Bx_Montaigne_BX3","Métiers de l’animation sociale, socio-éducative et socioculturelle"]
[null,null,"U_Bx_Montaigne_BX3","Métiers de l’information : archives, médiation et patrimoine"]
[null,null,"U_Bx_Montaigne_BX3","Métiers de la communication : chef de projet communication"]
[null,null,"U_Bx_Montaigne_BX3","Métiers du commerce international"]
[null,null,"U_Bx_Montaigne_BX3","Métiers du livre : documentation et bibliothèques"]
[null,null,"U_Bx_Montaigne_BX3","Métiers du livre : édition et commerce du livre"]
[null,null,"U_Caen_Nor","Maïeutique 1er cycle"]
[null,null,"U_Caen_Nor","Médecine 1er cycle"]
[null,null,"U_Caen_Nor","Pharmacie 1er cycle"]
[null,null,"U_Caen_Nor","Administration économique et sociale"]
[null,null,"U_Caen_Nor","Administration publique"]
[null,null,"U_Caen_Nor","Arts du spectacle"]
[null,null,"U_Caen_Nor","Chimie"]
[null,null,"U_Caen_Nor","Droit"]
[null,null,"U_Caen_Nor","Économie"]
[null,null,"U_Caen_Nor","Electronique, énergie électrique, automatique"]
[null,null,"U_Caen_Nor","Géographie et aménagement"]
[null,null,"U_Caen_Nor","Gestion"]
[null,null,"U_Caen_Nor","Histoire"]
[null,null,"U_Caen_Nor","Humanités"]
[null,null,"U_Caen_Nor","Informatique"]
[null,null,"U_Caen_Nor","Langues étrangères appliquée"]
[null,null,"U_Caen_Nor","Langues, littératures et civilisations étrangères et régionales"]
[null,null,"U_Caen_Nor","Lettres"]
[null,null,"U_Caen_Nor","Mathématiques"]
[null,null,"U_Caen_Nor","Mathématiques et informatique appliquées aux sciences humaines et sociales"]
[null,null,"U_Caen_Nor","Mécanique"]
[null,null,"U_Caen_Nor","Philosophie"]
[null,null,"U_Caen_Nor","Physique"]
[null,null,"U_Caen_Nor","Psychologie"]
[null,null,"U_Caen_Nor","Sciences de la Terre"]
[null,null,"U_Caen_Nor","Sciences de la vie"]
[null,null,"U_Caen_Nor","Sciences de la vie et de la Terre"]
[null,null,"U_Caen_Nor","Sciences de l'éducation"]
[null,null,"U_Caen_Nor","Sciences du langage"]
[null,null,"U_Caen_Nor","Sciences et techniques des activités physiques et sportives - STAPS"]
[null,null,"U_Caen_Nor","Sciences pour la santé"]
[null,null,"U_Caen_Nor","Sociologie"]
[null,null,"U_Caen_Nor","Orthophonie 1er et 2ème cycle"]
[null,null,"U_Caen_Nor","Assurance, banque, finance : chargé de clientèle"]
[null,null,"U_Caen_Nor","Cartographie, topographie et systèmes d'information géographique"]
[null,null,"U_Caen_Nor","Commercialisation de produits et de services"]
[null,null,"U_Caen_Nor","Domotique"]
[null,null,"U_Caen_Nor","E-commerce et marketing numérique"]
[null,null,"U_Caen_Nor","Gestion des organisations agricoles et agroalimentaires"]
[null,null,"U_Caen_Nor","Industries agroalimentaires : gestion, production et valorisation"]
[null,null,"U_Caen_Nor","Industries pharmaceutiques, cosmétologiques et de santé : gestion, production et valorisation"]
[null,null,"U_Caen_Nor","Maintenance des systèmes industriels, de production et d'énergie"]
[null,null,"U_Caen_Nor","Management des processus logistiques"]
[null,null,"U_Caen_Nor","Management et gestion des organisations"]
[null,null,"U_Caen_Nor","Métiers de la GRH : assistant"]
[null,null,"U_Caen_Nor","Métiers de la protection et de la gestion de l'environnement"]
[null,null,"U_Caen_Nor","Métiers de la qualité"]
[null,null,"U_Caen_Nor","Métiers de l'électronique : communication, systèmes embarqués"]
[null,null,"U_Caen_Nor","Métiers de l'industrie : conception de produits industriels"]
[null,null,"U_Caen_Nor","Métiers de l'industrie : conception et amélioration de processus et procédés industriels"]
[null,null,"U_Caen_Nor","Métiers de l'industrie : conception et processus de mise en forme des matériaux"]
[null,null,"U_Caen_Nor","Métiers de l'informatique : administration et sécurité des systèmes et des réseaux"]
[null,null,"U_Caen_Nor","Métiers des administrations et des collectivités territoriales"]
[null,null,"U_Caen_Nor","Métiers du BTP : performance énergétique et environnementale des bâtiments "]
[null,null,"U_Caen_Nor","Métiers du commerce international"]
[null,null,"U_Caen_Nor","Métiers du décisionnel et de la statistique"]
[null,null,"U_Caen_Nor","Métiers du notariat"]
[null,null,"U_Caen_Nor","Métiers du tourisme : communication et valorisation des territoires"]
[null,null,"U_Caen_Nor","Qualité, hygiène, sécurité, santé, environnement"]
[null,null,"U_Caen_Nor","Sécurité des biens et des personnes"]
[null,null,"U_Caen_Nor","Services à la personne"]
[null,null,"U_Caen_Nor","Systèmes automatisés, réseaux et informatique industrielle"]
[null,null,"U_Caen_Nor","Technico-commercial"]
[null,null,"U_du_Mans","Acoustique et vibrations_L"]
[null,null,"U_du_Mans","Droit"]
[null,null,"U_du_Mans","Économie"]
[null,null,"U_du_Mans","Géographie et aménagement"]
[null,null,"U_du_Mans","Gestion"]
[null,null,"U_du_Mans","Histoire"]
[null,null,"U_du_Mans","Informatique"]
[null,null,"U_du_Mans","Langues étrangères appliquées"]
[null,null,"U_du_Mans","Langues, littératures et civilisations étrangères et régionales"]
[null,null,"U_du_Mans","Lettres"]
[null,null,"U_du_Mans","Mathématiques"]
[null,null,"U_du_Mans","Physique, chimie"]
[null,null,"U_du_Mans","Sciences de la Terre"]
[null,null,"U_du_Mans","Sciences de la vie"]
[null,null,"U_du_Mans","Sciences et techniques des activités physiques et sportives - STAPS"]
[null,null,"U_du_Mans","Acoustique et vibrations_LP"]
[null,null,"U_du_Mans","Assurance, banque, finance : chargé de clientèle"]
[null,null,"U_du_Mans","Chimie analytique, contrôle, qualité, environnement"]
[null,null,"U_du_Mans","Chimie de synthèse"]
[null,null,"U_du_Mans","Commerce et distribution"]
[null,null,"U_du_Mans","Commercialisation de produits et services"]
[null,null,"U_du_Mans","Gestion de projets et structures artistiques et culturelles"]
[null,null,"U_du_Mans","Gestion des organisations agricoles et agroalimentaires"]
[null,null,"U_du_Mans","Intervention sociale : insertion et réinsertion sociale et professionnelle"]
[null,null,"U_du_Mans","Maintenance et technologie : contrôle industriel"]
[null,null,"U_du_Mans","Maintenance et technologie : systèmes pluritechniques"]
[null,null,"U_du_Mans","Management et gestion des organisations"]
[null,null,"U_du_Mans","Matériaux et structures : fonctionnalisation et traitement des surfaces"]
[null,null,"U_du_Mans","Métiers de la gestion et de la comptabilité : comptabilité et paie"]
[null,null,"U_du_Mans","Métiers de la gestion et de la comptabilité : responsable de portefeuille clients en cabinet d'expertise"]
[null,null,"U_du_Mans","Métiers de la GRH : formation, compétences et emploi"]
[null,null,"U_du_Mans","Métiers de l'aménagement du territoire et de l'urbanisme"]
[null,null,"U_du_Mans","Métiers de l'industrie : conception de processus de mise en forme des matériaux"]
[null,null,"U_du_Mans","Métiers de l'industrie : conception de produits industriels"]
[null,null,"U_du_Mans","Métiers de l'informatique : applications web"]
[null,null,"U_du_Mans","Métiers de l'informatique : conception, développement et test de logiciels"]
[null,null,"U_du_Mans","Métiers du BTP : travaux publics"]
[null,null,"U_du_Mans","Métiers du commerce international"]
[null,null,"U_du_Mans","Organisation et gestion des établissements hôteliers et de restauration"]
[null,null,"U_du_Mans","Productions animales"]
[null,null,"U_du_Mans","Protection et valorisation du patrimoine historique et culturel"]
[null,null,"U_du_Mans","Qualité, hygiène, sécurité, santé, environnement"]
[null,null,"U_Guyane","Administration économique et sociale"]
[null,null,"U_Guyane","Administration Publique"]
[null,null,"U_Guyane","Droit"]
[null,null,"U_Guyane","Histoire"]
[null,null,"U_Guyane","Informatique"]
[null,null,"U_Guyane","Langues étrangères appliquées"]
[null,null,"U_Guyane","Langues, littératures et civilisations étrangères et régionales"]
[null,null,"U_Guyane","Lettres"]
[null,null,"U_Guyane","Mathématiques"]
[null,null,"U_Guyane","Sciences de la vie et de la Terre"]
[null,null,"U_Guyane","Sciences pour l'ingénieur"]
[null,null,"U_Guyane","Commerce et distribution"]
[null,null,"U_Guyane","Intervention sociale : accompagnement de publics spécifiques"]
[null,null,"U_Guyane","Maîtrise de l’énergie, électricité, développement durable"]
[null,null,"U_Guyane","Management et gestion des organisations"]
[null,null,"U_Guyane","Métiers de la gestion et de la comptabilité : contrôle de gestion"]
[null,null,"U_Guyane","Métiers de la GRH : assistant"]
[null,null,"U_Guyane","Métiers des réseaux informatiques et télécommunications"]
[null,null,"U_Guyane","Métiers des ressources naturelles et de la forêt"]
[null,null,"U_Guyane","Métiers du BTP : génie civil et construction"]
[null,null,"U_Guyane","Métiers du marketing opérationnel"]
[null,null,"U_Guyane","Métiers du tourisme et des loisirs"]
[null,null,"U_Le_Havre_Nor","Administration économique et sociale"]
[null,null,"U_Le_Havre_Nor","Chimie"]
[null,null,"U_Le_Havre_Nor","Droit"]
[null,null,"U_Le_Havre_Nor","Économie et gestion"]
[null,null,"U_Le_Havre_Nor","Géographie et aménagement"]
[null,null,"U_Le_Havre_Nor","Histoire"]
[null,null,"U_Le_Havre_Nor","Informatique"]
[null,null,"U_Le_Havre_Nor","Langues étrangères appliquées"]
[null,null,"U_Le_Havre_Nor","Langues, littératures et civilisations étrangères et régionales"]
[null,null,"U_Le_Havre_Nor","Lettres"]
[null,null,"U_Le_Havre_Nor","Mathématiques"]
[null,null,"U_Le_Havre_Nor","Physique"]
[null,null,"U_Le_Havre_Nor","Sciences de la vie"]
[null,null,"U_Le_Havre_Nor","Sciences pour l'ingénieur"]
[null,null,"U_Le_Havre_Nor","Sociologie"]
[null,null,"U_Le_Havre_Nor","Activités juridiques : Métiers du droit des transports"]
[null,null,"U_Le_Havre_Nor","Chimie : formulation"]
[null,null,"U_Le_Havre_Nor","Industries agroalimentaires : gestion, production et valorisation"]
[null,null,"U_Le_Havre_Nor","Logistique et transports internationaux"]
[null,null,"U_Le_Havre_Nor","Maintenance des systèmes industriels, de production et d'énergie"]
[null,null,"U_Le_Havre_Nor","Maîtrise de l’énergie, électricité, développement durable"]
[null,null,"U_Le_Havre_Nor","Management et gestion des organisations"]
[null,null,"U_Le_Havre_Nor","Métiers de la communication : chargé de communication"]
[null,null,"U_Le_Havre_Nor","Métiers de la GRH : assistant"]
[null,null,"U_Le_Havre_Nor","Métiers de l'industrie : conception et amélioration de processus et procédés industriels"]
[null,null,"U_Le_Havre_Nor","Métiers de l'informatique : applications web"]
[null,null,"U_Le_Havre_Nor","Métiers du BTP : génie civil et construction"]
[null,null,"U_Le_Havre_Nor","Métiers du tourisme : commercialisation des produits touristiques"]
[null,null,"U_Le_Havre_Nor","Productions végétales"]
[null,null,"U_Le_Havre_Nor","Qualité, hygiène, sécurité, santé, environnement"]
[null,null,"U_Le_Havre_Nor","Sécurité des biens et des personnes"]
[null,null,"U_Le_Havre_Nor","Systèmes automatisés, réseaux et informatique industrielle"]
[null,null,"U_Le_Havre_Nor","Technico-commercial"]
[null,null,"U_Limoges","Diplôme de Formation Générale en maïeutique"]
[null,null,"U_Limoges","Diplôme de formation générale en sciences médicales"]
[null,null,"U_Limoges","Diplôme de formation générale en sciences pharmaceutiques (DFGSP)"]
[null,null,"U_Limoges","Administration économique et sociale"]
[null,null,"U_Limoges","Administration Publique"]
[null,null,"U_Limoges","Chimie"]
[null,null,"U_Limoges","Droit"]
[null,null,"U_Limoges","Économie et gestion"]
[null,null,"U_Limoges","Génie Civil"]
[null,null,"U_Limoges","Géographie et aménagement"]
[null,null,"U_Limoges","Histoire"]
[null,null,"U_Limoges","Informatique"]
[null,null,"U_Limoges","Langues étrangères appliquées"]
[null,null,"U_Limoges","Langues, littératures et civilisations étrangères et régionales"]
[null,null,"U_Limoges","Lettres"]
[null,null,"U_Limoges","Mathématiques"]
[null,null,"U_Limoges","Physique"]
[null,null,"U_Limoges","Physique-Chimie"]
[null,null,"U_Limoges","Sciences de la vie"]
[null,null,"U_Limoges","Sciences de l'éducation"]
[null,null,"U_Limoges","Sciences du Langage"]
[null,null,"U_Limoges","Sciences et techniques des activités physiques et sportives - STAPS"]
[null,null,"U_Limoges","Sciences et technologie"]
[null,null,"U_Limoges","Sociologie"]
[null,null,"U_Limoges","Activités juridiques: métiers du droit de l'immobilier"]
[null,null,"U_Limoges","Aménagement paysager : conception, gestion, entretien"]
[null,null,"U_Limoges","Assurance, banque, finance : chargé de clientèle"]
[null,null,"U_Limoges","Chimie et physique des matériaux"]
[null,null,"U_Limoges","Commerce et distribution"]
[null,null,"U_Limoges","Domotique"]
[null,null,"U_Limoges","Gestion et accompagnement de projets pédagogiques"]
[null,null,"U_Limoges","Logistique et Systèmes d’Information"]
[null,null,"U_Limoges","Maintenance et technologie : systèmes pluritechniques"]
[null,null,"U_Limoges","Maîtrise de l’énergie, électricité, développement durable"]
[null,null,"U_Limoges","Management des activités commerciales"]
[null,null,"U_Limoges","Management et gestion des organisations"]
[null,null,"U_Limoges","Métiers de l’électronique : microélectronique, optronique"]
[null,null,"U_Limoges","Métiers de l’industrie : conception de produits industriels"]
[null,null,"U_Limoges","Métiers de l’Informatique : Systèmes d’information et gestion de données"]
[null,null,"U_Limoges","Métiers de l’informatique : conduite de projets"]
[null,null,"U_Limoges","Métiers de l’instrumentation, de la mesure et du contrôle qualité"]
[null,null,"U_Limoges","Métiers de la Gestion et de la Comptabilité : Fiscalité"]
[null,null,"U_Limoges","Métiers de la GRH : assistant"]
[null,null,"U_Limoges","Métiers de la médiation scientifique et technique"]
[null,null,"U_Limoges","Métiers de la protection et de la gestion de l'environnement"]
[null,null,"U_Limoges","Métiers de la Qualité"]
[null,null,"U_Limoges","Métiers de l'énergétique, de l'environnement et du génie climatique"]
[null,null,"U_Limoges","Métiers des réseaux informatiques et télécommunications"]
[null,null,"U_Limoges","Métiers des ressources naturelles et de la forêt"]
[null,null,"U_Limoges","Métiers du BTP : Bâtiment et Construction"]
[null,null,"U_Limoges","Métiers du BTP : Génie Civil et Construction"]
[null,null,"U_Limoges","Métiers du BTP : travaux publics"]
[null,null,"U_Limoges","Métiers du livre : documentation et bibliothèques"]
[null,null,"U_Limoges","Métiers du notariat"]
[null,null,"U_Limoges","Métiers du numérique : conception, rédaction et réalisation web "]
[null,null,"U_Limoges","Productions animales"]
[null,null,"U_Limoges","Protection et valorisation du patrimoine historique et culturel"]
[null,null,"U_Limoges","Sécurité des biens et des personnes"]
[null,null,"U_Limoges","Tourisme et Loisirs Sportifs"]
[null,null,"U_Nantes","1er cycle - Diplôme de formation générale en sciences maïeutiques (DFGSMA)"]
[null,null,"U_Nantes","1er cycle - diplôme de formation générale en sciences médicales (DFGSM)"]
[null,null,"U_Nantes","1er cycle - diplôme de formation générale en sciences odontologiques (DFGSO)"]
[null,null,"U_Nantes","1er cycle - Diplôme de formation générale en sciences pharmaceutiques (DFGSP)"]
[null,null,"U_Nantes","Administration publique"]
[null,null,"U_Nantes","Chimie"]
[null,null,"U_Nantes","Droit"]
[null,null,"U_Nantes","Économie et gestion"]
[null,null,"U_Nantes","Géographie et Aménagement"]
[null,null,"U_Nantes","Histoire"]
[null,null,"U_Nantes","Histoire de l'art et archéologie"]
[null,null,"U_Nantes","Informatique"]
[null,null,"U_Nantes","Langues étrangères appliquées"]
[null,null,"U_Nantes","Langues, littératures et civilisations étrangères et régionales"]
[null,null,"U_Nantes","Lettres"]
[null,null,"U_Nantes","Lettres, Langues"]
[null,null,"U_Nantes","Mathématiques"]
[null,null,"U_Nantes","Philosophie"]
[null,null,"U_Nantes","Physique"]
[null,null,"U_Nantes","Psychologie"]
[null,null,"U_Nantes","Sciences de la Vie"]
[null,null,"U_Nantes","Sciences de la vie et de la Terre"]
[null,null,"U_Nantes","Sciences de l'éducation"]
[null,null,"U_Nantes","Sciences du langage"]
[null,null,"U_Nantes","Sciences et techniques des activités physiques et sportives - STAPS"]
[null,null,"U_Nantes","Sciences pour l'ingénieur"]
[null,null,"U_Nantes","Sociologie"]
[null,null,"U_Nantes","1er cycle - Certificat de capacité d'orthoptiste"]
[null,null,"U_Nantes","Animation, gestion et organisation des activités physiques et sportives"]
[null,null,"U_Nantes","Assurance, banque, finance : chargé de clientèle"]
[null,null,"U_Nantes","Bio-industries et biotechnologies"]
[null,null,"U_Nantes","Bois et ameublement"]
[null,null,"U_Nantes","Chimie analytique, contrôle, qualité, environnement"]
[null,null,"U_Nantes","Commerce et distribution"]
[null,null,"U_Nantes","Conception et contrôle des procédés"]
[null,null,"U_Nantes","E-commerce et marketing numérique"]
[null,null,"U_Nantes","Gestion des achats et des approvisionnements"]
[null,null,"U_Nantes","Installations frigorifiques et de conditionnement d'air"]
[null,null,"U_Nantes","Logistique et transports internationaux"]
[null,null,"U_Nantes","Maintenance et technologie : organisation de la maintenance"]
[null,null,"U_Nantes","Maintenance et technologie : systèmes pluritechniques"]
[null,null,"U_Nantes","Maîtrise de l’énergie, électricité, développement durable"]
[null,null,"U_Nantes","Management et gestion des organisations"]
[null,null,"U_Nantes","Métiers de la gestion et de la comptabilité : comptabilité et paie"]
[null,null,"U_Nantes","Métiers de la GRH : assistant"]
[null,null,"U_Nantes","Métiers de la protection et de la gestion de l'environnement"]
[null,null,"U_Nantes","Métiers de la radioprotection et de la sécurité nucléaire"]
[null,null,"U_Nantes","Métiers de l'aménagement du territoire et de l'urbanisme"]
[null,null,"U_Nantes","Métiers de l'électronique : communication, systèmes embarqués"]
[null,null,"U_Nantes","Métiers de l'industrie : conception et processus de mise en forme des matériaux"]
[null,null,"U_Nantes","Métiers de l'industrie : gestion de la production industrielle"]
[null,null,"U_Nantes","Métiers de l'industrie : industrie aéronautique"]
[null,null,"U_Nantes","Métiers de l'industrie : industrie navale et maritime"]
[null,null,"U_Nantes","Métiers de l'industrie : mécanique"]
[null,null,"U_Nantes","Métiers de l'industrie : mécatronique, robotique"]
[null,null,"U_Nantes","Métiers de l'informatique : administration et sécurité des systèmes et des réseaux"]
[null,null,"U_Nantes","Métiers de l'informatique : conception, développement et test de logiciels"]
[null,null,"U_Nantes","Métiers de l'informatique : systèmes d'information et gestion de données"]
[null,null,"U_Nantes","Métiers de l'instrumentation, de la mesure et du contrôle qualité"]
[null,null,"U_Nantes","Métiers du BTP : bâtiment et construction"]
[null,null,"U_Nantes","Métiers du BTP : génie civil et construction"]
[null,null,"U_Nantes","Métiers du BTP : performance énergétique et environnementale des bâtiments "]
[null,null,"U_Nantes","Métiers du BTP : travaux publics"]
[null,null,"U_Nantes","Métiers du design"]
[null,null,"U_Nantes","Métiers du livre : édition et commerce du livre"]
[null,null,"U_Nantes","Métiers du notariat"]
[null,null,"U_Nantes","Métiers du numérique : conception, rédaction et réalisation web "]
[null,null,"U_Nantes","Nautisme et métiers de la plaisance"]
[null,null,"U_Nantes","Organisation et gestion des établissements hôteliers et de restauration"]
[null,null,"U_Nantes","Qualité, hygiène, sécurité, santé, environnement"]
[null,null,"U_Nantes","Technico-commercial"]
[null,null,"U_Nantes","Techniques du son et de l'image"]
[null,null,"U_Pau_Adour_UPPA","Administration économique et sociale"]
[null,null,"U_Pau_Adour_UPPA","Droit"]
[null,null,"U_Pau_Adour_UPPA","Économie et gestion"]
[null,null,"U_Pau_Adour_UPPA","Géographie et aménagement"]
[null,null,"U_Pau_Adour_UPPA","Histoire"]
[null,null,"U_Pau_Adour_UPPA","Histoire de l'art et archéologie"]
[null,null,"U_Pau_Adour_UPPA","Informatique"]
[null,null,"U_Pau_Adour_UPPA","Langues étrangères appliquées"]
[null,null,"U_Pau_Adour_UPPA","Langues, littératures et civilisations étrangères et régionales"]
[null,null,"U_Pau_Adour_UPPA","Lettres"]
[null,null,"U_Pau_Adour_UPPA","Mathématiques"]
[null,null,"U_Pau_Adour_UPPA","Mathématiques et informatique appliquées aux sciences humaines et sociales"]
[null,null,"U_Pau_Adour_UPPA","Physique, Chimie"]
[null,null,"U_Pau_Adour_UPPA","Sciences de la Terre"]
[null,null,"U_Pau_Adour_UPPA","Sciences de la vie"]
[null,null,"U_Pau_Adour_UPPA","Sciences et techniques des activités physiques et sportives - STAPS"]
[null,null,"U_Pau_Adour_UPPA","Sociologie"]
[null,null,"U_Pau_Adour_UPPA","Assurance, banque, finance : chargé de clientèle"]
[null,null,"U_Pau_Adour_UPPA","Bio-industries et biotechnologies"]
[null,null,"U_Pau_Adour_UPPA","Commercialisation de produits et services"]
[null,null,"U_Pau_Adour_UPPA","Intervention sociale : accompagnement de publics spécifiques"]
[null,null,"U_Pau_Adour_UPPA","Maîtrise de l’énergie, électricité, développement durable"]
[null,null,"U_Pau_Adour_UPPA","Management des processus logistiques"]
[null,null,"U_Pau_Adour_UPPA","Management et gestion des organisations"]
[null,null,"U_Pau_Adour_UPPA","Métiers de la communication : événementiel"]
[null,null,"U_Pau_Adour_UPPA","Métiers de la GRH : assistant"]
[null,null,"U_Pau_Adour_UPPA","Métiers de la protection et de la gestion de l'environnement"]
[null,null,"U_Pau_Adour_UPPA","Métiers de l'énergétique, de l'environnement et du génie climatique"]
[null,null,"U_Pau_Adour_UPPA","Métiers de l'industrie : gestion de la production industrielle"]
[null,null,"U_Pau_Adour_UPPA","Métiers de l'informatique : conception, développement et test de logiciels"]
[null,null,"U_Pau_Adour_UPPA","Métiers des réseaux informatiques et télécommunications"]
[null,null,"U_Pau_Adour_UPPA","Métiers du bois"]
[null,null,"U_Pau_Adour_UPPA","Métiers du BTP : bâtiment et construction"]
[null,null,"U_Pau_Adour_UPPA","Métiers du décisionnel et de la statistique"]
[null,null,"U_Pau_Adour_UPPA","Métiers du design"]
[null,null,"U_Pau_Adour_UPPA","Métiers du numérique : conception, rédaction et réalisation web "]
[null,null,"U_Pau_Adour_UPPA","Sécurité des biens et des personnes"]
[null,null,"U_Pau_Adour_UPPA","Valorisation des agro-ressources"]
[null,null,"U_Poitiers","Diplôme de formation générale en sciences maïeutiques (DFGSMa)"]
[null,null,"U_Poitiers","Diplôme de formation générale en sciences médicales (DFGSM)"]
[null,null,"U_Poitiers","Diplôme de formation générale en sciences pharmaceutiques (DFGSP)"]
[null,null,"U_Poitiers","Administration économique et sociale"]
[null,null,"U_Poitiers","Administration publique"]
[null,null,"U_Poitiers","Arts du spectacle"]
[null,null,"U_Poitiers","Chimie"]
[null,null,"U_Poitiers","Droit"]
[null,null,"U_Poitiers","Économie et gestion"]
[null,null,"U_Poitiers","Géographie et aménagement"]
[null,null,"U_Poitiers","Histoire"]
[null,null,"U_Poitiers","Histoire de l'art et archéologie"]
[null,null,"U_Poitiers","Informatique"]
[null,null,"U_Poitiers","Langues étrangères appliquées"]
[null,null,"U_Poitiers","Langues, littératures et civilisations étrangères et régionales"]
[null,null,"U_Poitiers","Lettres"]
[null,null,"U_Poitiers","Mathématiques"]
[null,null,"U_Poitiers","Musicologie"]
[null,null,"U_Poitiers","Philosophie"]
[null,null,"U_Poitiers","Physique"]
[null,null,"U_Poitiers","Psychologie"]
[null,null,"U_Poitiers","Sciences de la Terre"]
[null,null,"U_Poitiers","Sciences de la vie"]
[null,null,"U_Poitiers","Sciences du langage"]
[null,null,"U_Poitiers","Sciences et techniques des activités physiques et sportives - STAPS"]
[null,null,"U_Poitiers","Sciences pour l'ingénieur"]
[null,null,"U_Poitiers","Sociologie"]
[null,null,"U_Poitiers","Agronomie"]
[null,null,"U_Poitiers","Assurance, banque, finance : chargé de clientèle"]
[null,null,"U_Poitiers","Chimie analytique, contrôle, qualité, environnement"]
[null,null,"U_Poitiers","Commerce et distribution"]
[null,null,"U_Poitiers","Intervention sociale : accompagnement social"]
[null,null,"U_Poitiers","Maintenance et technologie : systèmes pluritechniques"]
[null,null,"U_Poitiers","Maîtrise de l’énergie, électricité, développement durable"]
[null,null,"U_Poitiers","Métiers de la GRH : assistant"]
[null,null,"U_Poitiers","Métiers de protection et de la gestion de l'environnement"]
[null,null,"U_Poitiers","Métiers de la qualité"]
[null,null,"U_Poitiers","Métiers de l'énergétique, de l'environnement et du génie climatique"]
[null,null,"U_Poitiers","Métiers de l'entrepreneuriat"]
[null,null,"U_Poitiers","Métiers de l'industrie : conception de produits industriels"]
[null,null,"U_Poitiers","Métiers de l'industrie :  conception et processus de mise en forme des matériaux"]
[null,null,"U_Poitiers","Métiers de l'industrie : mécatronique, robotique"]
[null,null,"U_Poitiers","Métiers de l'informatique : conception, développement et test de logiciels"]
[null,null,"U_Poitiers","Métiers des réseaux informatiques et télécommunications"]
[null,null,"U_Poitiers","Métiers du commerce international"]
[null,null,"U_Poitiers","Métiers du décisionnel et de la statistique"]
[null,null,"U_Poitiers","Métiers du notariat"]
[null,null,"U_Poitiers","Santé, vieillissement et activités physiques adaptées"]
[null,null,"U_Poitiers","Sécurité des biens et des personnes"]
[null,null,"U_Poitiers","Techniques du son et de l'image"]
[null,null,"U_Rennes_1","Administration publique"]
[null,null,"U_Rennes_1","Agronomie"]
[null,null,"U_Rennes_1","Assurance, banque, finance : chargé de clientèle"]
[null,null,"U_Rennes_1","Certificat de capacité d'orthoptiste (grade licence)"]
[null,null,"U_Rennes_1","Chimie"]
[null,null,"U_Rennes_1","Chimie et physique des matériaux "]
[null,null,"U_Rennes_1","Chimie industrielle"]
[null,null,"U_Rennes_1","Commerce et distribution"]
[null,null,"U_Rennes_1","Commercialisation des produits alimentaires"]
[null,null,"U_Rennes_1","Commercialisation des produits et services"]
[null,null,"U_Rennes_1","Diplôme de formation générale en sciences maïeutiques (DFGSO) (grade licence)"]
[null,null,"U_Rennes_1","Diplôme de formation générale en sciences médicales (DFGSM) (grade licence)"]
[null,null,"U_Rennes_1","Diplôme de formation générale en sciences odontologiques (DFGSO) (grade licence)"]
[null,null,"U_Rennes_1","Diplôme de formation générale en sciences pharmaceutiques (DFGSP) (grade licence)"]
[null,null,"U_Rennes_1","Domotique"]
[null,null,"U_Rennes_1","Droit  "]
[null,null,"U_Rennes_1","Économie et gestion"]
[null,null,"U_Rennes_1","Electronique, énergie électrique, automatique"]
[null,null,"U_Rennes_1","Exploration et exploitation pétrolières"]
[null,null,"U_Rennes_1","Gestion"]
[null,null,"U_Rennes_1","Gestion de projets et structures artistiques et culturels"]
[null,null,"U_Rennes_1","Industries agroalimentaires : gestion, production et valorisation"]
[null,null,"U_Rennes_1","Informatique"]
[null,null,"U_Rennes_1","Logistique et pilotage des flux"]
[null,null,"U_Rennes_1","Maintenance et technologie : organisation de la maintenance"]
[null,null,"U_Rennes_1","Management et gestion des organisations"]
[null,null,"U_Rennes_1","Matériaux et structures : gestion, conception et industrialisation"]
[null,null,"U_Rennes_1","Mathématiques "]
[null,null,"U_Rennes_1","Mathématiques et informatique appliquées aux sciences humaines et sociales"]
[null,null,"U_Rennes_1","Métiers de la gestion des ressources humaines : assistant"]
[null,null,"U_Rennes_1","Métiers de la gestion et de la comptabilité : responsable de portefeuille clients en cabinet d'expertise"]
[null,null,"U_Rennes_1","Métiers de la santé : nutrition, alimentation"]
[null,null,"U_Rennes_1","Métiers de l'animation sociale , socio-éducative et socioculturelle"]
[null,null,"U_Rennes_1","Métiers de l'électricité et de l’énergie"]
[null,null,"U_Rennes_1","Métiers de l'électronique : communication, systèmes embarqués"]
[null,null,"U_Rennes_1","Métiers de l'énergétique, de l'environnement et du génie climatique"]
[null,null,"U_Rennes_1","Métiers de l'immobilier : gestion et administration des biens"]
[null,null,"U_Rennes_1","Métiers de l'immobilier : transaction et commercialisation de biens immobiliers"]
[null,null,"U_Rennes_1","Métiers de l'industrie : conception de produits industriels"]
[null,null,"U_Rennes_1","Métiers de l'industrie : mécatronique, robotique"]
[null,null,"U_Rennes_1","Métiers de l'information : métiers du journalisme et de la presse"]
[null,null,"U_Rennes_1","Métiers de l'informatique : administration et sécurité des systèmes et des réseaux"]
[null,null,"U_Rennes_1","Métiers de l'informatique : applications web"]
[null,null,"U_Rennes_1","Métiers de l'informatique : conduite de projet"]
[null,null,"U_Rennes_1","Métiers des réseaux informatiques et télécommunications"]
[null,null,"U_Rennes_1","Métiers du BTP : bâtiment et construction"]
[null,null,"U_Rennes_1","Métiers du BTP : génie civil et construction"]
[null,null,"U_Rennes_1","Métiers du commerce international"]
[null,null,"U_Rennes_1","Métiers du notariat"]
[null,null,"U_Rennes_1","Philosophie"]
[null,null,"U_Rennes_1","Physique"]
[null,null,"U_Rennes_1","Physique, chimie"]
[null,null,"U_Rennes_1","Qualité, hygiène, santé, environnment"]
[null,null,"U_Rennes_1","Science politique"]
[null,null,"U_Rennes_1","Sciences de la Terre"]
[null,null,"U_Rennes_1","Sciences de la vie"]
[null,null,"U_Rennes_1","Sciences pour l'ingénieur"]
[null,null,"U_Rennes_2","Administration économique et sociales"]
[null,null,"U_Rennes_2","Arts du spectacle"]
[null,null,"U_Rennes_2","Arts plastiques"]
[null,null,"U_Rennes_2","Géographie et aménagement"]
[null,null,"U_Rennes_2","Histoire"]
[null,null,"U_Rennes_2","Histoires de l'art et archéologie"]
[null,null,"U_Rennes_2","Humanités"]
[null,null,"U_Rennes_2","Information-communication"]
[null,null,"U_Rennes_2","Langues étrangères appliquées"]
[null,null,"U_Rennes_2","Langues, littératures et civilisations étrangères et régionales"]
[null,null,"U_Rennes_2","Lettres"]
[null,null,"U_Rennes_2","Mathématiques et informatique appliquées aux sciences humaines et sociales"]
[null,null,"U_Rennes_2","Musicologie"]
[null,null,"U_Rennes_2","Psychologie"]
[null,null,"U_Rennes_2","Sciences de l'éducation"]
[null,null,"U_Rennes_2","Sciences et techniques des activités physiques et sportives - STAPS"]
[null,null,"U_Rennes_2","Sociologie"]
[null,null,"U_Rennes_2","Aménagement paysager : conception, gestion, entretien"]
[null,null,"U_Rennes_2","Animation, gestion et organisation des activités physiques et sportives"]
[null,null,"U_Rennes_2","Intervention sociale : insertion et réinsertion sociale et professionnelle"]
[null,null,"U_Rennes_2","Métiers de la forme"]
[null,null,"U_Rennes_2","Métiers de la GRH : formation, compétences et emploi"]
[null,null,"U_Rennes_2","Métiers de l'animation sociale, socio-éducative et socio culturel"]
[null,null,"U_Rennes_2","Métiers des administrations et collectivités territoriales"]
[null,null,"U_Rennes_2","Métiers du design"]
[null,null,"U_Rennes_2","Métiers du livre : documentation et bibliothèques"]
[null,null,"U_Rennes_2","Protection et valorisation du patrimoine historique et culturel"]
[null,null,"U_Rennes_2","Techniques du son et de l'image"]
[null,null,"U_Rouen_Nor","Diplôme de formation générale en sciences maïeutiques"]
[null,null,"U_Rouen_Nor","Diplôme de formation générale en sciences médicales"]
[null,null,"U_Rouen_Nor","Diplôme de formation générale en sciences pharmaceutiques (DFGSP)"]
[null,null,"U_Rouen_Nor","Administration économique et sociale"]
[null,null,"U_Rouen_Nor","Administration Publique"]
[null,null,"U_Rouen_Nor","Chimie"]
[null,null,"U_Rouen_Nor","Droit"]
[null,null,"U_Rouen_Nor","Économie"]
[null,null,"U_Rouen_Nor","Electronique, Energie Electrique, Automatique"]
[null,null,"U_Rouen_Nor","Géographie et Aménagement"]
[null,null,"U_Rouen_Nor","Gestion"]
[null,null,"U_Rouen_Nor","Histoire"]
[null,null,"U_Rouen_Nor","Humanités"]
[null,null,"U_Rouen_Nor","Informatique"]
[null,null,"U_Rouen_Nor","Langues étrangères appliquées"]
[null,null,"U_Rouen_Nor","Langues, littératures et civilisations étrangères et régionales"]
[null,null,"U_Rouen_Nor","Lettres "]
[null,null,"U_Rouen_Nor","Mathématiques"]
[null,null,"U_Rouen_Nor","Mécanique"]
[null,null,"U_Rouen_Nor","Musicologie"]
[null,null,"U_Rouen_Nor","Philosophie"]
[null,null,"U_Rouen_Nor","Physique"]
[null,null,"U_Rouen_Nor","Physique, chimie"]
[null,null,"U_Rouen_Nor","Psychologie"]
[null,null,"U_Rouen_Nor","Sciences de la santé"]
[null,null,"U_Rouen_Nor","Sciences de la Terre"]
[null,null,"U_Rouen_Nor","Sciences de la Vie"]
[null,null,"U_Rouen_Nor","Sciences de la vie et de la Terre"]
[null,null,"U_Rouen_Nor","Sciences de l'éducation"]
[null,null,"U_Rouen_Nor","Sciences du Langage"]
[null,null,"U_Rouen_Nor","Sciences et techniques des activités physiques et sportives - STAPS"]
[null,null,"U_Rouen_Nor","Sociologie"]
[null,null,"U_Rouen_Nor","Activités juridiques : Métiers du droit de l'immobilier"]
[null,null,"U_Rouen_Nor","Activités juridiques : Métiers du droit social"]
[null,null,"U_Rouen_Nor","Animation, Gestion et Organisation des Activités Physiques et Sportives"]
[null,null,"U_Rouen_Nor","Assurance, banque, finance : chargé de clientèle"]
[null,null,"U_Rouen_Nor","Bio-Industries et Biotechnologies"]
[null,null,"U_Rouen_Nor","Chimie analytique, contrôle, qualité, environnement"]
[null,null,"U_Rouen_Nor","Chimie de synthèse"]
[null,null,"U_Rouen_Nor","Commerce et distribution"]
[null,null,"U_Rouen_Nor","Domotique"]
[null,null,"U_Rouen_Nor","E-commerce et marketing numérique"]
[null,null,"U_Rouen_Nor","Gestion des organisations de l'économie sociale et solidaire "]
[null,null,"U_Rouen_Nor","Industries agroalimentaires : gestion, production et valorisation"]
[null,null,"U_Rouen_Nor","Maintenance et technologie : électronique, instrumentation"]
[null,null,"U_Rouen_Nor","Management des activités commerciales"]
[null,null,"U_Rouen_Nor","Management et gestion des organisations"]
[null,null,"U_Rouen_Nor","Métiers de la communication : chargé de communication"]
[null,null,"U_Rouen_Nor","Métiers de la GRH : assistant"]
[null,null,"U_Rouen_Nor","Métiers de la médiation par les approches artistiques et culturelles"]
[null,null,"U_Rouen_Nor","Métiers de l'emballage et du conditionnement"]
[null,null,"U_Rouen_Nor","Métiers de l'entrepreneuriat"]
[null,null,"U_Rouen_Nor","Métiers de l'instrumentation, de la mesure et du contrôle qualité"]
[null,null,"U_Rouen_Nor","Métiers des administrations et collectivités territoriales"]
[null,null,"U_Rouen_Nor","Métiers des réseaux informatiques et télécommunications"]
[null,null,"U_Rouen_Nor","Métiers du BTP : performance énergétique et environnementale des bâtiments "]
[null,null,"U_Rouen_Nor","Métiers du commerce international"]
[null,null,"U_Rouen_Nor","Métiers du notariat"]
[null,null,"U_Rouen_Nor","Métiers du numérique : conception, rédaction et réalisation web "]
[null,null,"U_Rouen_Nor","Organisation et gestion des établissements hôteliers et de restauration"]
[null,null,"U_Rouen_Nor","Productions animales"]
[null,null,"U_Rouen_Nor","Sécurité des biens et des personnes"]
[null,null,"U_Rouen_Nor","Technico-commercial"]
[null,null,"Facultés_libres_Ouest_UCO","Arts plastiques"]
[null,null,"Facultés_libres_Ouest_UCO","Droit "]
[null,null,"Facultés_libres_Ouest_UCO","Économie et gestion"]
[null,null,"Facultés_libres_Ouest_UCO","Histoire"]
[null,null,"Facultés_libres_Ouest_UCO","Histoire de l'art et archéologie"]
[null,null,"Facultés_libres_Ouest_UCO","Information-communication"]
[null,null,"Facultés_libres_Ouest_UCO","Langues étrangères appliquées_U_Angers"]
[null,null,"Facultés_libres_Ouest_UCO","Langues étrangères appliquées_U_Bretagne_Sud"]
[null,null,"Facultés_libres_Ouest_UCO","Langues, littératures et civilisations étrangères et régionales"]
[null,null,"Facultés_libres_Ouest_UCO","Lettres"]
[null,null,"Facultés_libres_Ouest_UCO","Mathématiques et informatique appliquées aux sciences humaines et sociales"]
[null,null,"Facultés_libres_Ouest_UCO","Musicologie"]
[null,null,"Facultés_libres_Ouest_UCO","Psychologie"]
[null,null,"Facultés_libres_Ouest_UCO","Science politique"]
[null,null,"Facultés_libres_Ouest_UCO","Sciences de la vie et de la Terre"]
[null,null,"Facultés_libres_Ouest_UCO","Sciences de l'éducation"]
[null,null,"Facultés_libres_Ouest_UCO","Sciences et techniques des activités physiques et sportives - STAPS"]
[null,null,"Facultés_libres_Ouest_UCO","Sciences pour l'ingénieur"]
[null,null,"Facultés_libres_Ouest_UCO","Sciences sociales"]
[null,null,"Facultés_libres_Ouest_UCO","Théologie catholique"]
[null,null,"Facultés_libres_Ouest_UCO","Aménagement paysager : conception, gestion, entretien"]
[null,null,"Facultés_libres_Ouest_UCO","Assurance, banque, finance : chargé de clientèle"]
[null,null,"Facultés_libres_Ouest_UCO","Bio-industries et biotechnologies"]
[null,null,"Facultés_libres_Ouest_UCO","Gestion des organisations agricoles et agroalimentaires"]
[null,null,"Facultés_libres_Ouest_UCO","Intervention sociale : accompagnement de publics spécifiques"]
[null,null,"Facultés_libres_Ouest_UCO","Management des activités commerciales"]
[null,null,"Facultés_libres_Ouest_UCO","Métiers de la protection et de la gestion de l'environnement"]
[null,null,"Facultés_libres_Ouest_UCO","Métiers du BTP : bâtiment et construction"]
[null,null,"Facultés_libres_Ouest_UCO","Métiers du commerce international"]
[null,null,"Facultés_libres_Ouest_UCO","Métiers du tourisme : communication et valorisation des territoires"]
[null,null,"Facultés_libres_Ouest_UCO","Technico-commercial"]
[null,null,"Facultés_libres_Ouest_UCO","Techniques du son et de l'image"]

{"sheet":"2. Données de caractérisation","index":2,"n_rows":22,"n_cols":9,"rows_kept":22,"cut":false,"hidden":false,"merged":[[9,1,9,2],[6,5,6,9],[0,1,3,5],[7,1,7,2],[5,1,5,5]]}
[null,"DÉPARTEMENT D’ÉVALUATION DES FORMATIONS"]
[]
[]
[]
[]
[null,{"$f":"'1. Présentation'!D11","v":0}]
[]
[null,"2. Données de caractérisation de la formation"]
[]
[null,"Données de caractérisation",null,"Année 2018-2019","Année 2019-2020","Année 2020-2021","Commentaire (non obligatoire)"]
["IG1","DC 1","Nombre total d’inscrits administratifs dans la formation* (dans tout le cycle)",null,null,null,null,null,"IG1"]
[null,"DC 2","dont étudiants internationaux* (Cf. définition dans le glossaire)"]
[null,"DC 3","dont étudiants ayant des besoins spécifiques (Cf. Définition dans le glossaire)"]
["IG1","DC 4","Nombre total d’hommes inscrits dans la formation (inscrits administratifs dans tout le cycle)",null,null,null,null,null,"IG1"]
["IG1","DC 5","Nombre total de femmes inscrites dans la formation (inscrits administratifs dans tout le cycle)",null,null,null,null,null,"IG1"]
[null,"DC 6","Nombre total d’inscrits administratifs en 1ère année du cycle*"]
[null,"DC 7","Nombre total d’inscrits administratifs en 2e année du cycle*"]
[null,"DC 8","Nombre total d’inscrits en 3e année du cycle* (DFA en sciences médicales)"]
[null,"DC 10","Capacité d'accueil*"]
[null,"DC 13","Nombre d’inscrits en double inscription avec un diplôme paramédical"]
[null,"DC 14","Nombre d’heures étudiant dans tout le cycle*"]
[null,"DC 15","Nombre total d’enseignants intervenant dans la formation"]

{"sheet":"3. Auto-positionnement","index":3,"n_rows":68,"n_cols":10,"rows_kept":68,"cut":false,"hidden":false,"merged":[[3,6,4,10],[8,1,8,10],[17,2,17,6],[10,1,13,1],[17,7,18,7],[0,1,3,5],[7,1,7,2],[5,1,5,6],[67,2,67,6],[19,1,38,1],[59,1,67,1],[52,1,58,1],[39,1,51,1],[62,2,62,6],[63,2,63,6],[64,2,64,6],[65,2,65,6],[66,2,66,6],[57,2,57,6],[58,2,58,6],[59,2,59,6],[60,2,60,6],[61,2,61,6],[52,2,52,6],[53,2,53,6],[54,2,54,6],[55,2,55,6],[56,2,56,6],[47,2,47,6],[48,2,48,6],[49,2,49,6],[50,2,50,6],[51,2,51,6],[42,2,42,6],[43,2,43,6],[44,2,44,6],[45,2,45,6],[46,2,46,6],[38,2,38,6],[39,2,39,6],[40,2,40,6],[41,2,41,6],[33,2,33,6],[34,2,34,6],[35,2,35,6],[36,2,36,6],[37,2,37,6],[28,2,28,6],[29,2,29,6],[30,2,30,6],[31,2,31,6],[32,2,32,6],[24,2,24,6],[25,2,25,6],[26,2,26,6],[27,2,27,6],[19,2,19,6],[20,2,20,6],[21,2,21,6],[22,2,22,6],[23,2,23,6]]}
[null,"DÉPARTEMENT D’ÉVALUATION DES FORMATIONS"]
[]
[]
[]
[]
[null,{"$f":"'1. Présentation'!D11","v":0}]
[]
[null,"3. Auto-positionnement de la formation"]
[null,"Pour chacun des critères d'autoévaluation ci-dessous, la formation positionne son degré d’avancement, sur une échelle de 1 à 5, définie ci-dessous."]
[null,"Niveau atteint",1,2,3,4,5]
[null,"Définition du niveau","Absence de politique","Politique définie","Politique appliquée ","Politique appliquée ","Politique appliquée"]
[null,null,"Action(s) envisagée(s)","Action(s) en cours de mise place","Action(s) en place","Action(s) en place","Action(s) en place"]
[null,null,"Pas de résultats obtenus","Résultats insuffisants","Résultats encourageants","Résultats satisfaisants","Très bons résultats"]
[null,null,"Pas d'amélioration continue","Processus d'autoévaluation défini","Autoévaluation occasionnelle","Autoévaluation régulière","Processus d'amélioration continue mis en œuvre "]
[null,null,"Les actions mises en œuvre et les résultats obtenus peuvent concerner, selon les critères, l'activité des enseignants, des étudiants, des enseignements ou des dispositifs."]
[null,null,"Par amélioration continue, on entend que les résultats sont analysés et les mesures correctives sont décidées et mises en œuvre."]
[]
[null,null,"Référentiel Hcéres - formations 2e cycle",null,null,null,null,"Code de la donnée ","Niveau atteint ","Analyse de l'auto-positionnement"]
[null,null,null,null,null,null,null,null,"1, 2, 3, 4 ou 5","Justification obligatoire : freins et leviers (500 caractères maximum)"]
[null,"Domaine 1 : La politique et la caractérisation de la formation","Référence 1 : La formation est en adéquation avec la stratégie de formation de l’établissement."]
[null,null,"C1. La formation s’inscrit dans les ambitions, les orientations pédagogiques et les priorités thématiques de l’établissement.",null,null,null,null,"R1-C1"]
[null,null,"C2. La formation est construite en cohérence et en complémentarité avec les autres formations du même cycle et en articulation avec celles des autres cycles avec lesquelles elle s’inscrit en continuum.",null,null,null,null,"R1-C2"]
[null,null,"C3. La formation s’assure de la réalité et de la valeur ajoutée de ses partenariats académiques locaux, régionaux et nationaux.",null,null,null,null,"R1-C3"]
[null,null,"C4. La formation identifie l’apport de la pluridisciplinarité et de l’interdisciplinarité à sa finalité.",null,null,null,null,"R1-C4"]
[null,null,"C5. La formation intègre les enjeux du développement durable.",null,null,null,null,"R1-C5"]
[null,null,"C6. La formation s’appuie sur les actions menées et sur les moyens obtenus dans le cadre de l’initiative d’excellence et des projets connexes dépendant du PIA, pour dynamiser son contenu et ses dispositifs.",null,null,null,null,"R1-C6"]
[null,null,"Référence 2 : La formation est ouverte à l’international en cohérence avec les priorités définies par l’établissement."]
[null,null,"C1. La formation développe une offre spécifique à l'international en s’assurant de la réalité et de la valeur ajoutée de ses partenariats internationaux.",null,null,null,null,"R2-C1"]
[null,null,"C2. La formation inclut des mobilités entrantes et sortantes des étudiants et bénéficie d'un soutien, y compris financier, à cet effet. ",null,null,null,null,"R2-C2"]
[null,null,"Référence 3 : La formation bénéficie d’un adossement à la recherche."]
[null,null,"C1. La formation intègre une formation à et par la recherche adaptée à sa finalité.",null,null,null,null,"R3-C1"]
[null,null,"C2. Des enseignants-chercheurs et chercheurs des disciplines de la formation participent aux enseignements.",null,null,null,null,"R3-C2"]
[null,null,"C3. La formation et les unités de recherche auxquelles elle est adossée mettent en place un dispositif d’accueil, d’accompagnement et de formation par la recherche des étudiants.",null,null,null,null,"R3-C3"]
[null,null,"C4. La formation inclut une formation à l’intégrité scientifique et à la déontologie.",null,null,null,null,"R3-C4"]
[null,null,"C5. La formation à et par la recherche de la formation s’appuie sur les services de documentation, en matière d’acquisition de ressources, d’accès à celles-ci et de contribution aux contenus de formation auxquels sont associés les personnels des services de documentation.",null,null,null,null,"R3-C5"]
[null,null,"Référence 4 : La formation entretient des relations avec le monde socio-économique et intègre des éléments de professionnalisation."]
[null,null,"C1. La formation prend en compte les besoins socio-économiques du territoire pour définir ses débouchés, sa finalité et ses contenus, en cohérence avec sa fiche RNCP, et elle associe les acteurs socio-économiques à cette démarche.",null,null,null,null,"R4-C1"]
[null,null,"C2. La formation définit sa politique en matière d’alternance et de formation continue en lien avec le positionnement et la stratégie de l’établissement.",null,null,null,null,"R4-C2"]
[null,null,"C3. La formation prépare à l’insertion professionnelle et à l’entrepreneuriat au cours du cursus et elle fait intervenir à cette fin des acteurs socio-économiques.",null,null,null,null,"R4-C3"]
[null,"Domaine 2 : L’organisation pédagogique de la formation","Référence 5 : La formation met en œuvre les méthodes pédagogiques adaptées aux compétences visées."]
[null,null,"C1. La formation définit et met en œuvre ses objectifs, ses contenus, ses méthodes pédagogiques et ses acquis d’apprentissage dans une approche favorisant l’alignement pédagogique. Elle appuie sa démarche sur une approche programme et sur une approche par compétences.",null,null,null,null,"R5-C1"]
[null,null,"C2. La formation valorise les compétences acquises dans le cursus ou en dehors de celui-ci.",null,null,null,null,"R5-C2"]
[null,null,"Référence 6 : La formation développe et diversifie ses pratiques pédagogiques."]
[null,null,"C1. La formation diversifie ses méthodes pédagogiques pour favoriser la réussite de ses étudiants, le cas échéant en participant aux actions prévues par l’initiative d’excellence ou des projets connexes dépendant du PIA.",null,null,null,null,"R6-C1"]
[null,null,"C2. La formation propose des modalités variées d’enseignement, dont des modalités entièrement ou partiellement à distance, pour flexibiliser l’accueil de ses différents publics.",null,null,null,null,"R6-C2"]
[null,null,"C3. La formation s’appuie sur des types variés d’espaces d’enseignement, en cohérence avec ses objectifs et ses modalités pédagogiques.",null,null,null,null,"R6-C3"]
[null,null,"Référence 7 : Les contenus et les dispositifs de la formation sont adaptés pour permettre son ouverture à l’international."]
[null,null,"C1.  La formation permet à l’étudiant d’acquérir des compétences linguistiques utiles à son insertion professionnelle ou à sa poursuite d’études, en particulier à l'international, à travers l’enseignement des langues étrangères et en langue étrangère, et à travers des certifications.",null,null,null,null,"R7-C1"]
[null,null,"C2. La formation inclut, outre les langues étrangères, des dispositifs de préparation à la mobilité entrante et sortante de ses étudiants.",null,null,null,null,"R7-C2"]
[null,null,"Référence 8 : Les contenus et les dispositifs de la formation sont adaptés aux publics de la formation continue et en alternance."]
[null,null,"C1. La formation permet l’accès effectif des publics de formation continue ou en alternance par la mise en place de modalités adaptées d’accueil, d’encadrement et d’ingénierie de formation.",null,null,null,null,"R8-C1"]
[null,null,"C2. La formation développe dans son périmètre une ingénierie de formation adaptée à l’offre spécifique proposée aux publics de la formation continue.",null,null,null,null,"R8-C2"]
[null,"Domaine 3 : L’attractivité, la performance et la pertinence de la formation","Référence 9 : La formation développe et suit son attractivité auprès de ses différents publics."]
[null,null,"C1. Les dispositifs d'information sur la formation, mis en place par l’établissement ou la formation, contribuent à améliorer la connaissance et l’attractivité de celle-ci, ainsi que la qualité de l’orientation de ses différents types de publics.",null,null,null,null,"R9-C1"]
[null,null,"C2. La formation mesure son attractivité en suivant et en analysant l’évolution des candidatures et des inscriptions des différents types de publics.",null,null,null,null,"R9-C2"]
[null,null,"Référence 10 : La formation suit la réussite de ses étudiants."]
[null,null,"C1. La formation suit l’évolution des taux de réussite et analyse l’impact sur ceux-ci de ses dispositifs d’accompagnement, d’aide à la réussite et d’aménagement des cursus.",null,null,null,null,"R10-C1"]
[null,null,"Référence 11 : La formation analyse l’insertion professionnelle et la poursuite d’études de ses diplômés au regard de ses objectifs et du marché de l’emploi."]
[null,null,"C1. La formation analyse la qualité de l’insertion professionnelle et la nature des poursuites d’études à partir des enquêtes de suivi de l’insertion professionnelle et de cohortes.",null,null,null,null,"R11-C1"]
[null,"Domaine 4 : Le pilotage et l'amélioration continue de la formation","Référence 12 : La formation dispose des moyens nécessaires pour lui permettre d’atteindre ses objectifs."]
[null,null,"C1. La politique de ressources humaines de l'établissement tient compte des besoins d’encadrement de la formation.",null,null,null,null,"R12-C1"]
[null,null,"C2. Des membres de l’équipe pédagogique de la formation effectuent des mobilités sortantes et créent les conditions pour l’accueil d’enseignants invités. ",null,null,null,null,"R12-C2"]
[null,null,"C3. Des membres de l’équipe pédagogique bénéficient d'un soutien, d'un accompagnement et/ou de formations au métier d'enseignant et assurent l’essaimage de leurs pratiques pédagogiques au sein de l’équipe.",null,null,null,null,"R12-C3"]
[null,null,"C4. La formation s'appuie sur des outils et des indicateurs de mesure du coût des formations pour suivre et maîtriser sa soutenabilité.",null,null,null,null,"R12-C4"]
[null,null,"C5. L’attribution des compétences et le degré de subsidiarité mis en œuvre dans le domaine du pilotage des formations contribuent à un fonctionnement cohérent et efficace de la formation.",null,null,null,null,"R12-C5"]
[null,null,"Référence 13 : La formation définit un processus d’évaluation interne permettant de la faire évoluer dans une démarche d’amélioration continue."]
[null,null,"C1. La formation organise l’évaluation des enseignements et de la formation par les étudiants et prend en compte les résultats de cette évaluation dans son évolution.",null,null,null,null,"R13-C1"]
[null,null,"C2. La formation dispose d’un conseil de perfectionnement comprenant notamment des étudiants et des personnalités extérieures à la formation et qui se réunit périodiquement pour analyser les résultats de la formation et contribuer à son évaluation interne.",null,null,null,null,"R13-C2"]

{"sheet":"4. Données","index":4,"n_rows":114,"n_cols":10,"rows_kept":114,"cut":false,"hidden":false,"merged":[[80,2,84,2],[97,1,113,1],[98,2,99,2],[100,2,101,2],[112,2,113,2],[75,1,96,1],[77,2,78,2],[86,2,96,2],[103,2,108,2],[10,9,11,9],[39,2,42,2],[10,4,11,4],[12,1,47,1],[14,2,15,2],[21,2,23,2],[27,2,28,2],[29,2,30,2],[33,2,34,2],[36,2,38,2],[43,2,47,2],[1,3,4,8],[5,3,7,8],[10,6,10,8],[48,1,74,1],[10,2,11,2],[10,5,11,5],[24,2,25,2],[10,3,11,3],[50,2,52,2],[58,2,64,2],[67,2,72,2],[0,1,3,2],[5,1,5,2],[7,1,7,2],[73,2,74,2]]}
[null,"DÉPARTEMENT D’ÉVALUATION DES FORMATIONS"]
[]
[]
[]
[]
[null,{"$f":"'1. Présentation'!D11","v":0}]
[]
[null,"4. Données"]
[null,"Pour chacun des critères ci-dessous, indiquer une valeur caractérisant la formation pour chacune des années de référence. Si la donnée est invariante dans la période de référence, indiquer la valeur correspondant à la colonne 2020-2021."]
[]
[null,null,"Référentiel Hcéres - formations 2e cycle","Code de la donnée","Données qualitatives\n(À remplir à la place des consignes - 500 caractères maximum)","Données quantitatives","Valeur pour chaque année de la période de référence",null,null,"Analyse obligatoire des données quantitatives (prise en compte des recommandations du Hcéres, explication des évolutions, freins et leviers, mesures correctives) 500 caractères maximum"]
[null,null,null,null,null,null,"Année 2018-2019","Année 2019-2020","Année 2020-2021"]
[null,"Domaine 1 : La politique et la caractérisation de la formation","Référence 1 : La formation est en adéquation avec la stratégie de formation de l’établissement."]
[null,null,"C1. La formation s’inscrit dans les ambitions, les orientations pédagogiques et les priorités thématiques de l’établissement.","Document 1","Critère évalué sur la base du document n°1 ayant valeur de preuve "]
[null,null,"C2. La formation est construite en cohérence et complémentarité avec les autres formations du même cycle et en articulation avec celles des autres cycles avec lesquelles elle s’inscrit en continuum.","Document 1","Critère évalué sur la base du document n°1 ayant valeur de preuve "]
[null,null,null,"DQL 1-2","Cursus antérieur(s) construit(s) en continuum avec la formation"]
[null,null,"C3. La formation s’assure de la réalité et de la valeur ajoutée de ses partenariats académiques locaux, régionaux et nationaux.","DQL 1-3","Principaux éléments de collaboration dans le cadre de parcours construits en partenariats (existence d'une équipe pédagogique commune, d'enseignements communs, de modalités de pilotage commun de la formation)"]
[null,null,"C4. La formation identifie l’apport de la pluridisciplinarité et de l’interdisciplinarité à sa finalité.","DQL 1-4","Principaux constituants de la pluridiscplinarité et/ou de l'interdisciplinarité dans la formation (disciplines, dispositifs, exemples d'enseignements ou de projets)."]
[null,null,"C5. La formation intègre les enjeux du développement durable.","DQL 1-5","Compétences visées, modalités de formation (enseignements dédiés, projets, etc.)"]
[null,null,"C6. La formation s’appuie sur les actions menées et sur les moyens obtenus dans le cadre de l’initiative d’excellence et des projets connexes dépendant du PIA, pour dynamiser son contenu et ses dispositifs.","DQL-1-6","Dispositifs  financés par l'initiative d'excellence (parcours, heures d'enseignement, écoles d'été, etc.)"]
[null,null,"Référence 2 : La formation est ouverte à l’international en cohérence avec les priorités définies par l’établissement."]
[null,null,"C1. La formation développe une offre spécifique à l'international en s’assurant de la réalité et de la valeur ajoutée de ses partenariats internationaux.","DQL 2-1a","Liste des parcours européens et internationaux (dont Erasmus Mundus), délocalisés, doubles diplômes"]
[null,null,null,"DQL 2-1b","Principaux éléments de collaboration dans le cadre de parcours construits en partenariats internationaux (équipe pédagogique commune, mobilité, enseignements communs, modalités de pilotage commun de la formation)"]
[null,null,null,"DQT 2-1",null,"Nombre d'étudiants inscrits dans l'offre spécifique à international"]
[null,null,"C2. La formation inclut des mobilités entrantes et sortantes des étudiants, et bénéficie d'un soutien y compris financier, à cet effet.","DQT 2-2a",null,"Nombre d'étudiants ayant bénéficié d'une mobilité sortante"]
[null,null,null,"DQT 2-2b",null,"Nombre d'étudiants ayant bénéficié d'une mobilité entrante"]
[null,null,"Référence 3 : La formation bénéficie d’un adossement à la recherche."]
[null,null,"C1. La formation intègre une formation à et par la recherche adaptée à sa finalité. ","DQL 3-1","Choix faits en matière de formation à la reccherche (enseignements théoriques, méthodologie, missions ou stages recherche, écrit académique, etc.)","."]
[null,null,null,"DQT 3-1",null,"Nombre d'heures de formation à et par la recherche"]
[null,null,"C2. Des enseignants-chercheurs et chercheurs des disciplines de la formation participent aux enseignements.","DQT 3-2a",null,"Nombre d'enseignants-chercheurs et de chercheurs intervenant dans la formation"]
[null,null,null,"DQT 3-2b",null,"Nombre d'heures étudiant assurées par des enseignants-chercheurs et des chercheurs dans la formation"]
[null,null,"C3. La formation et les unités de recherche auxquelles elle est adossée mettent en place un dispositif d’accueil, d’accompagnement et de formation par la recherche des étudiants.","DQL 3-3","Accueil d'étudiants en UR (UR concernée(s), dispositif, résultats concrets dont nombre d'étudiants accueillis)"]
[null,null,"C4. La formation inclut une formation à l’intégrité scientifique et à la déontologie.","DQL 3-4","Dispositif de formation à l'intégrité scientifique et à la déontologie (enseignements, sensibilisation, etc.)"]
[null,null,"C5. La formation à et par la recherche de la formation s’appuie sur les services de documentation, en matière d’acquisition de ressources, d’accès à celles-ci et de contribution aux contenus de formation auxquels sont associés les personnels des services de documentation.","DQT 3-5a",null,"Nombre d'heures étudiant consacrées à la méthodologie informationnelle et documentaire"]
[null,null,null,"DQT 3-5b",null,"Nombre d'heures étudiant assurées par des personnels de la documentation"]
["IC17",null,"Référence 4 : La formation entretient des relations avec le monde socio-économique et intègre des éléments de professionnalisation."]
[null,null,"C1. La formation prend en compte les besoins socio-économiques du territoire pour définir ses débouchés, sa finalité et ses contenus, en cohérence avec sa fiche RNCP, et elle associe les acteurs socio-économiques à cette démarche.","DQL 4-1","Modalités de prise en compte des besoins socio-économiques du territoire et apport à la formation de ses partenariats socio-économiques"]
[null,null,null,"DQT 4-1a",null,"Nombre de professionnels intervenant dans la formation"]
[null,null,null,"DQT 4-1b",null,"Nombre d'heures étudiant des enseignements fondamentaux de la formation assurées par des professionnels"]
[null,null,"C2. La formation définit sa politique en matière d’alternance et de formation continue en lien avec le positionnement et la stratégie de l’établissement.","DQL 4-2","Choix faits en matière d'ouverture à la formation continue ou à l'alternance (offre accréditée, offre spécifique,) et de partenaires ciblés"]
[null,null,null,"DQT 4-2a",null,"Nombre de parcours spécifiques à la formation continue"]
[null,null,null,"DQT 4-2b",null,"Nombre de parcours ouverts à l'alternance"]
[null,null,null,"DQT 4-2c",null,"Nombre de blocs de connaissances et de ompétences ouverts à la formation continue"]
[null,null,"C3. La formation prépare à l’insertion professionnelle et à l’entrepreneuriat au cours du cursus et elle fait intervenir à cette fin des acteurs socio-économiques.","DQT 4-3a",null,"Nombre de semaines de stage obligatoire dans le cursus"]
[null,null,null,"DQT 4-3b",null,"Nombre d'ECTS accordés au(x) stage(s) dans le cursus"]
[null,null,null,"DQT 4-3c",null,"Nombre d'ECTS accordés au(x) projets tutoré(s) dans le cursus"]
[null,null,null,"DQT 4-3d",null,"Nombre d'ECTS de formation à l'entrepreneuriat"]
[null,null,null,"DQL 4-3","Modalités de préparation à l'insertion professionnelle dans la maquette ou hors maquette de formation (hors stages, projets, entrepreneuriat)"]
[null,"Domaine 2 : L’organisation pédagogique de la formation","Référence 5 : La formation met en œuvre les méthodes pédagogiques adaptées aux compétences visées."]
[null,null,"C1. La formation définit et met en œuvre ses objectifs, ses contenus, ses méthodes pédagogiques et ses acquis d’apprentissage dans une approche favorisant l’alignement pédagogique. Elle appuie sa démarche sur une approche programme et sur une approche par compétences.","Document 2","Critère évalué sur la base du document n°2 ayant valeur de preuve"]
[null,null,"C2. La formation valorise les compétences acquises dans le cursus ou en dehors de celui-ci.","DQL 5-2"]
[null,null,null,"DQT 5-2a",null,"Nombre d'étudiants obtenant une certification PIX dans le niveau ciblé"]
[null,null,null,"DQT 5-2b",null,"Nombre d'étudiants ayant un compte de e-portfolio"]
[null,null,"Référence 6 : La formation développe et diversifie ses pratiques pédagogiques."]
[null,null,"C1. La formation diversifie ses méthodes pédagogiques pour favoriser la réussite de ses étudiants, le cas échéant en participant aux actions prévues par l’initiative d’excellence ou des projets connexes dépendant du PIA.","DQL 6-1","Exemples de méthodes pédagogiques diversifiées utilisées dans les cours. Dispositifs soutenus par le PIA"]
[null,null,"C2. La formation propose des modalités d’enseignement variées, dont des modalités entièrement ou partiellement à distance, pour flexibiliser l’accueil de ses différents publics.","DQT 6-2",null,"Nombre d'heures étudiant pouvant être suivies partiellement ou entièrement à distance"]
[null,null,"C3. La formation s’appuie sur des types variées d’espaces d’enseignement, en cohérence avec ses objectifs et ses modalités pédagogiques.","DQL 6-3","Typologie des salles utilisées pour les enseignements et les activités en cohérence avec les modalités et les méthodes pédagogiques de la formation"]
["y",null,"Référence 7 : Les contenus et les dispositifs de la formation sont adaptés pour permettre son ouverture à l’international."]
[null,null,"C1.  La formation permet à l’étudiant d’acquérir des compétences linguistiques utiles à son insertion professionnelle ou à sa poursuite d’études, en particulier à l'international, à travers l’enseignement des langues étrangères et en langue étrangère, et à travers des certifications.","DQL 7-1a","Langue(s) obligatoire(s), relations entre le choix de langue(s) enseignée(s) et les partenariats internationaux ciblés"]
[null,null,null,"DQL 7-1b","Langue(s) proposée(s) aux choix, relations entre le choix de langue(s) enseignée(s) et les partenariats internationaux ciblés"]
[null,null,null,"DQT 7-1a",null,"Nombre d’heures étudiant de français langue étrangère (FLE)"]
[null,null,null,"DQT 7-1b",null,"Nombre d’heures étudiant de langue étrangère"]
[null,null,null,"DQT 7-1c",null,"Nombre d’heures étudiant de la ou des disciplines enseignée(s) en langue étrangère"]
[null,null,null,"DQL 7-1c","Certification(s) proposée(s) et niveau(x) ciblé(s)"]
[null,null,null,"DQT 7-1d",null,"Nombre d'étudiants obtenant une certification en langue étrangère dans le niveau ciblé"]
[null,null,"C2. La formation inclut, outre les langues étrangères, des dispositifs de préparation à la mobilité entrante et sortante de ses étudiants.","DQL 7-2","Dispositifs de préparation à la mobilité (préparation d'une candidature, interculturalité, immersion, etc.)"]
[null,null,"Référence 8 : Les contenus et les dispositifs de la formation sont adaptés aux publics de la formation continue et en alternance."]
[null,null,"C1. La formation permet l’accès effectif des publics de formation continue ou en alternance par la mise en place de modalités adaptées d’accueil, d’encadrement et d’ingénierie de formation.","DQT 8-1a",null,"Nombre de stagiaires de la formation continue"]
[null,null,null,"DQT 8-1b",null,"Nombre d'alternants (contrats d'apprentissage)"]
[null,null,null,"DQT 8-1c",null,"Nombre d'alternants (contrats de professionnalisation)"]
[null,null,null,"DQT 8-1d",null,"Nombre de VAE totales délivrées"]
[null,null,null,"DQT 8-1e",null,"Nombre d'inscrits ayant bénéficié d'une VAE partielle "]
[null,null,null,"DQT 8-1f",null,"Nombre de VAP accordées"]
[null,null,"C2. La formation développe dans son périmètre une ingénierie de formation adaptée à l’offre spécifique proposée aux publics de la formation continue.","DQT 8-2",null,"Nombre d'inscrits dans l'offre spécifique proposée aux publics de la formation continue"]
[null,null,null,"DQL 8-2","DU, DIU ou certificats universitaires dans le périmètre de la formation"]
[null,"Domaine 3 : L’attractivité, la performance et la pertinence de la formation","Référence 9 : La formation développe et suit son attractivité auprès de ses différents publics."]
[null,null,"C1. Les dispositifs d'information sur la formation, mis en place par l’établissement ou la formation, contribuent à améliorer la connaissance et l’attractivité de celle-ci, ainsi que la qualité de l’orientation et du recrutement de ses différents types de publics.","DQL 9-1","Evolution du nombre d'admis et d'inscrits ciblés par les dispositifs d'information-orientation"]
[null,null,"C2. La formation mesure son attractivité en suivant et en analysant l’évolution des candidatures et des inscriptions des différents types de publics.","DQT 9-2a",null,"Nombre de candidats (1ère année du cycle)*"]
[null,null,null,"DQT 9-2b",null,"Nombre d'admis (1ère année du cycle)*"]
[null,null,"Référence 10 : La formation suit la réussite de ses étudiants."]
[null,null,"C1. La formation suit l’évolution des taux de réussite et analyse l’impact sur ceux-ci de ses dispositifs d’accompagnement, d’aide à la réussite et d’aménagement des cursus.","DQL 10-1","Analyse qualitative des résultats des dispositifs d’accompagnement, d’aide à la réussite et d’aménagement des cursus"]
[null,null,null,"DQT 10-1a",null,"Nombre d’étudiants n'ayant validé aucun ECTS (1ère année du cycle)*"]
[null,null,null,"DQT 10-1b",null,"Nombre d’étudiants ayant validé tous les ECTS des enseignements auxquels ils sont inscrits (1ère année du cycle)*"]
[null,null,null,"DQT 10-1c",null,"Nombre d’étudiants ayant validé tous les ECTS des enseignements auxquels ils sont inscrits (2e année du cycle)*"]
[null,null,null,"DQT 10-1d",null,"Nombre d'étudiants ayant validé tous les ECTS des enseignements auxquels ils sont inscrits (3e année du cycle, DFA en sciences médicales)"]
[null,null,"Référence 11 : La formation analyse l’insertion professionnelle et la poursuite d’études de ses diplômés au regard de ses objectifs et du marché de l’emploi."]
[null,null,"C1. La formation analyse la qualité de l’insertion professionnelle et la nature des poursuites d’études à partir des enquêtes de suivi de l’insertion professionnelle et de cohortes.","DQL 11-1","Existence d'une enquête d'insertion à 12 moins avec résultats saillants (taux d'insertion)"]
[null,null,null,"Document 3","Critère évalué sur la base du document n°3 ayant valeur de preuve "]
[null,null,null,"DQT 11-1a",null,"Taux de réponse des enquêtes d'insertion*"]
[null,null,null,"DQT 11-1b",null,"Nombre de diplômés*"]
[null,null,null,"DQT 11-1c",null,"Nombre de diplômés en poursuite d’études en année N+1*"]
[null,null,null,"DQT 11-1d",null,"Nombre de diplômés en emploi 18 mois après le diplôme*"]
[null,null,null,"DQT 11-1e",null,"Nombre de diplômés en emploi 30 mois après le diplôme*"]
[null,null,null,"DQT 11-1f",null,"Nombre de diplômés en recherche d’emploi 30 mois après le diplôme sans poursuite dans l’enseignement supérieur*"]
[null,null,null,"DQT 11-1g",null,"Nombre d'étudiants poursuivant leur cursus en année N+1 en niveau supérieur dans le même établissement*"]
[null,null,null,"DQT 11-1h",null,"Nombre d'étudiants poursuivant leur cursus en année N+1 en niveau supérieur dans un autre établissement* (si disponible)"]
[null,null,null,"DQT 11-1i",null,"Nombre d'étudiants poursuivant leur cursus en année N+1 dans un autre cursus de niveau équivalent* (si disponible)"]
[null,"Domaine 4 : Le pilotage et l'amélioration continue de la formation","Référence 12 : La formation dispose des moyens nécessaires pour lui permettre d’atteindre ses objectifs."]
[null,null,"C1. La politique de ressources humaines de l'établissement tient compte des besoins d’encadrement de la formation.","DQT 12-1a",null,"Nombre total d'enseignants (enseignants et enseignants-chercheurs) permanents intervenant dans la formation"]
[null,null,null,"DQT 12-1b",null,"Nombre total d'enseignants temporaires (ex. ATER, contractuels, vacataires) intervenant dans la formation"]
[null,null,"C2. Des membres de l’équipe pédagogique de la formation effectuent des mobilités sortantes et créent les conditions pour l’accueil d’enseignants invités. ","DQT 12-2a",null,"Nombre de membres de l'équipe pédagogique ayant bénéficié d'une mobilité à l'international"]
[null,null,null,"DQT 12-2b",null,"Nombre de professeurs invités intervenant dans la formation"]
[null,null,"C3. Des membres de l’équipe pédagogique bénéficient d'un soutien, d'un accompagnement et/ou de formations au métier d'enseignant et assurent l’essaimage de leurs pratiques pédagogiques au sein de l’équipe.","DQL 12-3","Exemples de projets pédagogiques soutenus par l'établissement (ex. BQR), de thèmes de congés pour projets pédagogiques (CPP) portés par des enseignants intervenant dans la formation. Exemples de formations ou d'accompagnement reçus par des enseignants intervenant dans la formation. Exemples de participation à des partages d'expériences"]
[null,null,"C4. La formation s'appuie sur des outils et des indicateurs de mesure du coût des formations pour suivre et maîtriser sa soutenabilité.","DQT 12-4a",null,"Nombre d'heures étudiant de la formation (1ère année du cycle)"]
[null,null,null,"DQT 12-4b",null,"Nombre d'heures étudiant de la formation (2e année du cycle)"]
[null,null,null,"DQT 12-4c",null,"Nombre d'heures étudiant de la formation (3e année du cycle, DFA en sciences médicales)"]
[null,null,null,"DQT 12-4d",null,"Nombre d'heures équivalent TD de la formation (1ère année du cycle)"]
[null,null,null,"DQT 12-4e",null,"Nombre d'heures équivalent TD de la formation (2e année du cycle)"]
[null,null,null,"DQT 12-4f",null,"Nombre d'heure équivalent TD de la formation (3e année du cycle, DFA en sciences médicales)"]
["y",null,"C5. L’attribution des compétences et le degré de subsidiarité mis en œuvre dans le domaine du pilotage des formations de l'établissement contribuent à un fonctionnement cohérent et efficace de la formation.","DQL 12-5","Éléments quantitatifs et qualitatifs fournis par l'établissement sur lesquels s'appuie le pilotage de la formation. Éléments quantitatifs et qualitiatifs élaborés par la formation pour son pilotage"]
[null,null,"Référence 13 : La formation définit un processus d’évaluation interne permettant de la faire évoluer dans une démarche d’amélioration continue."]
[null,null,"C1. La formation organise l’évaluation des enseignements et de la formation par les étudiants et prend en compte les résultats de cette évaluation dans son évolution.","DQT 13-1",null,"Nombre d'étudiants répondant aux questionnaires d'évaluation"]
[null,null,"C2. La formation dispose d’un conseil de perfectionnement comprenant notamment des étudiants et des personnalités extérieures à la formation et qui se réunit périodiquement pour analyser les résultats de la formation et contribuer à son évaluation interne.","DQL 13-2","Principales évolutions de la formation proposées par le conseil de perfectionnement dans la période évaluée "]
[null,null,null,"Document 4","Critère évalué sur la base du document n°4 ayant valeur de preuve "]

{"sheet":"Nomenclature","index":5,"n_rows":645,"n_cols":29,"rows_kept":645,"cut":false,"hidden":true,"merged":[]}
["Établissements","Codes UAI",null,"Agrosup_Dijon","Aix_Marseille_Université_AMU","Avignon_Université","Université_de_Bourgogne_UB","Comue_Bourgogne_Franche_Comté","Università_di_Corsica_Pasquale_Paoli","Université_Côte_d_Azur","École_centrale_de_Marseille ","EURECOM","Université_de_Franche_Comté_UFC_U_Besançon","Université_de_Haute_Alsace_UHA","Université_de_Lorraine_UL","Université_de_la_Nouvelle_Calédonie_UNC","Université_d_Orléans","Université_de_la_Polynésie_française_UPF","Université_de_Reims_Champagne_Ardenne_URCA","Université_de_Strasbourg_Unistra","Université_de_technologie_de_Belfort_Montbéliard_UTBM","Université_de_technologie_de_Troyes_UTT","Université_de_Toulon","Université_de_Tours",null,"Libellé établissement","Intitulé indiqué dans l'arrêté d'accréditation","Numéro d'accréditation de la mention","Type de formation indiqué dans l'arrêté d'accréditation"]
["Agrosup_Dijon","0212198A",{"$f":"D3","v":1},"Agrosciences, Environnement, Territoires, Paysages, Forêt (AETPF)","Diplôme de formation approfondie en sciences médicales (DFASM)","Culture et communication","Diplôme de formation approfondie en sciences médicales (DFASM)","Automatique, robotique","Droit des affaires ","Diplôme de formation approfondie en sciences médicales (DFASM)","Ingénierie des systèmes complexes","Informatique","Diplôme de formation approfondie en sciences médicales (DFASM) ","Arts, lettres et civilisations","Diplôme de formation approfondie en sciences médicales (DFASM)","Civilisations, cultures et sociétés","Agrosciences, environnement, territoires, paysage, forêt  ","Biodiversité, Écologie, Évolution","Diplôme de formation approfondie en sciences médicales (DFASM)","Diplôme de formation approfondie en sciences médicales (DFASM)","Management","Ingénierie des systèmes\ncomplexes","Chimie et sciences des matériaux","Diplôme de formation approfondie en sciences médicales (DFASM)",1,"Agrosup_Dijon","Agrosciences, Environnement, Territoires, Paysages, Forêt (AETPF)",20190394,"Master"]
["Aix_Marseille_Université_AMU","0134009M",{"$f":"E98","v":96},1,"Diplôme de formation approfondie en sciences odontologiques (DFASO)","Droit","Diplôme de formation approfondie en sciences pharmaceutiques (DFASP)","Biologie de la conservation","Droit des collectivités territoriales","Diplôme de formation approfondie en sciences odontologiques (DFASO)",1,"Réseaux et télécommunication","Diplôme de formation approfondie en sciences pharmaceutiques (DFASP)","Contrôle de gestion et audit organisationnel","Diplôme de formation approfondie en sciences odontologiques (DFASO)","Droit","Automatique, robotique  ","Droit privé","Diplôme de formation approfondie en sciences odontologiques (DFASO)","Diplôme de formation approfondie en sciences odontologiques (DFASO)",1,"Risques et environnement","Civilisations, cultures et sociétés","Diplôme de formation approfondie en sciences pharmaceutiques (DFASP)",{"$f":"COUNTA(Z3:Z98)","v":96},"Aix_Marseille_Université_AMU","Diplôme de formation approfondie en sciences médicales (DFASM)","NOACCRR2C_02","DFA"]
["Avignon_Université","0840685N",{"$f":"F15","v":13},null,"Diplôme de formation approfondie en sciences pharmaceutiques (DFASP)","Français langue étrangère","Diplôme d’État d’infirmier en pratique avancée (IPA)","Chimie moléculaire","Droit du numérique","Diplôme d’État d’infirmier en pratique avancée (IPA)",null,{"$f":"COUNTA(EURECOM)","v":2},"Diplôme d’État d’infirmier en pratique avancée (IPA)","Droit  ","Diplôme de formation approfondie en sciences pharmaceutiques (DFASP)","Gestion de l'environnement","Chimie moléculaire  ","Droit public","Diplôme de formation approfondie en sciences pharmaceutiques (DFASP)","Diplôme de formation approfondie en sciences pharmaceutiques (DFASP)",null,2,"Création numérique","Diplôme d’État d’infirmier en pratique avancée (IPA)",null,"Aix_Marseille_Université_AMU","Diplôme de formation approfondie en sciences odontologiques (DFASO)","NOACCRR2C_03","DFA"]
["Université_de_Bourgogne_UB","0211237F",{"$f":"G51","v":49},null,"Diplôme d’État d’infirmier en pratique avancée (IPA)","Géographie, aménagement, environnement et développement","Diplôme d'État de sage-femme","Culture et communication","Droit notarial","Diplôme d'État de sage-femme",null,null,"Diplôme d'État de sage-femme","Économie sociale et solidaire","Diplôme d’État d’infirmier en pratique avancée (IPA)","Gestion des territoires et développement local","Comptabilité - contrôle - audit  ","Langues et sociétés","Diplôme d’État d’infirmier en pratique avancée (IPA)","Diplôme d'État de sage-femme",null,null,"Droit des affaires","Diplôme d'État de sage-femme",null,"Aix_Marseille_Université_AMU","Diplôme de formation approfondie en sciences pharmaceutiques (DFASP)","NOACCRR2C_04","DFA"]
["Comue_Bourgogne_Franche_Comté","0251985X",{"$f":"H14","v":12},null,"Diplôme d'État de sage-femme","Histoire","Administration économique et sociale","Economie de l'environnement, de l'énergie\net des transports ","Économie appliquée","Biobanques et gestion des données complexes",null,null,"Administration publique","Electronique, énergie électrique, automatique","Diplôme d'État de sage-femme","Management et administration des entreprises","Contrôle de gestion et audit organisationnel  ","Management et commerce international","Diplôme d'État de sage-femme","Actuariat ",null,null,"Droit notarial","Arts, lettres et civilisations",null,"Aix_Marseille_Université_AMU","Diplôme d’État d’infirmier en pratique avancée (IPA)","NOACCRR2C_05","Diplôme d'État"]
["Università_di_Corsica_Pasquale_Paoli","7200664J",{"$f":"I21","v":19},null,"Acoustique et musicologie","Informatique","Archéologie, sciences pour l'archéologie","Humanités numériques","Gestion de l'environnement","Biocontrôle pour la santé des plantes",null,null,"Arts de la scène et du spectacle vivant","Entrepreneuriat et management de\nprojets","Administration économique et sociale","Méthodes informatiques appliquées à la gestion des entreprises - MIAGE","Droit privé  ",{"$f":"COUNTA(Université_de_la_Polynésie_française_UPF)","v":5},"Analyse et politique économique","Administration économique et sociale",null,null,"Droit public","Biodiversité, écologie et évolution",null,"Aix_Marseille_Université_AMU","Diplôme d'État de sage-femme","NOACCRR2C_06","Diplôme d'État"]
["Université_Côte_d_Azur","0062126D",{"$f":"J60","v":58},null,"Administration et liquidation d'entreprises en difficulté","Innovation, entreprise et société","Biodiversité, écologie et évolution","Intelligence économique","Histoire","Gestion des risques environnementaux",null,null,"Chimie ","Histoire, civilisations, patrimoine  ","Agrosciences, environnement, territoires, paysage, forêt","Science de la durabilité - Sustainability Science","Droit public  ",null,"Arts de la scène et du spectacle vivant  ","Administration publique ",null,null,"Droit social","Biologie, agrosciences",null,"Aix_Marseille_Université_AMU","Acoustique et musicologie",20180580,"Master"]
["École_centrale_de_Marseille ","0133774G",{"$f":"K3","v":1},null,"Anthropologie","Langues et sociétés","Biologie-santé","Mathématiques physiques","Information, communication","Management de la filière arômes et parfums",null,null,"Comptabilité - contrôle - audit","Information, communication","Arts",{"$f":"COUNTA(Université_de_la_Nouvelle_Calédonie_UNC)","v":7},"Droit social  ",null,"Biologie, agrosciences","Analyse et politique économique ",null,null,"Economie du développement","Biologie-santé",null,"Aix_Marseille_Université_AMU","Administration et liquidation d'entreprises en difficulté",20180588,"Master"]
["EURECOM","0062022R",{"$f":"L4","v":2},null,"Archéologie, sciences pour l'archéologie","Management sectoriel","Chimie","Physique fondamentale et applications","Informatique","Modélisation des systèmes neuronaux et cognitifs",null,null,"Design","Innovation, entreprise et société  ","Audiovisuel, médias interactifs numériques, jeux",null,"Économétrie, statistiques  ",null,"Biologie-santé","Archéologie, sciences pour l'archéologie",null,null,"Finance","Chimie et sciences des matériaux",null,"Aix_Marseille_Université_AMU","Anthropologie",20180619,"Master"]
["Université_de_Franche_Comté_UFC_U_Besançon","0251215K",{"$f":"M46","v":44},null,"Arts","Sciences et technologie de l'agriculture, de l'alimentation et de l'environnement","Comptabilité • contrôle • audit","Sciences du médicament et des produits de santé","Ingénierie de la santé","Science, conservation & valorisation des ressources marines",null,null,"Droit de l'entreprise","Langues étrangères appliquées","Chimie",null,"Économie internationale",null,"Biomécanique","Arts de la scène et du spectacle vivant",null,null,"Information, communication","Contrôle de gestion et audit organisationnel ",null,"Aix_Marseille_Université_AMU","Archéologie, sciences pour l'archéologie",20180620,"Master"]
["Université_de_Haute_Alsace_UHA","0681166Y",{"$f":"N17","v":15},null,"Biodiversité, écologie et évolution","Sciences sociales","Contrôle de gestion et audit organisationnel","Sciences et technologie de l'agriculture, de l'alimentation et de l'environnement","Justice, procès et procédures","Sciences des données et intelligence artificielle",null,null,"Droit des affaires","Marketing, vente","Cinéma et audiovisuel",null,"Géographie, aménagement, environnement et développement  ",null,"Calcul haute performance, simulation","Arts plastiques ",null,null,"Informatique","Droit de la santé ",null,"Aix_Marseille_Université_AMU","Arts",20180581,"Master"]
["Université_de_Lorraine_UL","0542493S",{"$f":"O84","v":82},null,"Bio-géosciences","Théâtre","Direction de projets ou établissements culturels","Systèmes de calculs embarqués","Langues étrangères appliquées","Smart-Ed Tech, cocréativité et numérique pour l’innovation éducative",null,null,"Droit du numérique","Mécanique","Civilisations, cultures el sociétés",null,"Histoire  ",null,"Chimie et sciences du vivant","Biologie-santé ",null,null,"Ingénierie des systèmes complexes","Droit de l'entreprise",null,"Aix_Marseille_Université_AMU","Biodiversité, écologie et évolution",20180638,"Master"]
["Université_de_la_Nouvelle_Calédonie_UNC","9830445S",{"$f":"P9","v":7},null,"Bio-informatique","Traduction et interprétation","Droit des affaires",{"$f":"COUNTA(Comue_Bourgogne_Franche_Comté)","v":12},"Langues, littératures et civilisations étrangères et régionales","Sound design et musique à l'écran",null,null,"Economie de l'entreprise et des marchés","Méthodes informatiques appliquées à la\ngestion des entreprises - MIAGE","Comptabilité - contrôle - audit",null,"Informatique",null,"Comptabilité - contrôle - audit","Biotechnologies",null,null,"Justice, procès et procédures","Droit de l'environnement et de l'urbanisme",null,"Aix_Marseille_Université_AMU","Bio-géosciences",20180636,"Master"]
["Université_d_Orléans","0450855K",{"$f":"Q34","v":32},null,"Biologie intégrative et physiologie",13,"Droit notarial",null,"Lettres","Administration et liquidation d'entreprises en difficulté",null,null,"Energie","Risques et environnement","Contrôle de gestion et audit organisationnel",null,"Langues et sociétés  ",null,"Contrôle de gestion et audit organisationnel","Chimie",null,null,"Langues et sociétés","Droit du patrimoine",null,"Aix_Marseille_Université_AMU","Bio-informatique",20180637,"Master"]
["Université_de_la_Polynésie_française_UPF","9840349G",{"$f":"R7","v":5},null,"Biologie structurale, génomique",null,"Droit public",null,"Management","Arts",null,null,"Finance","Sciences et technologie de l'agriculture, de l'alimentation et de l'environnement","Design",null,"Langues étrangères appliquées  ",null,"Droit","Cinéma et audiovisuel ",null,null,"Lettres et Humanités","Droit européen ",null,"Aix_Marseille_Université_AMU","Biologie intégrative et physiologie",20180639,"Master"]
["Université_de_Reims_Champagne_Ardenne_URCA","0511296G",{"$f":"S54","v":52},null,"Biologie-santé",null,"Économie appliquée",null,"Management sectoriel","Chimie moléculaire",null,null,"Français langue étrangère",{"$f":"COUNTA(Université_de_Haute_Alsace_UHA)","v":15},"Droit civil",null,"Lettres",null,"Droit de l'entreprise","Civilisations, cultures et sociétés ",null,null,"Management","Droit international",null,"Aix_Marseille_Université_AMU","Biologie structurale, génomique",20180640,"Master"]
["Université_de_Strasbourg_Unistra","0673021V",{"$f":"T86","v":84},null,"Chimie",null,"Electronique, énergie électrique, automatique",null,"Risques et environnement","Civilisations, cultures et sociétés",null,null,"Génie mécanique",null,"Droit des affaires",null,"Management des systèmes d'information ",null,"Droit notarial","Comptabilité - contrôle - audit",null,null,"Management et administration des entreprises","Droit public",null,"Aix_Marseille_Université_AMU","Biologie-santé",20180641,"Master"]
["Université_de_technologie_de_Belfort_Montbéliard_UTBM","0900424X",1,null,"Cinéma et audiovisuel",null,"Finance",null,"Sciences de l'éducation","Comptabilité-contrôle-audit",null,null,"Géographie, aménagement, environnement et développement",null,"Droit fiscal",null,"Management et administration des entreprises  ",null,"Droit pénal et sciences criminelles","Démographie",null,null,"Marketing, vente","Economie de l'entreprise et des marchés",null,"Aix_Marseille_Université_AMU","Chimie",20180642,"Master"]
["Université_de_technologie_de_Troyes_UTT","0101060Y",{"$f":"V4","v":2},null,"Comptabilité - contrôle - audit",null,"Gestion des ressources humaines",null,"Sciences et technologie de l'agriculture, de l'alimentation et de l'environnement","Contrôle de gestion et audit organisationnel",null,null,"Géoressources, géorisques, géotechnique",null,"Droit notarial",null,"Marketing, vente  ",null,"Droit privé","Design ",null,null,"Mathématiques et applications ","Finance",null,"Aix_Marseille_Université_AMU","Cinéma et audiovisuel",20180582,"Master"]
["Université_de_Toulon","0830766G",{"$f":"W25","v":23},null,"Contrôle de gestion et audit organisationnel",null,"Histoire",null,{"$f":"COUNTA(Università_di_Corsica_Pasquale_Paoli)","v":19},"Droit des affaires",null,null,"Gestion de l'environnement",null,"Droit pénal et sciences criminelles",null,"Mathématiques appliquées, statistique",null,"Droit public","Didactique des langues ",null,null,"Monnaie, banque, finance, assurance","Français langue étrangère",null,"Aix_Marseille_Université_AMU","Comptabilité - contrôle - audit",20180589,"Master"]
["Université_de_Tours","0370800U",{"$f":"X48","v":46},null,"Direction de projets ou établissements culturels",null,"Histoire de l'art",null,null,"Droit international et droit européen ",null,null,"Gestion des ressources humaines",null,"Droit public",null,"Mécanique",null,"Économie appliquée","Droit ",null,null,"Sciences de la mer","Géographie, aménagement, environnement et développement",null,"Aix_Marseille_Université_AMU","Contrôle de gestion et audit organisationnel",20180590,"Master"]
[null,null,{"$f":"SUM(C2:C22)","v":644},null,"Droit de la santé",null,"Information, communication",null,null,"Droit notarial",null,null,"Histoire, civilisations, patrimoine",null,"Droit social",null,"Méthodes informatiques appliquées à la gestion des entreprises -  MIAGE",null,"Electronique, énergie électrique, automatique","Droit canonique ",null,null,"STAPS : entraînement et optimisation de la performance sportive","Gestion des ressources humaines",null,"Aix_Marseille_Université_AMU","Direction de projets ou établissements culturels",20180591,"Master"]
[null,null,null,null,"Droit de l'immobilier",null,"Informatique",null,null,"Droit privée",null,null,"Information, communication",null,"Économie appliquée",null,"Monnaie, banque, finance, assurance",null,"Génie civil","Droit de la propriété intellectuelle ",null,null,"Tourisme","Histoire",null,"Aix_Marseille_Université_AMU","Droit de la santé",20180593,"Master"]
[null,null,null,null,"Droit des affaires",null,"Justice, procès et procédures",null,null,"Droit public",null,null,"Informatique",null,"Économie de l'entreprise el des marchés",null,"Physique appliquée et ingénierie physique  ",null,"Géopolitique","Droit de l'environnement et de l'urbanisme",null,null,{"$f":"COUNTA(Université_de_Toulon)","v":23},"Histoire de l'art",null,"Aix_Marseille_Université_AMU","Droit de l'immobilier",20180592,"Master"]
[null,null,null,null,"Droit du numérique",null,"Langues étrangères appliquées",null,null,"Économie ",null,null,"Ingénierie des systèmes complexes",null,"Electronique, énergie électrique, automatique",null,"Physique fondamentale et applications  ",null,"Géoressources, géorisques, géotechnique","Droit des affaires",null,null,null,"Histoire, civilisations, patrimoine",null,"Aix_Marseille_Université_AMU","Droit des affaires",20180594,"Master"]
[null,null,null,null,"Droit fiscal",null,"Langues, littératures et civilisations étrangères et régionales",null,null,"Économie des organisations",null,null,"Justice, procès et procédures",null,"Energie",null,"Risques et environnement",null,"Gestion de production, logistique, achats","Droit des libertés ",null,null,null,"Humanités numériques",null,"Aix_Marseille_Université_AMU","Droit du numérique",20180595,"Master"]
[null,null,null,null,"Droit international et droit européen",null,"Lettres",null,null,"Electronique, énergie electrique, automatique",null,null,"Langues étrangères appliquées",null,"Entrepreneuriat et management de projets",null,"Sciences de la Terre et des planètes, environnement  ",null,"Gestion des ressources humaines","Droit du patrimoine ",null,null,null,"Journalisme",null,"Aix_Marseille_Université_AMU","Droit fiscal",20180596,"Master"]
[null,null,null,null,"Droit notarial",null,"Management",null,null,"Français langue étrangère",null,null,"Langues, littératures et civilisations étrangères et régionales",null,"Epistémologie, histoire des sciences et des techniques",null,"Sciences du langage",null,"Histoire","Droit européen ",null,null,null,"Justice, procès et procédures",null,"Aix_Marseille_Université_AMU","Droit international et droit européen",20180597,"Master"]
[null,null,null,null,"Droit pénal et sciences criminelles",null,"Management et administration des entreprises ",null,null,"Gestion de l'environnement",null,null,"Lettres et Humanités",null,"Ergonomie",null,"Sciences du vivant",null,"Informatique","Droit international ",null,null,null,"Langues et société",null,"Aix_Marseille_Université_AMU","Droit notarial",20180598,"Master"]
[null,null,null,null,"Droit privé",null,"Management sectoriel",null,null,"Gestion de patrimoine",null,null,"Management et administration des entreprises",null,"Études culturelles",null,"STAPS : activité physique adaptée et santé  ",null,"Ingénierie de conception","Droit notarial ",null,null,null,"Langues étrangères appliquées",null,"Aix_Marseille_Université_AMU","Droit pénal et sciences criminelles",20180621,"Master"]
[null,null,null,null,"Droit public",null,"Marketing, vente",null,null,"Gestion des ressources humaines",null,null,"Marketing, vente",null,"Études européennes et internationales",null,"STAPS : ingénierie et ergonomie de l'activité physique  ",null,"Intervention et développement social","Droit pénal et sciences criminelles ",null,null,null,"Langues, littératures et civilisations étrangères et régionales",null,"Aix_Marseille_Université_AMU","Droit privé",20180599,"Master"]
[null,null,null,null,"Droit social",null,"Mathématiques et applications",null,null,"Humanités et industries créatives",null,null,"Mathématiques",null,"Finance",null,"STAPS : management du sport ",null,"Langues et sociétés  ","Droit privé ",null,null,null,"lnfonmatique",null,"Aix_Marseille_Université_AMU","Droit public",20180600,"Master"]
[null,null,null,null,"Économie",null,"Monnaie, banque, finance, assurance",null,null,"Information, communication",null,null,"Mathématiques appliquées, statistique",null,"Français langue étrangère",null,{"$f":"COUNTA(Université_d_Orléans)","v":32},null,"Langues, littératures et civilisations étrangères et régionales","Droit public ",null,null,null,"Management des PME-PMI",null,"Aix_Marseille_Université_AMU","Droit social",20180601,"Master"]
[null,null,null,null,"Économie de l'entreprise et des marchés",null,"Musicologie",null,null,"Informatique ",null,null,"Mécanique",null,"Génie civil",null,null,null,"Lettres et Humanités","Droit social ",null,null,null,"Management et administration des entreprises",null,"Aix_Marseille_Université_AMU","Économie",20180602,"Master"]
[null,null,null,null,"Économie du droit",null,"Nutrition et sciences des aliments",null,null,"Ingénierie de la santé",null,null,"Philosophie",null,"Génie des procédés et des bio-procédés",null,null,null,"Management et administration des entreprises","Epistémologie, histoire des sciences et des techniques",null,null,null,"Marketing, vente",null,"Aix_Marseille_Université_AMU","Économie de l'entreprise et des marchés",20180603,"Master"]
[null,null,null,null,"Electronique, énergie électrique, automatique",null,"Philosophie",null,null,"Innovation, entreprise et société",null,null,"Physique",null,"Géographie, aménagement, environnement et développement",null,null,null,"Management sectoriel","Ethique ",null,null,null,"Mathématiques",null,"Aix_Marseille_Université_AMU","Économie du droit",20180604,"Master"]
[null,null,null,null,"Études culturelles",null,"Physique",null,null,"Langues étrangères appliquées",null,null,"Psychologie clinique, psychopathologie et psychologie de la santé",null,"Gestion de l'environnement",null,null,null,"Marketing, vente","Ethnologie",null,null,null,"Philosophie",null,"Aix_Marseille_Université_AMU","Electronique, énergie électrique, automatique",20180643,"Master"]
[null,null,null,null,"Études européennes et internationales",null,"Psychologie",null,null,"Langues littératures et civilisations étrangères et régionales ",null,null,"Santé",null,"Gestion de production, logistique, achats",null,null,null,"Mathématiques et applications","Études européennes et internationales",null,null,null,"Physique fondamentale et applications",null,"Aix_Marseille_Université_AMU","Études culturelles",20180622,"Master"]
[null,null,null,null,"Finance",null,"Sciences de la Terre et des planètes, environnement",null,null,"Lettres",null,null,"Sciences de l'eau",null,"Gestion des ressources humaines",null,null,null,"Monnaie, banque, finance, assurance","Finance",null,null,null,"Psychologie",null,"Aix_Marseille_Université_AMU","Études européennes et internationales",20180623,"Master"]
[null,null,null,null,"Génie des procédés et des bio-procédés",null,"Sciences de la vigne et du vin",null,null,"Management",null,null,"Sciences du langage",null,"Histoire, civilisations, patrimoine",null,null,null,"Patrimoine et musées","Génie industriel ",null,null,null,"Santé publique",null,"Aix_Marseille_Université_AMU","Finance",20180605,"Master"]
[null,null,null,null,"Génie mécanique",null,"Sciences de l'éducation",null,null,"Management et administration des entreprises",null,null,"Sociologie",null,"Information, communication",null,null,null,"Philosophie","Géographie, aménagement, environnement et développement",null,null,null,"Sciences de l'eau",null,"Aix_Marseille_Université_AMU","Génie des procédés et des bio-procédés",20180645,"Master"]
[null,null,null,null,"Géographie, aménagement, environnement et développement",null,"Sciences du langage",null,null,"Management et commerce international ",null,null,"STAPS : activité physique adaptée et santé ",null,"Informatique",null,null,null,"Physique appliquée et ingénierie physique","Géomatique",null,null,null,"Sciences de l'éducation",null,"Aix_Marseille_Université_AMU","Génie mécanique",20180646,"Master"]
[null,null,null,null,"Gestion de l'environnement",null,"Sciences sociales",null,null,"Marketing, vente",null,null,"STAPS : entrainement et optimisation de la performance sportive",null,"Ingénierie de la santé",null,null,null,"Psychologie clinique, psychopathologie et psychologie de la santé","Gestion de production, logistique, achats",null,null,null,"Sciences du langage",null,"Aix_Marseille_Université_AMU","Géographie, aménagement, environnement et développement",20180624,"Master"]
[null,null,null,null,"Gestion de production, logistique, achats",null,"STAPS : activité physique adaptée et santé",null,null,"Mathématiques et applications",null,null,"STAPS : management du sport",null,"Ingénierie des systèmes complexes",null,null,null,"Psychologie sociale, du travail et des organisations","Histoire ",null,null,null,"Sciences du vivant",null,"Aix_Marseille_Université_AMU","Gestion de l'environnement",20180644,"Master"]
[null,null,null,null,"Gestion des ressources humaines",null,"STAPS : entraînement et optimisation de la performance sportive",null,null,"Méthodes informatiques appliquées à la gestion des entreprises -MIAGE",null,null,{"$f":"COUNTA(Université_de_Franche_Comté_UFC_U_Besançon)","v":44},null,"Journalisme",null,null,null,"Réseaux et télécommunication","Histoire de l'art ",null,null,null,"Sociologie",null,"Aix_Marseille_Université_AMU","Gestion de production, logistique, achats",20180606,"Master"]
[null,null,null,null,"Gestion des territoires et développement local",null,"STAPS : management du sport",null,null,"Monnaire, banque, finance, assurance",null,null,null,null,"Langues et sociétés",null,null,null,"Risques et environnement","Histoire du droit et des institutions ",null,null,null,"Urbanisme et amenagement",null,"Aix_Marseille_Université_AMU","Gestion des ressources humaines",20180607,"Master"]
[null,null,null,null,"Histoire de l'art",null,"Traduction et interprétation",null,null,"Physique fondamentale et application",null,null,null,null,"Langues étrangéres appliquées",null,null,null,"Sciences de la vigne et du vin","Informatique",null,null,null,{"$f":"COUNTA(Université_de_Tours)","v":46},null,"Aix_Marseille_Université_AMU","Gestion des territoires et développement local",20180608,"Master"]
[null,null,null,null,"Histoire du droit et des institutions",null,"Traitement du signal et des images ",null,null,"Psychologie ",null,null,null,null,"Lettres",null,null,null,"Sciences du langage","Innovation, entreprise et société ",null,null,null,null,null,"Aix_Marseille_Université_AMU","Histoire de l'art",20180625,"Master"]
[null,null,null,null,"Histoire, civilisations, patrimoine",null,"Transport, mobilités, réseaux",null,null,"Science politique",null,null,null,null,"Management",null,null,null,"Sciences du médicament et des produits de santé","Journalisme",null,null,null,null,null,"Aix_Marseille_Université_AMU","Histoire du droit et des institutions",20180609,"Master"]
[null,null,null,null,"Humanités médicales",null,{"$f":"COUNTA(G2:G50)","v":49},null,null,"Sciences cognitives",null,null,null,null,"Management de l'innovation",null,null,null,"STAPS : ingénierie et ergonomie de l'activité physique","Langues et sociétés ",null,null,null,null,null,"Aix_Marseille_Université_AMU","Histoire, civilisations, patrimoine",20180626,"Master"]
[null,null,null,null,"Immunologie",null,null,null,null,"Sciences de la terre et des planètes, environnement",null,null,null,null,"Management des systèmes d'information",null,null,null,"STAPS : management du sport","Langues, littératures et civilisations étrangères et régionales",null,null,null,null,null,"Aix_Marseille_Université_AMU","Humanités médicales",20180647,"Master"]
[null,null,null,null,"Information et médiation scientifique et technique",null,null,null,null,"Sciences du vivant",null,null,null,null,"Management et administration des entreprises",null,null,null,"Urbanisme et aménagement","Lettres ",null,null,null,null,null,"Aix_Marseille_Université_AMU","Immunologie",20180648,"Master"]
[null,null,null,null,"Information, communication",null,null,null,null,"Sciences et génie des matériaux",null,null,null,null,"Management public",null,null,null,{"$f":"COUNTA(Université_de_Reims_Champagne_Ardenne_URCA)","v":52},"Management ",null,null,null,null,null,"Aix_Marseille_Université_AMU","Information et médiation scientifique et technique",20180649,"Master"]
[null,null,null,null,"Informatique",null,null,null,null,"Sciences sociales",null,null,null,null,"Management sectoriel",null,null,null,null,"Management de l'innovation",null,null,null,null,null,"Aix_Marseille_Université_AMU","Information, communication",20180627,"Master"]
[null,null,null,null,"Ingénierie de la santé",null,null,null,null,"STAPS : activité physique adaptée et santé",null,null,null,null,"Marketing, vente",null,null,null,null,"Management et administration des entreprises",null,null,null,null,null,"Aix_Marseille_Université_AMU","Informatique",20180650,"Master"]
[null,null,null,null,"Instrumentation, mesure, métrologie",null,null,null,null,"STAPS : entrainement et optmisation de la performance sportive",null,null,null,null,"Master intégré franco-allemand en management",null,null,null,null,"Management et commerce international",null,null,null,null,null,"Aix_Marseille_Université_AMU","Ingénierie de la santé",20161056,"Master"]
[null,null,null,null,"Intervention et développement social",null,null,null,null,"STAPS : management du sport",null,null,null,null,"Mathématiques et applications",null,null,null,null,"Mathématiques et applications",null,null,null,null,null,"Aix_Marseille_Université_AMU","Instrumentation, mesure, métrologie",20180651,"Master"]
[null,null,null,null,"Journalisme",null,null,null,null,"Tourisme",null,null,null,null,"Mécanique",null,null,null,null,"Mondes médiévaux ",null,null,null,null,null,"Aix_Marseille_Université_AMU","Intervention et développement social",20180652,"Master"]
[null,null,null,null,"Langues et sociétés",null,null,null,null,{"$f":"COUNTA(Université_Côte_d_Azur)","v":58},null,null,null,null,"Méthodes informatiques appliquées à la gestion des entreprises -MIAGE",null,null,null,null,"Monnaie, banque, finance, assurance ",null,null,null,null,null,"Aix_Marseille_Université_AMU","Journalisme",20180628,"Master"]
[null,null,null,null,"Langues étrangères appliquées",null,null,null,null,null,null,null,null,null,"Microbiologie",null,null,null,null,"Musicologie ",null,null,null,null,null,"Aix_Marseille_Université_AMU","Langues et sociétés",20180583,"Master"]
[null,null,null,null,"Langues, littératures et civilisations étrangères et régionales ",null,null,null,null,null,null,null,null,null,"Nutrition et sciences des aliments",null,null,null,null,"Optique, image, vision, multimédia",null,null,null,null,null,"Aix_Marseille_Université_AMU","Langues étrangères appliquées",20180584,"Master"]
[null,null,null,null,"Lettres",null,null,null,null,null,null,null,null,null,"Philosophie",null,null,null,null,"Philosophie",null,null,null,null,null,"Aix_Marseille_Université_AMU","Langues, littératures et civilisations étrangères et régionales ",20180585,"Master"]
[null,null,null,null,"Management de l'innovation",null,null,null,null,null,null,null,null,null,"Physique",null,null,null,null,"Physique",null,null,null,null,null,"Aix_Marseille_Université_AMU","Lettres",20180586,"Master"]
[null,null,null,null,"Management et administration des entreprises",null,null,null,null,null,null,null,null,null,"Physique appliquée et ingénierie physique",null,null,null,null,"Physique appliquée et ingénierie physique",null,null,null,null,null,"Aix_Marseille_Université_AMU","Management de l'innovation",20180610,"Master"]
[null,null,null,null,"Management et commerce international",null,null,null,null,null,null,null,null,null,"Psychologie clinique, psychopathologie et psychologie de la santé",null,null,null,null,"Psychologie ",null,null,null,null,null,"Aix_Marseille_Université_AMU","Management et administration des entreprises",20180611,"Master"]
[null,null,null,null,"Management public",null,null,null,null,null,null,null,null,null,"Psychologie sociale, du travail et des organisations",null,null,null,null,"Psychologie : psychopathologie clinique psychanalytique",null,null,null,null,null,"Aix_Marseille_Université_AMU","Management et commerce international",20180612,"Master"]
[null,null,null,null,"Management stratégique",null,null,null,null,null,null,null,null,null,"Santé",null,null,null,null,"Psychologie sociale, du travail et des organisations",null,null,null,null,null,"Aix_Marseille_Université_AMU","Management public",20180613,"Master"]
[null,null,null,null,"Mathématiques appliquées, statistique",null,null,null,null,null,null,null,null,null,"Santé publique",null,null,null,null,"Qualité, hygiène, sécurité",null,null,null,null,null,"Aix_Marseille_Université_AMU","Management stratégique",20180614,"Master"]
[null,null,null,null,"Mathématiques et applications",null,null,null,null,null,null,null,null,null,"Science politique",null,null,null,null,"Relations internationales ",null,null,null,null,null,"Aix_Marseille_Université_AMU","Mathématiques appliquées, statistique",20180653,"Master"]
[null,null,null,null,"Mécanique",null,null,null,null,null,null,null,null,null,"Sciences cognitives",null,null,null,null,"Santé",null,null,null,null,null,"Aix_Marseille_Université_AMU","Mathématiques et applications",20180654,"Master"]
[null,null,null,null,"Méthodes informatiques appliquées à la gestion des entreprises - MIAGE",null,null,null,null,null,null,null,null,null,"Sciences de la Terre et des planètes, environnement",null,null,null,null,"Science politique",null,null,null,null,null,"Aix_Marseille_Université_AMU","Mécanique",20180656,"Master"]
[null,null,null,null,"Microbiologie",null,null,null,null,null,null,null,null,null,"Sciences de l'éducation",null,null,null,null,"Sciences de la Terre et des planètes, environnement",null,null,null,null,null,"Aix_Marseille_Université_AMU","Méthodes informatiques appliquées à la gestion des entreprises - MIAGE",20180616,"Master"]
[null,null,null,null,"Mode",null,null,null,null,null,null,null,null,null,"Sciences du langage",null,null,null,null,"Sciences de l'éducation",null,null,null,null,null,"Aix_Marseille_Université_AMU","Microbiologie",20180655,"Master"]
[null,null,null,null,"Nanosciences et nanotechnologies",null,null,null,null,null,null,null,null,null,"Sciences du vivant",null,null,null,null,"Sciences du langage",null,null,null,null,null,"Aix_Marseille_Université_AMU","Mode",20180615,"Master"]
[null,null,null,null,"Neurosciences",null,null,null,null,null,null,null,null,null,"Sciences et génie des matériaux",null,null,null,null,"Sciences du médicament et des produits de santé",null,null,null,null,null,"Aix_Marseille_Université_AMU","Nanosciences et nanotechnologies",20180657,"Master"]
[null,null,null,null,"Philosophie",null,null,null,null,null,null,null,null,null,"Sciences sociales",null,null,null,null,"Sciences du vivant",null,null,null,null,null,"Aix_Marseille_Université_AMU","Neurosciences",20180658,"Master"]
[null,null,null,null,"Physique",null,null,null,null,null,null,null,null,null,"Sociologie",null,null,null,null,"Sciences et génie des matériaux",null,null,null,null,null,"Aix_Marseille_Université_AMU","Philosophie",20180629,"Master"]
[null,null,null,null,"Psychologie",null,null,null,null,null,null,null,null,null,"STAPS : activité physique adaptée et santé ",null,null,null,null,"Sociologie ",null,null,null,null,null,"Aix_Marseille_Université_AMU","Physique",20180659,"Master"]
[null,null,null,null,"Qualité, hygiène, sécurité",null,null,null,null,null,null,null,null,null,"STAPS : ingénierie et ergonomie de l'activité physique",null,null,null,null,"STAPS : activité physique adaptée et santé",null,null,null,null,null,"Aix_Marseille_Université_AMU","Psychologie",20180630,"Master"]
[null,null,null,null,"Relations internationales",null,null,null,null,null,null,null,null,null,"Théologie catholique",null,null,null,null,"STAPS : entraînement et optimisation de la performance sportive",null,null,null,null,null,"Aix_Marseille_Université_AMU","Qualité, hygiène, sécurité",20180660,"Master"]
[null,null,null,null,"Réseaux et télécommunication",null,null,null,null,null,null,null,null,null,"Traitement automatique des langues",null,null,null,null,"Théologie catholique ",null,null,null,null,null,"Aix_Marseille_Université_AMU","Relations internationales",20180617,"Master"]
[null,null,null,null,"Santé",null,null,null,null,null,null,null,null,null,"Urbanisme et aménagement",null,null,null,null,"Théologie protestante ",null,null,null,null,null,"Aix_Marseille_Université_AMU","Réseaux et télécommunication",20180661,"Master"]
[null,null,null,null,"Santé publique",null,null,null,null,null,null,null,null,null,{"$f":"COUNTA(Université_de_Lorraine_UL)","v":82},null,null,null,null,"Traduction et interprétation",null,null,null,null,null,"Aix_Marseille_Université_AMU","Santé",20180662,"Master"]
[null,null,null,null,"Science politique",null,null,null,null,null,null,null,null,null,null,null,null,null,null,"Urbanisme et aménagement",null,null,null,null,null,"Aix_Marseille_Université_AMU","Santé publique",20180663,"Master"]
[null,null,null,null,"Sciences cognitives",null,null,null,null,null,null,null,null,null,null,null,null,null,null,{"$f":"COUNTA(Université_de_Strasbourg_Unistra)","v":84},null,null,null,null,null,"Aix_Marseille_Université_AMU","Science politique",20180618,"Master"]
[null,null,null,null,"Sciences de la mer",null,null,null,null,null,null,null,null,null,null,null,null,null,null,null,null,null,null,null,null,"Aix_Marseille_Université_AMU","Sciences cognitives",20180631,"Master"]
[null,null,null,null,"Sciences de la Terre et des planètes, environnement",null,null,null,null,null,null,null,null,null,null,null,null,null,null,null,null,null,null,null,null,"Aix_Marseille_Université_AMU","Sciences de la mer",20180664,"Master"]
[null,null,null,null,"Sciences de l'éducation",null,null,null,null,null,null,null,null,null,null,null,null,null,null,null,null,null,null,null,null,"Aix_Marseille_Université_AMU","Sciences de la Terre et des planètes, environnement",20180665,"Master"]
[null,null,null,null,"Sciences du langage",null,null,null,null,null,null,null,null,null,null,null,null,null,null,null,null,null,null,null,null,"Aix_Marseille_Université_AMU","Sciences de l'éducation",20180632,"Master"]
[null,null,null,null,"Sociologie ",null,null,null,null,null,null,null,null,null,null,null,null,null,null,null,null,null,null,null,null,"Aix_Marseille_Université_AMU","Sciences du langage",20180633,"Master"]
[null,null,null,null,"STAPS : activité physique adaptée et santé",null,null,null,null,null,null,null,null,null,null,null,null,null,null,null,null,null,null,null,null,"Aix_Marseille_Université_AMU","Sociologie ",20180634,"Master"]
[null,null,null,null,"STAPS : ingénierie et ergonomie de l'activité physique",null,null,null,null,null,null,null,null,null,null,null,null,null,null,null,null,null,null,null,null,"Aix_Marseille_Université_AMU","STAPS : activité physique adaptée et santé",20180666,"Master"]
[null,null,null,null,"STAPS : management du sport",null,null,null,null,null,null,null,null,null,null,null,null,null,null,null,null,null,null,null,null,"Aix_Marseille_Université_AMU","STAPS : ingénierie et ergonomie de l'activité physique",20180667,"Master"]
[null,null,null,null,"Traduction et interprétation",null,null,null,null,null,null,null,null,null,null,null,null,null,null,null,null,null,null,null,null,"Aix_Marseille_Université_AMU","STAPS : management du sport",20180668,"Master"]
[null,null,null,null,"Traitement du signal et des images",null,null,null,null,null,null,null,null,null,null,null,null,null,null,null,null,null,null,null,null,"Aix_Marseille_Université_AMU","Traduction et interprétation",20180587,"Master"]
[null,null,null,null,"Urbanisme et aménagement",null,null,null,null,null,null,null,null,null,null,null,null,null,null,null,null,null,null,null,null,"Aix_Marseille_Université_AMU","Traitement du signal et des images",20180669,"Master"]
[null,null,null,null,{"$f":"COUNTA(Aix_Marseille_Université_AMU)","v":96},null,null,null,null,null,null,null,null,null,null,null,null,null,null,null,null,null,null,null,null,"Aix_Marseille_Université_AMU","Urbanisme et aménagement",20180635,"Master"]
[null,null,null,null,null,null,null,null,null,null,null,null,null,null,null,null,null,null,null,null,null,null,null,null,{"$f":"COUNTA(Z99:Z111)","v":13},"Avignon_Université","Culture et communication",20180704,"Master"]
[null,null,null,null,null,null,null,null,null,null,null,null,null,null,null,null,null,null,null,null,null,null,null,null,null,"Avignon_Université","Droit",20080614,"Master"]
[null,null,null,null,null,null,null,null,null,null,null,null,null,null,null,null,null,null,null,null,null,null,null,null,null,"Avignon_Université","Français langue étrangère",20180698,"Master"]
[null,null,null,null,null,null,null,null,null,null,null,null,null,null,null,null,null,null,null,null,null,null,null,null,null,"Avignon_Université","Géographie, aménagement, environnement et développement",20180705,"Master"]
[null,null,null,null,null,null,null,null,null,null,null,null,null,null,null,null,null,null,null,null,null,null,null,null,null,"Avignon_Université","Histoire",20180706,"Master"]
[null,null,null,null,null,null,null,null,null,null,null,null,null,null,null,null,null,null,null,null,null,null,null,null,null,"Avignon_Université","Informatique",20180708,"Master"]
[null,null,null,null,null,null,null,null,null,null,null,null,null,null,null,null,null,null,null,null,null,null,null,null,null,"Avignon_Université","Innovation, entreprise et société",20180702,"Master"]
[null,null,null,null,null,null,null,null,null,null,null,null,null,null,null,null,null,null,null,null,null,null,null,null,null,"Avignon_Université","Langues et sociétés",20180699,"Master"]
[null,null,null,null,null,null,null,null,null,null,null,null,null,null,null,null,null,null,null,null,null,null,null,null,null,"Avignon_Université","Management sectoriel",20180703,"Master"]
[null,null,null,null,null,null,null,null,null,null,null,null,null,null,null,null,null,null,null,null,null,null,null,null,null,"Avignon_Université","Sciences et technologie de l'agriculture, de l'alimentation et de l'environnement",20180670,"Master"]
[null,null,null,null,null,null,null,null,null,null,null,null,null,null,null,null,null,null,null,null,null,null,null,null,null,"Avignon_Université","Sciences sociales",20180707,"Master"]
[null,null,null,null,null,null,null,null,null,null,null,null,null,null,null,null,null,null,null,null,null,null,null,null,null,"Avignon_Université","Théâtre",20180700,"Master"]
[null,null,null,null,null,null,null,null,null,null,null,null,null,null,null,null,null,null,null,null,null,null,null,null,null,"Avignon_Université","Traduction et interprétation",20180701,"Master"]
[null,null,null,null,null,null,null,null,null,null,null,null,null,null,null,null,null,null,null,null,null,null,null,null,{"$f":"COUNTA(Z112:Z160)","v":49},"Université_de_Bourgogne_UB","Diplôme de formation approfondie en sciences médicales (DFASM)","NOACCRR2C_07","DFA"]
[null,null,null,null,null,null,null,null,null,null,null,null,null,null,null,null,null,null,null,null,null,null,null,null,null,"Université_de_Bourgogne_UB","Diplôme de formation approfondie en sciences pharmaceutiques (DFASP)","NOACCRR2C_08","DFA"]
[null,null,null,null,null,null,null,null,null,null,null,null,null,null,null,null,null,null,null,null,null,null,null,null,null,"Université_de_Bourgogne_UB","Diplôme d’État d’infirmier en pratique avancée (IPA)","NOACCRR2C_09","Diplôme d'État"]
[null,null,null,null,null,null,null,null,null,null,null,null,null,null,null,null,null,null,null,null,null,null,null,null,null,"Université_de_Bourgogne_UB","Diplôme d'État de sage-femme","NOACCRR2C_10","Diplôme d'État"]
[null,null,null,null,null,null,null,null,null,null,null,null,null,null,null,null,null,null,null,null,null,null,null,null,null,"Université_de_Bourgogne_UB","Administration économique et sociale",20170390,"Master"]
[null,null,null,null,null,null,null,null,null,null,null,null,null,null,null,null,null,null,null,null,null,null,null,null,null,"Université_de_Bourgogne_UB","Archéologie, sciences pour l'archéologie",20170405,"Master"]
[null,null,null,null,null,null,null,null,null,null,null,null,null,null,null,null,null,null,null,null,null,null,null,null,null,"Université_de_Bourgogne_UB","Biodiversité, écologie et évolution",20170414,"Master"]
[null,null,null,null,null,null,null,null,null,null,null,null,null,null,null,null,null,null,null,null,null,null,null,null,null,"Université_de_Bourgogne_UB","Biologie-santé",20170415,"Master"]
[null,null,null,null,null,null,null,null,null,null,null,null,null,null,null,null,null,null,null,null,null,null,null,null,null,"Université_de_Bourgogne_UB","Chimie",20170416,"Master"]
[null,null,null,null,null,null,null,null,null,null,null,null,null,null,null,null,null,null,null,null,null,null,null,null,null,"Université_de_Bourgogne_UB","Comptabilité • contrôle • audit",20170391,"Master"]
[null,null,null,null,null,null,null,null,null,null,null,null,null,null,null,null,null,null,null,null,null,null,null,null,null,"Université_de_Bourgogne_UB","Contrôle de gestion et audit organisationnel",20170392,"Master"]
[null,null,null,null,null,null,null,null,null,null,null,null,null,null,null,null,null,null,null,null,null,null,null,null,null,"Université_de_Bourgogne_UB","Direction de projets ou établissements culturels",20170406,"Master"]
[null,null,null,null,null,null,null,null,null,null,null,null,null,null,null,null,null,null,null,null,null,null,null,null,null,"Université_de_Bourgogne_UB","Droit des affaires",20170393,"Master"]
[null,null,null,null,null,null,null,null,null,null,null,null,null,null,null,null,null,null,null,null,null,null,null,null,null,"Université_de_Bourgogne_UB","Droit notarial",20170394,"Master"]
[null,null,null,null,null,null,null,null,null,null,null,null,null,null,null,null,null,null,null,null,null,null,null,null,null,"Université_de_Bourgogne_UB","Droit public",20170395,"Master"]
[null,null,null,null,null,null,null,null,null,null,null,null,null,null,null,null,null,null,null,null,null,null,null,null,null,"Université_de_Bourgogne_UB","Économie appliquée",20170396,"Master"]
[null,null,null,null,null,null,null,null,null,null,null,null,null,null,null,null,null,null,null,null,null,null,null,null,null,"Université_de_Bourgogne_UB","Electronique, énergie électrique, automatique",20170417,"Master"]
[null,null,null,null,null,null,null,null,null,null,null,null,null,null,null,null,null,null,null,null,null,null,null,null,null,"Université_de_Bourgogne_UB","Finance",20170397,"Master"]
[null,null,null,null,null,null,null,null,null,null,null,null,null,null,null,null,null,null,null,null,null,null,null,null,null,"Université_de_Bourgogne_UB","Gestion des ressources humaines",20170398,"Master"]
[null,null,null,null,null,null,null,null,null,null,null,null,null,null,null,null,null,null,null,null,null,null,null,null,null,"Université_de_Bourgogne_UB","Histoire",20170407,"Master"]
[null,null,null,null,null,null,null,null,null,null,null,null,null,null,null,null,null,null,null,null,null,null,null,null,null,"Université_de_Bourgogne_UB","Histoire de l'art",20170408,"Master"]
[null,null,null,null,null,null,null,null,null,null,null,null,null,null,null,null,null,null,null,null,null,null,null,null,null,"Université_de_Bourgogne_UB","Information, communication",20170382,"Master"]
[null,null,null,null,null,null,null,null,null,null,null,null,null,null,null,null,null,null,null,null,null,null,null,null,null,"Université_de_Bourgogne_UB","Informatique",20170418,"Master"]
[null,null,null,null,null,null,null,null,null,null,null,null,null,null,null,null,null,null,null,null,null,null,null,null,null,"Université_de_Bourgogne_UB","Justice, procès et procédures",20170399,"Master"]
[null,null,null,null,null,null,null,null,null,null,null,null,null,null,null,null,null,null,null,null,null,null,null,null,null,"Université_de_Bourgogne_UB","Langues étrangères appliquées",20170383,"Master"]
[null,null,null,null,null,null,null,null,null,null,null,null,null,null,null,null,null,null,null,null,null,null,null,null,null,"Université_de_Bourgogne_UB","Langues, littératures et civilisations étrangères et régionales",20170384,"Master"]
[null,null,null,null,null,null,null,null,null,null,null,null,null,null,null,null,null,null,null,null,null,null,null,null,null,"Université_de_Bourgogne_UB","Lettres",20170385,"Master"]
[null,null,null,null,null,null,null,null,null,null,null,null,null,null,null,null,null,null,null,null,null,null,null,null,null,"Université_de_Bourgogne_UB","Management",20170400,"Master"]
[null,null,null,null,null,null,null,null,null,null,null,null,null,null,null,null,null,null,null,null,null,null,null,null,null,"Université_de_Bourgogne_UB","Management et administration des entreprises ",20170401,"Master"]
[null,null,null,null,null,null,null,null,null,null,null,null,null,null,null,null,null,null,null,null,null,null,null,null,null,"Université_de_Bourgogne_UB","Management sectoriel",20170402,"Master"]
[null,null,null,null,null,null,null,null,null,null,null,null,null,null,null,null,null,null,null,null,null,null,null,null,null,"Université_de_Bourgogne_UB","Marketing, vente",20170403,"Master"]
[null,null,null,null,null,null,null,null,null,null,null,null,null,null,null,null,null,null,null,null,null,null,null,null,null,"Université_de_Bourgogne_UB","Mathématiques et applications",20170419,"Master"]
[null,null,null,null,null,null,null,null,null,null,null,null,null,null,null,null,null,null,null,null,null,null,null,null,null,"Université_de_Bourgogne_UB","Monnaie, banque, finance, assurance",20170404,"Master"]
[null,null,null,null,null,null,null,null,null,null,null,null,null,null,null,null,null,null,null,null,null,null,null,null,null,"Université_de_Bourgogne_UB","Musicologie",20170386,"Master"]
[null,null,null,null,null,null,null,null,null,null,null,null,null,null,null,null,null,null,null,null,null,null,null,null,null,"Université_de_Bourgogne_UB","Nutrition et sciences des aliments",20170420,"Master"]
[null,null,null,null,null,null,null,null,null,null,null,null,null,null,null,null,null,null,null,null,null,null,null,null,null,"Université_de_Bourgogne_UB","Philosophie",20170387,"Master"]
[null,null,null,null,null,null,null,null,null,null,null,null,null,null,null,null,null,null,null,null,null,null,null,null,null,"Université_de_Bourgogne_UB","Physique",20170421,"Master"]
[null,null,null,null,null,null,null,null,null,null,null,null,null,null,null,null,null,null,null,null,null,null,null,null,null,"Université_de_Bourgogne_UB","Psychologie",20170409,"Master"]
[null,null,null,null,null,null,null,null,null,null,null,null,null,null,null,null,null,null,null,null,null,null,null,null,null,"Université_de_Bourgogne_UB","Sciences de la Terre et des planètes, environnement",20170422,"Master"]
[null,null,null,null,null,null,null,null,null,null,null,null,null,null,null,null,null,null,null,null,null,null,null,null,null,"Université_de_Bourgogne_UB","Sciences de la vigne et du vin",20170423,"Master"]
[null,null,null,null,null,null,null,null,null,null,null,null,null,null,null,null,null,null,null,null,null,null,null,null,null,"Université_de_Bourgogne_UB","Sciences de l'éducation",20170410,"Master"]
[null,null,null,null,null,null,null,null,null,null,null,null,null,null,null,null,null,null,null,null,null,null,null,null,null,"Université_de_Bourgogne_UB","Sciences du langage",20170388,"Master"]
[null,null,null,null,null,null,null,null,null,null,null,null,null,null,null,null,null,null,null,null,null,null,null,null,null,"Université_de_Bourgogne_UB","Sciences sociales",20170411,"Master"]
[null,null,null,null,null,null,null,null,null,null,null,null,null,null,null,null,null,null,null,null,null,null,null,null,null,"Université_de_Bourgogne_UB","STAPS : activité physique adaptée et santé",20170412,"Master"]
[null,null,null,null,null,null,null,null,null,null,null,null,null,null,null,null,null,null,null,null,null,null,null,null,null,"Université_de_Bourgogne_UB","STAPS : entraînement et optimisation de la performance sportive",20170413,"Master"]
[null,null,null,null,null,null,null,null,null,null,null,null,null,null,null,null,null,null,null,null,null,null,null,null,null,"Université_de_Bourgogne_UB","STAPS : management du sport",20170444,"Master"]
[null,null,null,null,null,null,null,null,null,null,null,null,null,null,null,null,null,null,null,null,null,null,null,null,null,"Université_de_Bourgogne_UB","Traduction et interprétation",20170389,"Master"]
[null,null,null,null,null,null,null,null,null,null,null,null,null,null,null,null,null,null,null,null,null,null,null,null,null,"Université_de_Bourgogne_UB","Traitement du signal et des images ",20170424,"Master"]
[null,null,null,null,null,null,null,null,null,null,null,null,null,null,null,null,null,null,null,null,null,null,null,null,null,"Université_de_Bourgogne_UB","Transport, mobilités, réseaux",20170425,"Master"]
[null,null,null,null,null,null,null,null,null,null,null,null,null,null,null,null,null,null,null,null,null,null,null,null,{"$f":"COUNTA(Z161:Z172)","v":12},"Comue_Bourgogne_Franche_Comté","Automatique, robotique",20170378,"Master"]
[null,null,null,null,null,null,null,null,null,null,null,null,null,null,null,null,null,null,null,null,null,null,null,null,null,"Comue_Bourgogne_Franche_Comté","Biologie de la conservation",20170379,"Master"]
[null,null,null,null,null,null,null,null,null,null,null,null,null,null,null,null,null,null,null,null,null,null,null,null,null,"Comue_Bourgogne_Franche_Comté","Chimie moléculaire",20190407,"Master"]
[null,null,null,null,null,null,null,null,null,null,null,null,null,null,null,null,null,null,null,null,null,null,null,null,null,"Comue_Bourgogne_Franche_Comté","Culture et communication",20190406,"Master"]
[null,null,null,null,null,null,null,null,null,null,null,null,null,null,null,null,null,null,null,null,null,null,null,null,null,"Comue_Bourgogne_Franche_Comté","Economie de l'environnement, de l'énergie\net des transports ",20190405,"Master"]
[null,null,null,null,null,null,null,null,null,null,null,null,null,null,null,null,null,null,null,null,null,null,null,null,null,"Comue_Bourgogne_Franche_Comté","Humanités numériques",20190404,"Master"]
[null,null,null,null,null,null,null,null,null,null,null,null,null,null,null,null,null,null,null,null,null,null,null,null,null,"Comue_Bourgogne_Franche_Comté","Intelligence économique",20170377,"Master"]
[null,null,null,null,null,null,null,null,null,null,null,null,null,null,null,null,null,null,null,null,null,null,null,null,null,"Comue_Bourgogne_Franche_Comté","Mathématiques physiques",20190408,"Master"]
[null,null,null,null,null,null,null,null,null,null,null,null,null,null,null,null,null,null,null,null,null,null,null,null,null,"Comue_Bourgogne_Franche_Comté","Physique fondamentale et applications",20170380,"Master"]
[null,null,null,null,null,null,null,null,null,null,null,null,null,null,null,null,null,null,null,null,null,null,null,null,null,"Comue_Bourgogne_Franche_Comté","Sciences du médicament et des produits de santé",20190409,"Master"]
[null,null,null,null,null,null,null,null,null,null,null,null,null,null,null,null,null,null,null,null,null,null,null,null,null,"Comue_Bourgogne_Franche_Comté","Sciences et technologie de l'agriculture, de l'alimentation et de l'environnement",20170381,"Master"]
[null,null,null,null,null,null,null,null,null,null,null,null,null,null,null,null,null,null,null,null,null,null,null,null,null,"Comue_Bourgogne_Franche_Comté","Systèmes de calculs embarqués",20190410,"Master"]
[null,null,null,null,null,null,null,null,null,null,null,null,null,null,null,null,null,null,null,null,null,null,null,null,{"$f":"COUNTA(Z173:Z191)","v":19},"Università_di_Corsica_Pasquale_Paoli","Droit des affaires ",20180413,"Master"]
[null,null,null,null,null,null,null,null,null,null,null,null,null,null,null,null,null,null,null,null,null,null,null,null,null,"Università_di_Corsica_Pasquale_Paoli","Droit des collectivités territoriales",20180414,"Master"]
[null,null,null,null,null,null,null,null,null,null,null,null,null,null,null,null,null,null,null,null,null,null,null,null,null,"Università_di_Corsica_Pasquale_Paoli","Droit du numérique",20180415,"Master"]
[null,null,null,null,null,null,null,null,null,null,null,null,null,null,null,null,null,null,null,null,null,null,null,null,null,"Università_di_Corsica_Pasquale_Paoli","Droit notarial",20180416,"Master"]
[null,null,null,null,null,null,null,null,null,null,null,null,null,null,null,null,null,null,null,null,null,null,null,null,null,"Università_di_Corsica_Pasquale_Paoli","Économie appliquée",20180417,"Master"]
[null,null,null,null,null,null,null,null,null,null,null,null,null,null,null,null,null,null,null,null,null,null,null,null,null,"Università_di_Corsica_Pasquale_Paoli","Gestion de l'environnement",20180460,"Master"]
[null,null,null,null,null,null,null,null,null,null,null,null,null,null,null,null,null,null,null,null,null,null,null,null,null,"Università_di_Corsica_Pasquale_Paoli","Histoire",20180421,"Master"]
[null,null,null,null,null,null,null,null,null,null,null,null,null,null,null,null,null,null,null,null,null,null,null,null,null,"Università_di_Corsica_Pasquale_Paoli","Information, communication",20180422,"Master"]
[null,null,null,null,null,null,null,null,null,null,null,null,null,null,null,null,null,null,null,null,null,null,null,null,null,"Università_di_Corsica_Pasquale_Paoli","Informatique",20180461,"Master"]
[null,null,null,null,null,null,null,null,null,null,null,null,null,null,null,null,null,null,null,null,null,null,null,null,null,"Università_di_Corsica_Pasquale_Paoli","Ingénierie de la santé",20180462,"Master"]
[null,null,null,null,null,null,null,null,null,null,null,null,null,null,null,null,null,null,null,null,null,null,null,null,null,"Università_di_Corsica_Pasquale_Paoli","Justice, procès et procédures",20180418,"Master"]
[null,null,null,null,null,null,null,null,null,null,null,null,null,null,null,null,null,null,null,null,null,null,null,null,null,"Università_di_Corsica_Pasquale_Paoli","Langues étrangères appliquées",20180410,"Master"]
[null,null,null,null,null,null,null,null,null,null,null,null,null,null,null,null,null,null,null,null,null,null,null,null,null,"Università_di_Corsica_Pasquale_Paoli","Langues, littératures et civilisations étrangères et régionales",20180411,"Master"]
[null,null,null,null,null,null,null,null,null,null,null,null,null,null,null,null,null,null,null,null,null,null,null,null,null,"Università_di_Corsica_Pasquale_Paoli","Lettres",20180412,"Master"]
[null,null,null,null,null,null,null,null,null,null,null,null,null,null,null,null,null,null,null,null,null,null,null,null,null,"Università_di_Corsica_Pasquale_Paoli","Management",20180419,"Master"]
[null,null,null,null,null,null,null,null,null,null,null,null,null,null,null,null,null,null,null,null,null,null,null,null,null,"Università_di_Corsica_Pasquale_Paoli","Management sectoriel",20180420,"Master"]
[null,null,null,null,null,null,null,null,null,null,null,null,null,null,null,null,null,null,null,null,null,null,null,null,null,"Università_di_Corsica_Pasquale_Paoli","Risques et environnement",20180464,"Master"]
[null,null,null,null,null,null,null,null,null,null,null,null,null,null,null,null,null,null,null,null,null,null,null,null,null,"Università_di_Corsica_Pasquale_Paoli","Sciences de l'éducation",20180459,"Master"]
[null,null,null,null,null,null,null,null,null,null,null,null,null,null,null,null,null,null,null,null,null,null,null,null,null,"Università_di_Corsica_Pasquale_Paoli","Sciences et technologie de l'agriculture, de l'alimentation et de l'environnement",20180465,"Master"]
[null,null,null,null,null,null,null,null,null,null,null,null,null,null,null,null,null,null,null,null,null,null,null,null,{"$f":"COUNTA(Z192:Z249)","v":58},"Université_Côte_d_Azur","Diplôme de formation approfondie en sciences médicales (DFASM)","NOACCRR2C_12","DFA"]
[null,null,null,null,null,null,null,null,null,null,null,null,null,null,null,null,null,null,null,null,null,null,null,null,null,"Université_Côte_d_Azur","Diplôme de formation approfondie en sciences odontologiques (DFASO)","NOACCRR2C_13","DFA"]
[null,null,null,null,null,null,null,null,null,null,null,null,null,null,null,null,null,null,null,null,null,null,null,null,null,"Université_Côte_d_Azur","Diplôme d’État d’infirmier en pratique avancée (IPA)","NOACCRR2C_14","Diplôme d'État"]
[null,null,null,null,null,null,null,null,null,null,null,null,null,null,null,null,null,null,null,null,null,null,null,null,null,"Université_Côte_d_Azur","Diplôme d'État de sage-femme","NOACCRR2C_15","Diplôme d'État"]
[null,null,null,null,null,null,null,null,null,null,null,null,null,null,null,null,null,null,null,null,null,null,null,null,null,"Université_Côte_d_Azur","Biobanques et gestion des données complexes","NOACCRR2C_16","Grade de master"]
[null,null,null,null,null,null,null,null,null,null,null,null,null,null,null,null,null,null,null,null,null,null,null,null,null,"Université_Côte_d_Azur","Biocontrôle pour la santé des plantes","NOACCRR2C_47","Grade de master"]
[null,null,null,null,null,null,null,null,null,null,null,null,null,null,null,null,null,null,null,null,null,null,null,null,null,"Université_Côte_d_Azur","Gestion des risques environnementaux","NOACCRR2C_48","Grade de master"]
[null,null,null,null,null,null,null,null,null,null,null,null,null,null,null,null,null,null,null,null,null,null,null,null,null,"Université_Côte_d_Azur","Management de la filière arômes et parfums","NOACCRR2C_49","Grade de master"]
[null,null,null,null,null,null,null,null,null,null,null,null,null,null,null,null,null,null,null,null,null,null,null,null,null,"Université_Côte_d_Azur","Modélisation des systèmes neuronaux et cognitifs","NOACCRR2C_50","Grade de master"]
[null,null,null,null,null,null,null,null,null,null,null,null,null,null,null,null,null,null,null,null,null,null,null,null,null,"Université_Côte_d_Azur","Science, conservation & valorisation des ressources marines","NOACCRR2C_51","Grade de master"]
[null,null,null,null,null,null,null,null,null,null,null,null,null,null,null,null,null,null,null,null,null,null,null,null,null,"Université_Côte_d_Azur","Sciences des données et intelligence artificielle","NOACCRR2C_52","Grade de master"]
[null,null,null,null,null,null,null,null,null,null,null,null,null,null,null,null,null,null,null,null,null,null,null,null,null,"Université_Côte_d_Azur","Smart-Ed Tech, cocréativité et numérique pour l’innovation éducative","NOACCRR2C_53","Grade de master"]
[null,null,null,null,null,null,null,null,null,null,null,null,null,null,null,null,null,null,null,null,null,null,null,null,null,"Université_Côte_d_Azur","Sound design et musique à l'écran","NOACCRR2C_54","Grade de master"]
[null,null,null,null,null,null,null,null,null,null,null,null,null,null,null,null,null,null,null,null,null,null,null,null,null,"Université_Côte_d_Azur","Administration et liquidation d'entreprises en difficulté",20180466,"Master"]
[null,null,null,null,null,null,null,null,null,null,null,null,null,null,null,null,null,null,null,null,null,null,null,null,null,"Université_Côte_d_Azur","Arts",20180470,"Master"]
[null,null,null,null,null,null,null,null,null,null,null,null,null,null,null,null,null,null,null,null,null,null,null,null,null,"Université_Côte_d_Azur","Chimie moléculaire",20180499,"Master"]
[null,null,null,null,null,null,null,null,null,null,null,null,null,null,null,null,null,null,null,null,null,null,null,null,null,"Université_Côte_d_Azur","Civilisations, cultures et sociétés",20180494,"Master"]
[null,null,null,null,null,null,null,null,null,null,null,null,null,null,null,null,null,null,null,null,null,null,null,null,null,"Université_Côte_d_Azur","Comptabilité-contrôle-audit",20180476,"Master"]
[null,null,null,null,null,null,null,null,null,null,null,null,null,null,null,null,null,null,null,null,null,null,null,null,null,"Université_Côte_d_Azur","Contrôle de gestion et audit organisationnel",20180477,"Master"]
[null,null,null,null,null,null,null,null,null,null,null,null,null,null,null,null,null,null,null,null,null,null,null,null,null,"Université_Côte_d_Azur","Droit des affaires",20180478,"Master"]
[null,null,null,null,null,null,null,null,null,null,null,null,null,null,null,null,null,null,null,null,null,null,null,null,null,"Université_Côte_d_Azur","Droit international et droit européen ",20180709,"Master"]
[null,null,null,null,null,null,null,null,null,null,null,null,null,null,null,null,null,null,null,null,null,null,null,null,null,"Université_Côte_d_Azur","Droit notarial",20180710,"Master"]
[null,null,null,null,null,null,null,null,null,null,null,null,null,null,null,null,null,null,null,null,null,null,null,null,null,"Université_Côte_d_Azur","Droit privée",20180480,"Master"]
[null,null,null,null,null,null,null,null,null,null,null,null,null,null,null,null,null,null,null,null,null,null,null,null,null,"Université_Côte_d_Azur","Droit public",20180481,"Master"]
[null,null,null,null,null,null,null,null,null,null,null,null,null,null,null,null,null,null,null,null,null,null,null,null,null,"Université_Côte_d_Azur","Économie ",20180482,"Master"]
[null,null,null,null,null,null,null,null,null,null,null,null,null,null,null,null,null,null,null,null,null,null,null,null,null,"Université_Côte_d_Azur","Économie des organisations",20180483,"Master"]
[null,null,null,null,null,null,null,null,null,null,null,null,null,null,null,null,null,null,null,null,null,null,null,null,null,"Université_Côte_d_Azur","Electronique, énergie electrique, automatique",20180500,"Master"]
[null,null,null,null,null,null,null,null,null,null,null,null,null,null,null,null,null,null,null,null,null,null,null,null,null,"Université_Côte_d_Azur","Français langue étrangère",20180510,"Master"]
[null,null,null,null,null,null,null,null,null,null,null,null,null,null,null,null,null,null,null,null,null,null,null,null,null,"Université_Côte_d_Azur","Gestion de l'environnement",20180501,"Master"]
[null,null,null,null,null,null,null,null,null,null,null,null,null,null,null,null,null,null,null,null,null,null,null,null,null,"Université_Côte_d_Azur","Gestion de patrimoine",20180484,"Master"]
[null,null,null,null,null,null,null,null,null,null,null,null,null,null,null,null,null,null,null,null,null,null,null,null,null,"Université_Côte_d_Azur","Gestion des ressources humaines",20180485,"Master"]
[null,null,null,null,null,null,null,null,null,null,null,null,null,null,null,null,null,null,null,null,null,null,null,null,null,"Université_Côte_d_Azur","Humanités et industries créatives",20180471,"Master"]
[null,null,null,null,null,null,null,null,null,null,null,null,null,null,null,null,null,null,null,null,null,null,null,null,null,"Université_Côte_d_Azur","Information, communication",20180472,"Master"]
[null,null,null,null,null,null,null,null,null,null,null,null,null,null,null,null,null,null,null,null,null,null,null,null,null,"Université_Côte_d_Azur","Informatique ",20180502,"Master"]
[null,null,null,null,null,null,null,null,null,null,null,null,null,null,null,null,null,null,null,null,null,null,null,null,null,"Université_Côte_d_Azur","Ingénierie de la santé",20180503,"Master"]
[null,null,null,null,null,null,null,null,null,null,null,null,null,null,null,null,null,null,null,null,null,null,null,null,null,"Université_Côte_d_Azur","Innovation, entreprise et société",20180486,"Master"]
[null,null,null,null,null,null,null,null,null,null,null,null,null,null,null,null,null,null,null,null,null,null,null,null,null,"Université_Côte_d_Azur","Langues étrangères appliquées",20180473,"Master"]
[null,null,null,null,null,null,null,null,null,null,null,null,null,null,null,null,null,null,null,null,null,null,null,null,null,"Université_Côte_d_Azur","Langues littératures et civilisations étrangères et régionales ",20180474,"Master"]
[null,null,null,null,null,null,null,null,null,null,null,null,null,null,null,null,null,null,null,null,null,null,null,null,null,"Université_Côte_d_Azur","Lettres",20180475,"Master"]
[null,null,null,null,null,null,null,null,null,null,null,null,null,null,null,null,null,null,null,null,null,null,null,null,null,"Université_Côte_d_Azur","Management",20180487,"Master"]
[null,null,null,null,null,null,null,null,null,null,null,null,null,null,null,null,null,null,null,null,null,null,null,null,null,"Université_Côte_d_Azur","Management et administration des entreprises",20180488,"Master"]
[null,null,null,null,null,null,null,null,null,null,null,null,null,null,null,null,null,null,null,null,null,null,null,null,null,"Université_Côte_d_Azur","Management et commerce international ",20180489,"Master"]
[null,null,null,null,null,null,null,null,null,null,null,null,null,null,null,null,null,null,null,null,null,null,null,null,null,"Université_Côte_d_Azur","Marketing, vente",20180490,"Master"]
[null,null,null,null,null,null,null,null,null,null,null,null,null,null,null,null,null,null,null,null,null,null,null,null,null,"Université_Côte_d_Azur","Mathématiques et applications",20180504,"Master"]
[null,null,null,null,null,null,null,null,null,null,null,null,null,null,null,null,null,null,null,null,null,null,null,null,null,"Université_Côte_d_Azur","Méthodes informatiques appliquées à la gestion des entreprises -MIAGE",20180505,"Master"]
[null,null,null,null,null,null,null,null,null,null,null,null,null,null,null,null,null,null,null,null,null,null,null,null,null,"Université_Côte_d_Azur","Monnaire, banque, finance, assurance",20180491,"Master"]
[null,null,null,null,null,null,null,null,null,null,null,null,null,null,null,null,null,null,null,null,null,null,null,null,null,"Université_Côte_d_Azur","Physique fondamentale et application",20180506,"Master"]
[null,null,null,null,null,null,null,null,null,null,null,null,null,null,null,null,null,null,null,null,null,null,null,null,null,"Université_Côte_d_Azur","Psychologie ",20180495,"Master"]
[null,null,null,null,null,null,null,null,null,null,null,null,null,null,null,null,null,null,null,null,null,null,null,null,null,"Université_Côte_d_Azur","Science politique",20180492,"Master"]
[null,null,null,null,null,null,null,null,null,null,null,null,null,null,null,null,null,null,null,null,null,null,null,null,null,"Université_Côte_d_Azur","Sciences cognitives",20190426,"Master"]
[null,null,null,null,null,null,null,null,null,null,null,null,null,null,null,null,null,null,null,null,null,null,null,null,null,"Université_Côte_d_Azur","Sciences de la terre et des planètes, environnement",20180507,"Master"]
[null,null,null,null,null,null,null,null,null,null,null,null,null,null,null,null,null,null,null,null,null,null,null,null,null,"Université_Côte_d_Azur","Sciences du vivant",20180508,"Master"]
[null,null,null,null,null,null,null,null,null,null,null,null,null,null,null,null,null,null,null,null,null,null,null,null,null,"Université_Côte_d_Azur","Sciences et génie des matériaux",20180509,"Master"]
[null,null,null,null,null,null,null,null,null,null,null,null,null,null,null,null,null,null,null,null,null,null,null,null,null,"Université_Côte_d_Azur","Sciences sociales",20180496,"Master"]
[null,null,null,null,null,null,null,null,null,null,null,null,null,null,null,null,null,null,null,null,null,null,null,null,null,"Université_Côte_d_Azur","STAPS : activité physique adaptée et santé",20180497,"Master"]
[null,null,null,null,null,null,null,null,null,null,null,null,null,null,null,null,null,null,null,null,null,null,null,null,null,"Université_Côte_d_Azur","STAPS : entrainement et optmisation de la performance sportive",20180498,"Master"]
[null,null,null,null,null,null,null,null,null,null,null,null,null,null,null,null,null,null,null,null,null,null,null,null,null,"Université_Côte_d_Azur","STAPS : management du sport",20190474,"Master"]
[null,null,null,null,null,null,null,null,null,null,null,null,null,null,null,null,null,null,null,null,null,null,null,null,null,"Université_Côte_d_Azur","Tourisme",20180493,"Master"]
[null,null,null,null,null,null,null,null,null,null,null,null,null,null,null,null,null,null,null,null,null,null,null,null,1,"École_centrale_de_Marseille ","Ingénierie des systèmes complexes",20180693,"Master"]
[null,null,null,null,null,null,null,null,null,null,null,null,null,null,null,null,null,null,null,null,null,null,null,null,2,"EURECOM","Informatique",20181102,"Master"]
[null,null,null,null,null,null,null,null,null,null,null,null,null,null,null,null,null,null,null,null,null,null,null,null,null,"EURECOM","Réseaux et télécommunication",20181103,"Master"]
[null,null,null,null,null,null,null,null,null,null,null,null,null,null,null,null,null,null,null,null,null,null,null,null,{"$f":"COUNTA(Z253:Z296)","v":44},"Université_de_Franche_Comté_UFC_U_Besançon","Diplôme de formation approfondie en sciences médicales (DFASM) ","NOACCRR2C_18","DFA"]
[null,null,null,null,null,null,null,null,null,null,null,null,null,null,null,null,null,null,null,null,null,null,null,null,null,"Université_de_Franche_Comté_UFC_U_Besançon","Diplôme de formation approfondie en sciences pharmaceutiques (DFASP)","NOACCRR2C_19","DFA"]
[null,null,null,null,null,null,null,null,null,null,null,null,null,null,null,null,null,null,null,null,null,null,null,null,null,"Université_de_Franche_Comté_UFC_U_Besançon","Diplôme d’État d’infirmier en pratique avancée (IPA)","NOACCRR2C_20","Diplôme d'État"]
[null,null,null,null,null,null,null,null,null,null,null,null,null,null,null,null,null,null,null,null,null,null,null,null,null,"Université_de_Franche_Comté_UFC_U_Besançon","Diplôme d'État de sage-femme","NOACCRR2C_21","Diplôme d'État"]
[null,null,null,null,null,null,null,null,null,null,null,null,null,null,null,null,null,null,null,null,null,null,null,null,null,"Université_de_Franche_Comté_UFC_U_Besançon","Administration publique",20170433,"Master"]
[null,null,null,null,null,null,null,null,null,null,null,null,null,null,null,null,null,null,null,null,null,null,null,null,null,"Université_de_Franche_Comté_UFC_U_Besançon","Arts de la scène et du spectacle vivant",20170426,"Master"]
[null,null,null,null,null,null,null,null,null,null,null,null,null,null,null,null,null,null,null,null,null,null,null,null,null,"Université_de_Franche_Comté_UFC_U_Besançon","Chimie ",20170445,"Master"]
[null,null,null,null,null,null,null,null,null,null,null,null,null,null,null,null,null,null,null,null,null,null,null,null,null,"Université_de_Franche_Comté_UFC_U_Besançon","Comptabilité - contrôle - audit",20170391,"Master"]
[null,null,null,null,null,null,null,null,null,null,null,null,null,null,null,null,null,null,null,null,null,null,null,null,null,"Université_de_Franche_Comté_UFC_U_Besançon","Design",20190400,"Master"]
[null,null,null,null,null,null,null,null,null,null,null,null,null,null,null,null,null,null,null,null,null,null,null,null,null,"Université_de_Franche_Comté_UFC_U_Besançon","Droit de l'entreprise",20170434,"Master"]
[null,null,null,null,null,null,null,null,null,null,null,null,null,null,null,null,null,null,null,null,null,null,null,null,null,"Université_de_Franche_Comté_UFC_U_Besançon","Droit des affaires",20170435,"Master"]
[null,null,null,null,null,null,null,null,null,null,null,null,null,null,null,null,null,null,null,null,null,null,null,null,null,"Université_de_Franche_Comté_UFC_U_Besançon","Droit du numérique",20170436,"Master"]
[null,null,null,null,null,null,null,null,null,null,null,null,null,null,null,null,null,null,null,null,null,null,null,null,null,"Université_de_Franche_Comté_UFC_U_Besançon","Economie de l'entreprise et des marchés",20170437,"Master"]
[null,null,null,null,null,null,null,null,null,null,null,null,null,null,null,null,null,null,null,null,null,null,null,null,null,"Université_de_Franche_Comté_UFC_U_Besançon","Energie",20170446,"Master"]
[null,null,null,null,null,null,null,null,null,null,null,null,null,null,null,null,null,null,null,null,null,null,null,null,null,"Université_de_Franche_Comté_UFC_U_Besançon","Finance",20170397,"Master"]
[null,null,null,null,null,null,null,null,null,null,null,null,null,null,null,null,null,null,null,null,null,null,null,null,null,"Université_de_Franche_Comté_UFC_U_Besançon","Français langue étrangère",20170427,"Master"]
[null,null,null,null,null,null,null,null,null,null,null,null,null,null,null,null,null,null,null,null,null,null,null,null,null,"Université_de_Franche_Comté_UFC_U_Besançon","Génie mécanique",20170448,"Master"]
[null,null,null,null,null,null,null,null,null,null,null,null,null,null,null,null,null,null,null,null,null,null,null,null,null,"Université_de_Franche_Comté_UFC_U_Besançon","Géographie, aménagement, environnement et développement",20170439,"Master"]
[null,null,null,null,null,null,null,null,null,null,null,null,null,null,null,null,null,null,null,null,null,null,null,null,null,"Université_de_Franche_Comté_UFC_U_Besançon","Géoressources, géorisques, géotechnique",20170449,"Master"]
[null,null,null,null,null,null,null,null,null,null,null,null,null,null,null,null,null,null,null,null,null,null,null,null,null,"Université_de_Franche_Comté_UFC_U_Besançon","Gestion de l'environnement",20170447,"Master"]
[null,null,null,null,null,null,null,null,null,null,null,null,null,null,null,null,null,null,null,null,null,null,null,null,null,"Université_de_Franche_Comté_UFC_U_Besançon","Gestion des ressources humaines",20170398,"Master"]
[null,null,null,null,null,null,null,null,null,null,null,null,null,null,null,null,null,null,null,null,null,null,null,null,null,"Université_de_Franche_Comté_UFC_U_Besançon","Histoire, civilisations, patrimoine",20170440,"Master"]
[null,null,null,null,null,null,null,null,null,null,null,null,null,null,null,null,null,null,null,null,null,null,null,null,null,"Université_de_Franche_Comté_UFC_U_Besançon","Information, communication",20170428,"Master"]
[null,null,null,null,null,null,null,null,null,null,null,null,null,null,null,null,null,null,null,null,null,null,null,null,null,"Université_de_Franche_Comté_UFC_U_Besançon","Informatique",20170450,"Master"]
[null,null,null,null,null,null,null,null,null,null,null,null,null,null,null,null,null,null,null,null,null,null,null,null,null,"Université_de_Franche_Comté_UFC_U_Besançon","Ingénierie des systèmes complexes",20170451,"Master"]
[null,null,null,null,null,null,null,null,null,null,null,null,null,null,null,null,null,null,null,null,null,null,null,null,null,"Université_de_Franche_Comté_UFC_U_Besançon","Justice, procès et procédures",20170438,"Master"]
[null,null,null,null,null,null,null,null,null,null,null,null,null,null,null,null,null,null,null,null,null,null,null,null,null,"Université_de_Franche_Comté_UFC_U_Besançon","Langues étrangères appliquées",20170429,"Master"]
[null,null,null,null,null,null,null,null,null,null,null,null,null,null,null,null,null,null,null,null,null,null,null,null,null,"Université_de_Franche_Comté_UFC_U_Besançon","Langues, littératures et civilisations étrangères et régionales",20170430,"Master"]
[null,null,null,null,null,null,null,null,null,null,null,null,null,null,null,null,null,null,null,null,null,null,null,null,null,"Université_de_Franche_Comté_UFC_U_Besançon","Lettres et Humanités",20170431,"Master"]
[null,null,null,null,null,null,null,null,null,null,null,null,null,null,null,null,null,null,null,null,null,null,null,null,null,"Université_de_Franche_Comté_UFC_U_Besançon","Management et administration des entreprises",20170401,"Master"]
[null,null,null,null,null,null,null,null,null,null,null,null,null,null,null,null,null,null,null,null,null,null,null,null,null,"Université_de_Franche_Comté_UFC_U_Besançon","Marketing, vente",20170403,"Master"]
[null,null,null,null,null,null,null,null,null,null,null,null,null,null,null,null,null,null,null,null,null,null,null,null,null,"Université_de_Franche_Comté_UFC_U_Besançon","Mathématiques",20170452,"Master"]
[null,null,null,null,null,null,null,null,null,null,null,null,null,null,null,null,null,null,null,null,null,null,null,null,null,"Université_de_Franche_Comté_UFC_U_Besançon","Mathématiques appliquées, statistique",20170453,"Master"]
[null,null,null,null,null,null,null,null,null,null,null,null,null,null,null,null,null,null,null,null,null,null,null,null,null,"Université_de_Franche_Comté_UFC_U_Besançon","Mécanique",20170454,"Master"]
[null,null,null,null,null,null,null,null,null,null,null,null,null,null,null,null,null,null,null,null,null,null,null,null,null,"Université_de_Franche_Comté_UFC_U_Besançon","Philosophie",20170441,"Master"]
[null,null,null,null,null,null,null,null,null,null,null,null,null,null,null,null,null,null,null,null,null,null,null,null,null,"Université_de_Franche_Comté_UFC_U_Besançon","Physique",20170455,"Master"]
[null,null,null,null,null,null,null,null,null,null,null,null,null,null,null,null,null,null,null,null,null,null,null,null,null,"Université_de_Franche_Comté_UFC_U_Besançon","Psychologie clinique, psychopathologie et psychologie de la santé",20170442,"Master"]
[null,null,null,null,null,null,null,null,null,null,null,null,null,null,null,null,null,null,null,null,null,null,null,null,null,"Université_de_Franche_Comté_UFC_U_Besançon","Santé",20170456,"Master"]
[null,null,null,null,null,null,null,null,null,null,null,null,null,null,null,null,null,null,null,null,null,null,null,null,null,"Université_de_Franche_Comté_UFC_U_Besançon","Sciences de l'eau",20170457,"Master"]
[null,null,null,null,null,null,null,null,null,null,null,null,null,null,null,null,null,null,null,null,null,null,null,null,null,"Université_de_Franche_Comté_UFC_U_Besançon","Sciences du langage",20170432,"Master"]
[null,null,null,null,null,null,null,null,null,null,null,null,null,null,null,null,null,null,null,null,null,null,null,null,null,"Université_de_Franche_Comté_UFC_U_Besançon","Sociologie",20170443,"Master"]
[null,null,null,null,null,null,null,null,null,null,null,null,null,null,null,null,null,null,null,null,null,null,null,null,null,"Université_de_Franche_Comté_UFC_U_Besançon","STAPS : activité physique adaptée et santé ",20170412,"Master"]
[null,null,null,null,null,null,null,null,null,null,null,null,null,null,null,null,null,null,null,null,null,null,null,null,null,"Université_de_Franche_Comté_UFC_U_Besançon","STAPS : entrainement et optimisation de la performance sportive",20170413,"Master"]
[null,null,null,null,null,null,null,null,null,null,null,null,null,null,null,null,null,null,null,null,null,null,null,null,null,"Université_de_Franche_Comté_UFC_U_Besançon","STAPS : management du sport",20170444,"Master"]
[null,null,null,null,null,null,null,null,null,null,null,null,null,null,null,null,null,null,null,null,null,null,null,null,{"$f":"COUNTA(Z297:Z311)","v":15},"Université_de_Haute_Alsace_UHA","Arts, lettres et civilisations",20181007,"Master"]
[null,null,null,null,null,null,null,null,null,null,null,null,null,null,null,null,null,null,null,null,null,null,null,null,null,"Université_de_Haute_Alsace_UHA","Contrôle de gestion et audit organisationnel",20181008,"Master"]
[null,null,null,null,null,null,null,null,null,null,null,null,null,null,null,null,null,null,null,null,null,null,null,null,null,"Université_de_Haute_Alsace_UHA","Droit  ",20181009,"Master"]
[null,null,null,null,null,null,null,null,null,null,null,null,null,null,null,null,null,null,null,null,null,null,null,null,null,"Université_de_Haute_Alsace_UHA","Économie sociale et solidaire",20181010,"Master"]
[null,null,null,null,null,null,null,null,null,null,null,null,null,null,null,null,null,null,null,null,null,null,null,null,null,"Université_de_Haute_Alsace_UHA","Electronique, énergie électrique, automatique",20181015,"Master"]
[null,null,null,null,null,null,null,null,null,null,null,null,null,null,null,null,null,null,null,null,null,null,null,null,null,"Université_de_Haute_Alsace_UHA","Entrepreneuriat et management de\nprojets",20181011,"Master"]
[null,null,null,null,null,null,null,null,null,null,null,null,null,null,null,null,null,null,null,null,null,null,null,null,null,"Université_de_Haute_Alsace_UHA","Histoire, civilisations, patrimoine  ",20181014,"Master"]
[null,null,null,null,null,null,null,null,null,null,null,null,null,null,null,null,null,null,null,null,null,null,null,null,null,"Université_de_Haute_Alsace_UHA","Information, communication",20180928,"Master"]
[null,null,null,null,null,null,null,null,null,null,null,null,null,null,null,null,null,null,null,null,null,null,null,null,null,"Université_de_Haute_Alsace_UHA","Innovation, entreprise et société  ",20181012,"Master"]
[null,null,null,null,null,null,null,null,null,null,null,null,null,null,null,null,null,null,null,null,null,null,null,null,null,"Université_de_Haute_Alsace_UHA","Langues étrangères appliquées",20181016,"Master"]
[null,null,null,null,null,null,null,null,null,null,null,null,null,null,null,null,null,null,null,null,null,null,null,null,null,"Université_de_Haute_Alsace_UHA","Marketing, vente",20181013,"Master"]
[null,null,null,null,null,null,null,null,null,null,null,null,null,null,null,null,null,null,null,null,null,null,null,null,null,"Université_de_Haute_Alsace_UHA","Mécanique",20181017,"Master"]
[null,null,null,null,null,null,null,null,null,null,null,null,null,null,null,null,null,null,null,null,null,null,null,null,null,"Université_de_Haute_Alsace_UHA","Méthodes informatiques appliquées à la\ngestion des entreprises - MIAGE",20181018,"Master"]
[null,null,null,null,null,null,null,null,null,null,null,null,null,null,null,null,null,null,null,null,null,null,null,null,null,"Université_de_Haute_Alsace_UHA","Risques et environnement",20181019,"Master"]
[null,null,null,null,null,null,null,null,null,null,null,null,null,null,null,null,null,null,null,null,null,null,null,null,null,"Université_de_Haute_Alsace_UHA","Sciences et technologie de l'agriculture, de l'alimentation et de l'environnement",20181020,"Master"]
[null,null,null,null,null,null,null,null,null,null,null,null,null,null,null,null,null,null,null,null,null,null,null,null,{"$f":"COUNTA(Z312:Z393)","v":82},"Université_de_Lorraine_UL","Diplôme de formation approfondie en sciences médicales (DFASM)","NOACCRR2C_26","DFA"]
[null,null,null,null,null,null,null,null,null,null,null,null,null,null,null,null,null,null,null,null,null,null,null,null,null,"Université_de_Lorraine_UL","Diplôme de formation approfondie en sciences odontologiques (DFASO)","NOACCRR2C_27","DFA"]
[null,null,null,null,null,null,null,null,null,null,null,null,null,null,null,null,null,null,null,null,null,null,null,null,null,"Université_de_Lorraine_UL","Diplôme de formation approfondie en sciences pharmaceutiques (DFASP)","NOACCRR2C_28","DFA"]
[null,null,null,null,null,null,null,null,null,null,null,null,null,null,null,null,null,null,null,null,null,null,null,null,null,"Université_de_Lorraine_UL","Diplôme d’État d’infirmier en pratique avancée (IPA)","NOACCRR2C_29","Diplôme d'État"]
[null,null,null,null,null,null,null,null,null,null,null,null,null,null,null,null,null,null,null,null,null,null,null,null,null,"Université_de_Lorraine_UL","Diplôme d'État de sage-femme","NOACCRR2C_30","Diplôme d'État"]
[null,null,null,null,null,null,null,null,null,null,null,null,null,null,null,null,null,null,null,null,null,null,null,null,null,"Université_de_Lorraine_UL","Administration économique et sociale",20180188,"Master"]
[null,null,null,null,null,null,null,null,null,null,null,null,null,null,null,null,null,null,null,null,null,null,null,null,null,"Université_de_Lorraine_UL","Agrosciences, environnement, territoires, paysage, forêt",20180233,"Master"]
[null,null,null,null,null,null,null,null,null,null,null,null,null,null,null,null,null,null,null,null,null,null,null,null,null,"Université_de_Lorraine_UL","Arts",20180181,"Master"]
[null,null,null,null,null,null,null,null,null,null,null,null,null,null,null,null,null,null,null,null,null,null,null,null,null,"Université_de_Lorraine_UL","Audiovisuel, médias interactifs numériques, jeux",20180214,"Master"]
[null,null,null,null,null,null,null,null,null,null,null,null,null,null,null,null,null,null,null,null,null,null,null,null,null,"Université_de_Lorraine_UL","Chimie",20180234,"Master"]
[null,null,null,null,null,null,null,null,null,null,null,null,null,null,null,null,null,null,null,null,null,null,null,null,null,"Université_de_Lorraine_UL","Cinéma et audiovisuel",20180182,"Master"]
[null,null,null,null,null,null,null,null,null,null,null,null,null,null,null,null,null,null,null,null,null,null,null,null,null,"Université_de_Lorraine_UL","Civilisations, cultures el sociétés",20180183,"Master"]
[null,null,null,null,null,null,null,null,null,null,null,null,null,null,null,null,null,null,null,null,null,null,null,null,null,"Université_de_Lorraine_UL","Comptabilité - contrôle - audit",20180189,"Master"]
[null,null,null,null,null,null,null,null,null,null,null,null,null,null,null,null,null,null,null,null,null,null,null,null,null,"Université_de_Lorraine_UL","Contrôle de gestion et audit organisationnel",20180190,"Master"]
[null,null,null,null,null,null,null,null,null,null,null,null,null,null,null,null,null,null,null,null,null,null,null,null,null,"Université_de_Lorraine_UL","Design",20180235,"Master"]
[null,null,null,null,null,null,null,null,null,null,null,null,null,null,null,null,null,null,null,null,null,null,null,null,null,"Université_de_Lorraine_UL","Droit civil",20180191,"Master"]
[null,null,null,null,null,null,null,null,null,null,null,null,null,null,null,null,null,null,null,null,null,null,null,null,null,"Université_de_Lorraine_UL","Droit des affaires",20180192,"Master"]
[null,null,null,null,null,null,null,null,null,null,null,null,null,null,null,null,null,null,null,null,null,null,null,null,null,"Université_de_Lorraine_UL","Droit fiscal",20180193,"Master"]
[null,null,null,null,null,null,null,null,null,null,null,null,null,null,null,null,null,null,null,null,null,null,null,null,null,"Université_de_Lorraine_UL","Droit notarial",20180194,"Master"]
[null,null,null,null,null,null,null,null,null,null,null,null,null,null,null,null,null,null,null,null,null,null,null,null,null,"Université_de_Lorraine_UL","Droit pénal et sciences criminelles",20180196,"Master"]
[null,null,null,null,null,null,null,null,null,null,null,null,null,null,null,null,null,null,null,null,null,null,null,null,null,"Université_de_Lorraine_UL","Droit public",20180195,"Master"]
[null,null,null,null,null,null,null,null,null,null,null,null,null,null,null,null,null,null,null,null,null,null,null,null,null,"Université_de_Lorraine_UL","Droit social",20180197,"Master"]
[null,null,null,null,null,null,null,null,null,null,null,null,null,null,null,null,null,null,null,null,null,null,null,null,null,"Université_de_Lorraine_UL","Économie appliquée",20180198,"Master"]
[null,null,null,null,null,null,null,null,null,null,null,null,null,null,null,null,null,null,null,null,null,null,null,null,null,"Université_de_Lorraine_UL","Économie de l'entreprise el des marchés",20180199,"Master"]
[null,null,null,null,null,null,null,null,null,null,null,null,null,null,null,null,null,null,null,null,null,null,null,null,null,"Université_de_Lorraine_UL","Electronique, énergie électrique, automatique",20180236,"Master"]
[null,null,null,null,null,null,null,null,null,null,null,null,null,null,null,null,null,null,null,null,null,null,null,null,null,"Université_de_Lorraine_UL","Energie",20180237,"Master"]
[null,null,null,null,null,null,null,null,null,null,null,null,null,null,null,null,null,null,null,null,null,null,null,null,null,"Université_de_Lorraine_UL","Entrepreneuriat et management de projets",20180200,"Master"]
[null,null,null,null,null,null,null,null,null,null,null,null,null,null,null,null,null,null,null,null,null,null,null,null,null,"Université_de_Lorraine_UL","Epistémologie, histoire des sciences et des techniques",20180215,"Master"]
[null,null,null,null,null,null,null,null,null,null,null,null,null,null,null,null,null,null,null,null,null,null,null,null,null,"Université_de_Lorraine_UL","Ergonomie",20180216,"Master"]
[null,null,null,null,null,null,null,null,null,null,null,null,null,null,null,null,null,null,null,null,null,null,null,null,null,"Université_de_Lorraine_UL","Études culturelles",20180184,"Master"]
[null,null,null,null,null,null,null,null,null,null,null,null,null,null,null,null,null,null,null,null,null,null,null,null,null,"Université_de_Lorraine_UL","Études européennes et internationales",20180201,"Master"]
[null,null,null,null,null,null,null,null,null,null,null,null,null,null,null,null,null,null,null,null,null,null,null,null,null,"Université_de_Lorraine_UL","Finance",20180202,"Master"]
[null,null,null,null,null,null,null,null,null,null,null,null,null,null,null,null,null,null,null,null,null,null,null,null,null,"Université_de_Lorraine_UL","Français langue étrangère",20180217,"Master"]
[null,null,null,null,null,null,null,null,null,null,null,null,null,null,null,null,null,null,null,null,null,null,null,null,null,"Université_de_Lorraine_UL","Génie civil",20180239,"Master"]
[null,null,null,null,null,null,null,null,null,null,null,null,null,null,null,null,null,null,null,null,null,null,null,null,null,"Université_de_Lorraine_UL","Génie des procédés et des bio-procédés",20180240,"Master"]
[null,null,null,null,null,null,null,null,null,null,null,null,null,null,null,null,null,null,null,null,null,null,null,null,null,"Université_de_Lorraine_UL","Géographie, aménagement, environnement et développement",20180218,"Master"]
[null,null,null,null,null,null,null,null,null,null,null,null,null,null,null,null,null,null,null,null,null,null,null,null,null,"Université_de_Lorraine_UL","Gestion de l'environnement",20180238,"Master"]
[null,null,null,null,null,null,null,null,null,null,null,null,null,null,null,null,null,null,null,null,null,null,null,null,null,"Université_de_Lorraine_UL","Gestion de production, logistique, achats",20180203,"Master"]
[null,null,null,null,null,null,null,null,null,null,null,null,null,null,null,null,null,null,null,null,null,null,null,null,null,"Université_de_Lorraine_UL","Gestion des ressources humaines",20180204,"Master"]
[null,null,null,null,null,null,null,null,null,null,null,null,null,null,null,null,null,null,null,null,null,null,null,null,null,"Université_de_Lorraine_UL","Histoire, civilisations, patrimoine",20180219,"Master"]
[null,null,null,null,null,null,null,null,null,null,null,null,null,null,null,null,null,null,null,null,null,null,null,null,null,"Université_de_Lorraine_UL","Information, communication",20180220,"Master"]
[null,null,null,null,null,null,null,null,null,null,null,null,null,null,null,null,null,null,null,null,null,null,null,null,null,"Université_de_Lorraine_UL","Informatique",20180241,"Master"]
[null,null,null,null,null,null,null,null,null,null,null,null,null,null,null,null,null,null,null,null,null,null,null,null,null,"Université_de_Lorraine_UL","Ingénierie de la santé",20180242,"Master"]
[null,null,null,null,null,null,null,null,null,null,null,null,null,null,null,null,null,null,null,null,null,null,null,null,null,"Université_de_Lorraine_UL","Ingénierie des systèmes complexes",20180243,"Master"]
[null,null,null,null,null,null,null,null,null,null,null,null,null,null,null,null,null,null,null,null,null,null,null,null,null,"Université_de_Lorraine_UL","Journalisme",20180221,"Master"]
[null,null,null,null,null,null,null,null,null,null,null,null,null,null,null,null,null,null,null,null,null,null,null,null,null,"Université_de_Lorraine_UL","Langues et sociétés",20180185,"Master"]
[null,null,null,null,null,null,null,null,null,null,null,null,null,null,null,null,null,null,null,null,null,null,null,null,null,"Université_de_Lorraine_UL","Langues étrangéres appliquées",20180186,"Master"]
[null,null,null,null,null,null,null,null,null,null,null,null,null,null,null,null,null,null,null,null,null,null,null,null,null,"Université_de_Lorraine_UL","Lettres",20180187,"Master"]
[null,null,null,null,null,null,null,null,null,null,null,null,null,null,null,null,null,null,null,null,null,null,null,null,null,"Université_de_Lorraine_UL","Management",20180205,"Master"]
[null,null,null,null,null,null,null,null,null,null,null,null,null,null,null,null,null,null,null,null,null,null,null,null,null,"Université_de_Lorraine_UL","Management de l'innovation",20180206,"Master"]
[null,null,null,null,null,null,null,null,null,null,null,null,null,null,null,null,null,null,null,null,null,null,null,null,null,"Université_de_Lorraine_UL","Management des systèmes d'information",20180207,"Master"]
[null,null,null,null,null,null,null,null,null,null,null,null,null,null,null,null,null,null,null,null,null,null,null,null,null,"Université_de_Lorraine_UL","Management et administration des entreprises",20180208,"Master"]
[null,null,null,null,null,null,null,null,null,null,null,null,null,null,null,null,null,null,null,null,null,null,null,null,null,"Université_de_Lorraine_UL","Management public",20180209,"Master"]
[null,null,null,null,null,null,null,null,null,null,null,null,null,null,null,null,null,null,null,null,null,null,null,null,null,"Université_de_Lorraine_UL","Management sectoriel",20180210,"Master"]
[null,null,null,null,null,null,null,null,null,null,null,null,null,null,null,null,null,null,null,null,null,null,null,null,null,"Université_de_Lorraine_UL","Marketing, vente",20180211,"Master"]
[null,null,null,null,null,null,null,null,null,null,null,null,null,null,null,null,null,null,null,null,null,null,null,null,null,"Université_de_Lorraine_UL","Master intégré franco-allemand en management",20180212,"Master"]
[null,null,null,null,null,null,null,null,null,null,null,null,null,null,null,null,null,null,null,null,null,null,null,null,null,"Université_de_Lorraine_UL","Mathématiques et applications",20180244,"Master"]
[null,null,null,null,null,null,null,null,null,null,null,null,null,null,null,null,null,null,null,null,null,null,null,null,null,"Université_de_Lorraine_UL","Mécanique",20180246,"Master"]
[null,null,null,null,null,null,null,null,null,null,null,null,null,null,null,null,null,null,null,null,null,null,null,null,null,"Université_de_Lorraine_UL","Méthodes informatiques appliquées à la gestion des entreprises -MIAGE",20180247,"Master"]
[null,null,null,null,null,null,null,null,null,null,null,null,null,null,null,null,null,null,null,null,null,null,null,null,null,"Université_de_Lorraine_UL","Microbiologie",20180245,"Master"]
[null,null,null,null,null,null,null,null,null,null,null,null,null,null,null,null,null,null,null,null,null,null,null,null,null,"Université_de_Lorraine_UL","Nutrition et sciences des aliments",20180248,"Master"]
[null,null,null,null,null,null,null,null,null,null,null,null,null,null,null,null,null,null,null,null,null,null,null,null,null,"Université_de_Lorraine_UL","Philosophie",20180222,"Master"]
[null,null,null,null,null,null,null,null,null,null,null,null,null,null,null,null,null,null,null,null,null,null,null,null,null,"Université_de_Lorraine_UL","Physique",20180249,"Master"]
[null,null,null,null,null,null,null,null,null,null,null,null,null,null,null,null,null,null,null,null,null,null,null,null,null,"Université_de_Lorraine_UL","Physique appliquée et ingénierie physique",20180250,"Master"]
[null,null,null,null,null,null,null,null,null,null,null,null,null,null,null,null,null,null,null,null,null,null,null,null,null,"Université_de_Lorraine_UL","Psychologie clinique, psychopathologie et psychologie de la santé",20180223,"Master"]
[null,null,null,null,null,null,null,null,null,null,null,null,null,null,null,null,null,null,null,null,null,null,null,null,null,"Université_de_Lorraine_UL","Psychologie sociale, du travail et des organisations",20180224,"Master"]
[null,null,null,null,null,null,null,null,null,null,null,null,null,null,null,null,null,null,null,null,null,null,null,null,null,"Université_de_Lorraine_UL","Santé",20180251,"Master"]
[null,null,null,null,null,null,null,null,null,null,null,null,null,null,null,null,null,null,null,null,null,null,null,null,null,"Université_de_Lorraine_UL","Santé publique",20180252,"Master"]
[null,null,null,null,null,null,null,null,null,null,null,null,null,null,null,null,null,null,null,null,null,null,null,null,null,"Université_de_Lorraine_UL","Science politique",20180213,"Master"]
[null,null,null,null,null,null,null,null,null,null,null,null,null,null,null,null,null,null,null,null,null,null,null,null,null,"Université_de_Lorraine_UL","Sciences cognitives",20180253,"Master"]
[null,null,null,null,null,null,null,null,null,null,null,null,null,null,null,null,null,null,null,null,null,null,null,null,null,"Université_de_Lorraine_UL","Sciences de la Terre et des planètes, environnement",20180254,"Master"]
[null,null,null,null,null,null,null,null,null,null,null,null,null,null,null,null,null,null,null,null,null,null,null,null,null,"Université_de_Lorraine_UL","Sciences de l'éducation",20180225,"Master"]
[null,null,null,null,null,null,null,null,null,null,null,null,null,null,null,null,null,null,null,null,null,null,null,null,null,"Université_de_Lorraine_UL","Sciences du langage",20180226,"Master"]
[null,null,null,null,null,null,null,null,null,null,null,null,null,null,null,null,null,null,null,null,null,null,null,null,null,"Université_de_Lorraine_UL","Sciences du vivant",20180255,"Master"]
[null,null,null,null,null,null,null,null,null,null,null,null,null,null,null,null,null,null,null,null,null,null,null,null,null,"Université_de_Lorraine_UL","Sciences et génie des matériaux",20180256,"Master"]
[null,null,null,null,null,null,null,null,null,null,null,null,null,null,null,null,null,null,null,null,null,null,null,null,null,"Université_de_Lorraine_UL","Sciences sociales",20180227,"Master"]
[null,null,null,null,null,null,null,null,null,null,null,null,null,null,null,null,null,null,null,null,null,null,null,null,null,"Université_de_Lorraine_UL","Sociologie",20180228,"Master"]
[null,null,null,null,null,null,null,null,null,null,null,null,null,null,null,null,null,null,null,null,null,null,null,null,null,"Université_de_Lorraine_UL","STAPS : activité physique adaptée et santé ",20180231,"Master"]
[null,null,null,null,null,null,null,null,null,null,null,null,null,null,null,null,null,null,null,null,null,null,null,null,null,"Université_de_Lorraine_UL","STAPS : ingénierie et ergonomie de l'activité physique",20180232,"Master"]
[null,null,null,null,null,null,null,null,null,null,null,null,null,null,null,null,null,null,null,null,null,null,null,null,null,"Université_de_Lorraine_UL","Théologie catholique",20180229,"Master"]
[null,null,null,null,null,null,null,null,null,null,null,null,null,null,null,null,null,null,null,null,null,null,null,null,null,"Université_de_Lorraine_UL","Traitement automatique des langues",20180257,"Master"]
[null,null,null,null,null,null,null,null,null,null,null,null,null,null,null,null,null,null,null,null,null,null,null,null,null,"Université_de_Lorraine_UL","Urbanisme et aménagement",20180230,"Master"]
[null,null,null,null,null,null,null,null,null,null,null,null,null,null,null,null,null,null,null,null,null,null,null,null,{"$f":"COUNTA(Z394:Z400)","v":7},"Université_de_la_Nouvelle_Calédonie_UNC","Civilisations, cultures et sociétés",20170057,"Master"]
[null,null,null,null,null,null,null,null,null,null,null,null,null,null,null,null,null,null,null,null,null,null,null,null,null,"Université_de_la_Nouvelle_Calédonie_UNC","Droit",20170056,"Master"]
[null,null,null,null,null,null,null,null,null,null,null,null,null,null,null,null,null,null,null,null,null,null,null,null,null,"Université_de_la_Nouvelle_Calédonie_UNC","Gestion de l'environnement",20170059,"Master"]
[null,null,null,null,null,null,null,null,null,null,null,null,null,null,null,null,null,null,null,null,null,null,null,null,null,"Université_de_la_Nouvelle_Calédonie_UNC","Gestion des territoires et développement local",20170058,"Master"]
[null,null,null,null,null,null,null,null,null,null,null,null,null,null,null,null,null,null,null,null,null,null,null,null,null,"Université_de_la_Nouvelle_Calédonie_UNC","Management et administration des entreprises",20171090,"Master"]
[null,null,null,null,null,null,null,null,null,null,null,null,null,null,null,null,null,null,null,null,null,null,null,null,null,"Université_de_la_Nouvelle_Calédonie_UNC","Méthodes informatiques appliquées à la gestion des entreprises - MIAGE",20190258,"Master"]
[null,null,null,null,null,null,null,null,null,null,null,null,null,null,null,null,null,null,null,null,null,null,null,null,null,"Université_de_la_Nouvelle_Calédonie_UNC","Science de la durabilité - Sustainability Science",20210187,"Master"]
[null,null,null,null,null,null,null,null,null,null,null,null,null,null,null,null,null,null,null,null,null,null,null,null,{"$f":"COUNTA(Z401:Z432)","v":32},"Université_d_Orléans","Agrosciences, environnement, territoires, paysage, forêt  ",20151030,"Master"]
[null,null,null,null,null,null,null,null,null,null,null,null,null,null,null,null,null,null,null,null,null,null,null,null,null,"Université_d_Orléans","Automatique, robotique  ",20180728,"Master"]
[null,null,null,null,null,null,null,null,null,null,null,null,null,null,null,null,null,null,null,null,null,null,null,null,null,"Université_d_Orléans","Chimie moléculaire  ",20180729,"Master"]
[null,null,null,null,null,null,null,null,null,null,null,null,null,null,null,null,null,null,null,null,null,null,null,null,null,"Université_d_Orléans","Comptabilité - contrôle - audit  ",20180714,"Master"]
[null,null,null,null,null,null,null,null,null,null,null,null,null,null,null,null,null,null,null,null,null,null,null,null,null,"Université_d_Orléans","Contrôle de gestion et audit organisationnel  ",20180715,"Master"]
[null,null,null,null,null,null,null,null,null,null,null,null,null,null,null,null,null,null,null,null,null,null,null,null,null,"Université_d_Orléans","Droit privé  ",20180716,"Master"]
[null,null,null,null,null,null,null,null,null,null,null,null,null,null,null,null,null,null,null,null,null,null,null,null,null,"Université_d_Orléans","Droit public  ",20180717,"Master"]
[null,null,null,null,null,null,null,null,null,null,null,null,null,null,null,null,null,null,null,null,null,null,null,null,null,"Université_d_Orléans","Droit social  ",20180718,"Master"]
[null,null,null,null,null,null,null,null,null,null,null,null,null,null,null,null,null,null,null,null,null,null,null,null,null,"Université_d_Orléans","Économétrie, statistiques  ",20180720,"Master"]
[null,null,null,null,null,null,null,null,null,null,null,null,null,null,null,null,null,null,null,null,null,null,null,null,null,"Université_d_Orléans","Économie internationale",20180719,"Master"]
[null,null,null,null,null,null,null,null,null,null,null,null,null,null,null,null,null,null,null,null,null,null,null,null,null,"Université_d_Orléans","Géographie, aménagement, environnement et développement  ",20180725,"Master"]
[null,null,null,null,null,null,null,null,null,null,null,null,null,null,null,null,null,null,null,null,null,null,null,null,null,"Université_d_Orléans","Histoire  ",20180726,"Master"]
[null,null,null,null,null,null,null,null,null,null,null,null,null,null,null,null,null,null,null,null,null,null,null,null,null,"Université_d_Orléans","Informatique",20180730,"Master"]
[null,null,null,null,null,null,null,null,null,null,null,null,null,null,null,null,null,null,null,null,null,null,null,null,null,"Université_d_Orléans","Langues et sociétés  ",20180711,"Master"]
[null,null,null,null,null,null,null,null,null,null,null,null,null,null,null,null,null,null,null,null,null,null,null,null,null,"Université_d_Orléans","Langues étrangères appliquées  ",20180712,"Master"]
[null,null,null,null,null,null,null,null,null,null,null,null,null,null,null,null,null,null,null,null,null,null,null,null,null,"Université_d_Orléans","Lettres",20180713,"Master"]
[null,null,null,null,null,null,null,null,null,null,null,null,null,null,null,null,null,null,null,null,null,null,null,null,null,"Université_d_Orléans","Management des systèmes d'information ",20180721,"Master"]
[null,null,null,null,null,null,null,null,null,null,null,null,null,null,null,null,null,null,null,null,null,null,null,null,null,"Université_d_Orléans","Management et administration des entreprises  ",20180722,"Master"]
[null,null,null,null,null,null,null,null,null,null,null,null,null,null,null,null,null,null,null,null,null,null,null,null,null,"Université_d_Orléans","Marketing, vente  ",20180723,"Master"]
[null,null,null,null,null,null,null,null,null,null,null,null,null,null,null,null,null,null,null,null,null,null,null,null,null,"Université_d_Orléans","Mathématiques appliquées, statistique",20180731,"Master"]
[null,null,null,null,null,null,null,null,null,null,null,null,null,null,null,null,null,null,null,null,null,null,null,null,null,"Université_d_Orléans","Mécanique",20180732,"Master"]
[null,null,null,null,null,null,null,null,null,null,null,null,null,null,null,null,null,null,null,null,null,null,null,null,null,"Université_d_Orléans","Méthodes informatiques appliquées à la gestion des entreprises -  MIAGE",20180733,"Master"]
[null,null,null,null,null,null,null,null,null,null,null,null,null,null,null,null,null,null,null,null,null,null,null,null,null,"Université_d_Orléans","Monnaie, banque, finance, assurance",20180724,"Master"]
[null,null,null,null,null,null,null,null,null,null,null,null,null,null,null,null,null,null,null,null,null,null,null,null,null,"Université_d_Orléans","Physique appliquée et ingénierie physique  ",20180734,"Master"]
[null,null,null,null,null,null,null,null,null,null,null,null,null,null,null,null,null,null,null,null,null,null,null,null,null,"Université_d_Orléans","Physique fondamentale et applications  ",20180735,"Master"]
[null,null,null,null,null,null,null,null,null,null,null,null,null,null,null,null,null,null,null,null,null,null,null,null,null,"Université_d_Orléans","Risques et environnement",20180736,"Master"]
[null,null,null,null,null,null,null,null,null,null,null,null,null,null,null,null,null,null,null,null,null,null,null,null,null,"Université_d_Orléans","Sciences de la Terre et des planètes, environnement  ",20180737,"Master"]
[null,null,null,null,null,null,null,null,null,null,null,null,null,null,null,null,null,null,null,null,null,null,null,null,null,"Université_d_Orléans","Sciences du langage",20180727,"Master"]
[null,null,null,null,null,null,null,null,null,null,null,null,null,null,null,null,null,null,null,null,null,null,null,null,null,"Université_d_Orléans","Sciences du vivant",20180738,"Master"]
[null,null,null,null,null,null,null,null,null,null,null,null,null,null,null,null,null,null,null,null,null,null,null,null,null,"Université_d_Orléans","STAPS : activité physique adaptée et santé  ",20180739,"Master"]
[null,null,null,null,null,null,null,null,null,null,null,null,null,null,null,null,null,null,null,null,null,null,null,null,null,"Université_d_Orléans","STAPS : ingénierie et ergonomie de l'activité physique  ",20180740,"Master"]
[null,null,null,null,null,null,null,null,null,null,null,null,null,null,null,null,null,null,null,null,null,null,null,null,null,"Université_d_Orléans","STAPS : management du sport ",20190243,"Master"]
[null,null,null,null,null,null,null,null,null,null,null,null,null,null,null,null,null,null,null,null,null,null,null,null,{"$f":"COUNTA(Z433:Z437)","v":5},"Université_de_la_Polynésie_française_UPF","Biodiversité, Écologie, Évolution",20190126,"Master"]
[null,null,null,null,null,null,null,null,null,null,null,null,null,null,null,null,null,null,null,null,null,null,null,null,null,"Université_de_la_Polynésie_française_UPF","Droit privé",20170557,"Master"]
[null,null,null,null,null,null,null,null,null,null,null,null,null,null,null,null,null,null,null,null,null,null,null,null,null,"Université_de_la_Polynésie_française_UPF","Droit public",20170558,"Master"]
[null,null,null,null,null,null,null,null,null,null,null,null,null,null,null,null,null,null,null,null,null,null,null,null,null,"Université_de_la_Polynésie_française_UPF","Langues et sociétés",20170556,"Master"]
[null,null,null,null,null,null,null,null,null,null,null,null,null,null,null,null,null,null,null,null,null,null,null,null,null,"Université_de_la_Polynésie_française_UPF","Management et commerce international",20170559,"Master"]
[null,null,null,null,null,null,null,null,null,null,null,null,null,null,null,null,null,null,null,null,null,null,null,null,{"$f":"COUNTA(Z438:Z489)","v":52},"Université_de_Reims_Champagne_Ardenne_URCA","Diplôme de formation approfondie en sciences médicales (DFASM)","NOACCRR2C_31","DFA"]
[null,null,null,null,null,null,null,null,null,null,null,null,null,null,null,null,null,null,null,null,null,null,null,null,null,"Université_de_Reims_Champagne_Ardenne_URCA","Diplôme de formation approfondie en sciences odontologiques (DFASO)","NOACCRR2C_32","DFA"]
[null,null,null,null,null,null,null,null,null,null,null,null,null,null,null,null,null,null,null,null,null,null,null,null,null,"Université_de_Reims_Champagne_Ardenne_URCA","Diplôme de formation approfondie en sciences pharmaceutiques (DFASP)","NOACCRR2C_33","DFA"]
[null,null,null,null,null,null,null,null,null,null,null,null,null,null,null,null,null,null,null,null,null,null,null,null,null,"Université_de_Reims_Champagne_Ardenne_URCA","Diplôme d’État d’infirmier en pratique avancée (IPA)","NOACCRR2C_34","Diplôme d'État"]
[null,null,null,null,null,null,null,null,null,null,null,null,null,null,null,null,null,null,null,null,null,null,null,null,null,"Université_de_Reims_Champagne_Ardenne_URCA","Diplôme d'État de sage-femme","NOACCRR2C_35","Diplôme d'État"]
[null,null,null,null,null,null,null,null,null,null,null,null,null,null,null,null,null,null,null,null,null,null,null,null,null,"Université_de_Reims_Champagne_Ardenne_URCA","Analyse et politique économique",20180351,"Master"]
[null,null,null,null,null,null,null,null,null,null,null,null,null,null,null,null,null,null,null,null,null,null,null,null,null,"Université_de_Reims_Champagne_Ardenne_URCA","Arts de la scène et du spectacle vivant  ",20180345,"Master"]
[null,null,null,null,null,null,null,null,null,null,null,null,null,null,null,null,null,null,null,null,null,null,null,null,null,"Université_de_Reims_Champagne_Ardenne_URCA","Biologie, agrosciences",20180375,"Master"]
[null,null,null,null,null,null,null,null,null,null,null,null,null,null,null,null,null,null,null,null,null,null,null,null,null,"Université_de_Reims_Champagne_Ardenne_URCA","Biologie-santé",20180376,"Master"]
[null,null,null,null,null,null,null,null,null,null,null,null,null,null,null,null,null,null,null,null,null,null,null,null,null,"Université_de_Reims_Champagne_Ardenne_URCA","Biomécanique",20180377,"Master"]
[null,null,null,null,null,null,null,null,null,null,null,null,null,null,null,null,null,null,null,null,null,null,null,null,null,"Université_de_Reims_Champagne_Ardenne_URCA","Calcul haute performance, simulation",20180378,"Master"]
[null,null,null,null,null,null,null,null,null,null,null,null,null,null,null,null,null,null,null,null,null,null,null,null,null,"Université_de_Reims_Champagne_Ardenne_URCA","Chimie et sciences du vivant",20180379,"Master"]
[null,null,null,null,null,null,null,null,null,null,null,null,null,null,null,null,null,null,null,null,null,null,null,null,null,"Université_de_Reims_Champagne_Ardenne_URCA","Comptabilité - contrôle - audit",20180352,"Master"]
[null,null,null,null,null,null,null,null,null,null,null,null,null,null,null,null,null,null,null,null,null,null,null,null,null,"Université_de_Reims_Champagne_Ardenne_URCA","Contrôle de gestion et audit organisationnel",20180353,"Master"]
[null,null,null,null,null,null,null,null,null,null,null,null,null,null,null,null,null,null,null,null,null,null,null,null,null,"Université_de_Reims_Champagne_Ardenne_URCA","Droit",20180354,"Master"]
[null,null,null,null,null,null,null,null,null,null,null,null,null,null,null,null,null,null,null,null,null,null,null,null,null,"Université_de_Reims_Champagne_Ardenne_URCA","Droit de l'entreprise",20180355,"Master"]
[null,null,null,null,null,null,null,null,null,null,null,null,null,null,null,null,null,null,null,null,null,null,null,null,null,"Université_de_Reims_Champagne_Ardenne_URCA","Droit notarial",20180356,"Master"]
[null,null,null,null,null,null,null,null,null,null,null,null,null,null,null,null,null,null,null,null,null,null,null,null,null,"Université_de_Reims_Champagne_Ardenne_URCA","Droit pénal et sciences criminelles",20180359,"Master"]
[null,null,null,null,null,null,null,null,null,null,null,null,null,null,null,null,null,null,null,null,null,null,null,null,null,"Université_de_Reims_Champagne_Ardenne_URCA","Droit privé",20180357,"Master"]
[null,null,null,null,null,null,null,null,null,null,null,null,null,null,null,null,null,null,null,null,null,null,null,null,null,"Université_de_Reims_Champagne_Ardenne_URCA","Droit public",20180358,"Master"]
[null,null,null,null,null,null,null,null,null,null,null,null,null,null,null,null,null,null,null,null,null,null,null,null,null,"Université_de_Reims_Champagne_Ardenne_URCA","Économie appliquée",20180360,"Master"]
[null,null,null,null,null,null,null,null,null,null,null,null,null,null,null,null,null,null,null,null,null,null,null,null,null,"Université_de_Reims_Champagne_Ardenne_URCA","Electronique, énergie électrique, automatique",20180380,"Master"]
[null,null,null,null,null,null,null,null,null,null,null,null,null,null,null,null,null,null,null,null,null,null,null,null,null,"Université_de_Reims_Champagne_Ardenne_URCA","Génie civil",20180381,"Master"]
[null,null,null,null,null,null,null,null,null,null,null,null,null,null,null,null,null,null,null,null,null,null,null,null,null,"Université_de_Reims_Champagne_Ardenne_URCA","Géopolitique",20180369,"Master"]
[null,null,null,null,null,null,null,null,null,null,null,null,null,null,null,null,null,null,null,null,null,null,null,null,null,"Université_de_Reims_Champagne_Ardenne_URCA","Géoressources, géorisques, géotechnique",20180382,"Master"]
[null,null,null,null,null,null,null,null,null,null,null,null,null,null,null,null,null,null,null,null,null,null,null,null,null,"Université_de_Reims_Champagne_Ardenne_URCA","Gestion de production, logistique, achats",20180361,"Master"]
[null,null,null,null,null,null,null,null,null,null,null,null,null,null,null,null,null,null,null,null,null,null,null,null,null,"Université_de_Reims_Champagne_Ardenne_URCA","Gestion des ressources humaines",20180362,"Master"]
[null,null,null,null,null,null,null,null,null,null,null,null,null,null,null,null,null,null,null,null,null,null,null,null,null,"Université_de_Reims_Champagne_Ardenne_URCA","Histoire",20180370,"Master"]
[null,null,null,null,null,null,null,null,null,null,null,null,null,null,null,null,null,null,null,null,null,null,null,null,null,"Université_de_Reims_Champagne_Ardenne_URCA","Informatique",20180383,"Master"]
[null,null,null,null,null,null,null,null,null,null,null,null,null,null,null,null,null,null,null,null,null,null,null,null,null,"Université_de_Reims_Champagne_Ardenne_URCA","Ingénierie de conception",20180384,"Master"]
[null,null,null,null,null,null,null,null,null,null,null,null,null,null,null,null,null,null,null,null,null,null,null,null,null,"Université_de_Reims_Champagne_Ardenne_URCA","Intervention et développement social",20180363,"Master"]
[null,null,null,null,null,null,null,null,null,null,null,null,null,null,null,null,null,null,null,null,null,null,null,null,null,"Université_de_Reims_Champagne_Ardenne_URCA","Langues et sociétés  ",20180346,"Master"]
[null,null,null,null,null,null,null,null,null,null,null,null,null,null,null,null,null,null,null,null,null,null,null,null,null,"Université_de_Reims_Champagne_Ardenne_URCA","Langues, littératures et civilisations étrangères et régionales",20180347,"Master"]
[null,null,null,null,null,null,null,null,null,null,null,null,null,null,null,null,null,null,null,null,null,null,null,null,null,"Université_de_Reims_Champagne_Ardenne_URCA","Lettres et Humanités",20180348,"Master"]
[null,null,null,null,null,null,null,null,null,null,null,null,null,null,null,null,null,null,null,null,null,null,null,null,null,"Université_de_Reims_Champagne_Ardenne_URCA","Management et administration des entreprises",20180364,"Master"]
[null,null,null,null,null,null,null,null,null,null,null,null,null,null,null,null,null,null,null,null,null,null,null,null,null,"Université_de_Reims_Champagne_Ardenne_URCA","Management sectoriel",20180366,"Master"]
[null,null,null,null,null,null,null,null,null,null,null,null,null,null,null,null,null,null,null,null,null,null,null,null,null,"Université_de_Reims_Champagne_Ardenne_URCA","Marketing, vente",20180367,"Master"]
[null,null,null,null,null,null,null,null,null,null,null,null,null,null,null,null,null,null,null,null,null,null,null,null,null,"Université_de_Reims_Champagne_Ardenne_URCA","Mathématiques et applications",20180385,"Master"]
[null,null,null,null,null,null,null,null,null,null,null,null,null,null,null,null,null,null,null,null,null,null,null,null,null,"Université_de_Reims_Champagne_Ardenne_URCA","Monnaie, banque, finance, assurance",20180368,"Master"]
[null,null,null,null,null,null,null,null,null,null,null,null,null,null,null,null,null,null,null,null,null,null,null,null,null,"Université_de_Reims_Champagne_Ardenne_URCA","Patrimoine et musées",20180349,"Master"]
[null,null,null,null,null,null,null,null,null,null,null,null,null,null,null,null,null,null,null,null,null,null,null,null,null,"Université_de_Reims_Champagne_Ardenne_URCA","Philosophie",20180372,"Master"]
[null,null,null,null,null,null,null,null,null,null,null,null,null,null,null,null,null,null,null,null,null,null,null,null,null,"Université_de_Reims_Champagne_Ardenne_URCA","Physique appliquée et ingénierie physique",20180050,"Master"]
[null,null,null,null,null,null,null,null,null,null,null,null,null,null,null,null,null,null,null,null,null,null,null,null,null,"Université_de_Reims_Champagne_Ardenne_URCA","Psychologie clinique, psychopathologie et psychologie de la santé",20180371,"Master"]
[null,null,null,null,null,null,null,null,null,null,null,null,null,null,null,null,null,null,null,null,null,null,null,null,null,"Université_de_Reims_Champagne_Ardenne_URCA","Psychologie sociale, du travail et des organisations",20180373,"Master"]
[null,null,null,null,null,null,null,null,null,null,null,null,null,null,null,null,null,null,null,null,null,null,null,null,null,"Université_de_Reims_Champagne_Ardenne_URCA","Réseaux et télécommunication",20180387,"Master"]
[null,null,null,null,null,null,null,null,null,null,null,null,null,null,null,null,null,null,null,null,null,null,null,null,null,"Université_de_Reims_Champagne_Ardenne_URCA","Risques et environnement",20180386,"Master"]
[null,null,null,null,null,null,null,null,null,null,null,null,null,null,null,null,null,null,null,null,null,null,null,null,null,"Université_de_Reims_Champagne_Ardenne_URCA","Sciences de la vigne et du vin",20180391,"Master"]
[null,null,null,null,null,null,null,null,null,null,null,null,null,null,null,null,null,null,null,null,null,null,null,null,null,"Université_de_Reims_Champagne_Ardenne_URCA","Sciences du langage",20180350,"Master"]
[null,null,null,null,null,null,null,null,null,null,null,null,null,null,null,null,null,null,null,null,null,null,null,null,null,"Université_de_Reims_Champagne_Ardenne_URCA","Sciences du médicament et des produits de santé",20180388,"Master"]
[null,null,null,null,null,null,null,null,null,null,null,null,null,null,null,null,null,null,null,null,null,null,null,null,null,"Université_de_Reims_Champagne_Ardenne_URCA","STAPS : ingénierie et ergonomie de l'activité physique",20180389,"Master"]
[null,null,null,null,null,null,null,null,null,null,null,null,null,null,null,null,null,null,null,null,null,null,null,null,null,"Université_de_Reims_Champagne_Ardenne_URCA","STAPS : management du sport",20180390,"Master"]
[null,null,null,null,null,null,null,null,null,null,null,null,null,null,null,null,null,null,null,null,null,null,null,null,null,"Université_de_Reims_Champagne_Ardenne_URCA","Urbanisme et aménagement",20180374,"Master"]
[null,null,null,null,null,null,null,null,null,null,null,null,null,null,null,null,null,null,null,null,null,null,null,null,{"$f":"COUNTA(Z490:Z573)","v":84},"Université_de_Strasbourg_Unistra","Diplôme de formation approfondie en sciences médicales (DFASM)","NOACCRR2C_37","DFA"]
[null,null,null,null,null,null,null,null,null,null,null,null,null,null,null,null,null,null,null,null,null,null,null,null,null,"Université_de_Strasbourg_Unistra","Diplôme de formation approfondie en sciences odontologiques (DFASO)","NOACCRR2C_38","DFA"]
[null,null,null,null,null,null,null,null,null,null,null,null,null,null,null,null,null,null,null,null,null,null,null,null,null,"Université_de_Strasbourg_Unistra","Diplôme de formation approfondie en sciences pharmaceutiques (DFASP)","NOACCRR2C_39","DFA"]
[null,null,null,null,null,null,null,null,null,null,null,null,null,null,null,null,null,null,null,null,null,null,null,null,null,"Université_de_Strasbourg_Unistra","Diplôme d'État de sage-femme","NOACCRR2C_40","Diplôme d'État"]
[null,null,null,null,null,null,null,null,null,null,null,null,null,null,null,null,null,null,null,null,null,null,null,null,null,"Université_de_Strasbourg_Unistra","Actuariat ",20180987,"Master"]
[null,null,null,null,null,null,null,null,null,null,null,null,null,null,null,null,null,null,null,null,null,null,null,null,null,"Université_de_Strasbourg_Unistra","Administration économique et sociale",20180940,"Master"]
[null,null,null,null,null,null,null,null,null,null,null,null,null,null,null,null,null,null,null,null,null,null,null,null,null,"Université_de_Strasbourg_Unistra","Administration publique ",20180939,"Master"]
[null,null,null,null,null,null,null,null,null,null,null,null,null,null,null,null,null,null,null,null,null,null,null,null,null,"Université_de_Strasbourg_Unistra","Analyse et politique économique ",20180941,"Master"]
[null,null,null,null,null,null,null,null,null,null,null,null,null,null,null,null,null,null,null,null,null,null,null,null,null,"Université_de_Strasbourg_Unistra","Archéologie, sciences pour l'archéologie",20180966,"Master"]
[null,null,null,null,null,null,null,null,null,null,null,null,null,null,null,null,null,null,null,null,null,null,null,null,null,"Université_de_Strasbourg_Unistra","Arts de la scène et du spectacle vivant",20180929,"Master"]
[null,null,null,null,null,null,null,null,null,null,null,null,null,null,null,null,null,null,null,null,null,null,null,null,null,"Université_de_Strasbourg_Unistra","Arts plastiques ",20180930,"Master"]
[null,null,null,null,null,null,null,null,null,null,null,null,null,null,null,null,null,null,null,null,null,null,null,null,null,"Université_de_Strasbourg_Unistra","Biologie-santé ",20180988,"Master"]
[null,null,null,null,null,null,null,null,null,null,null,null,null,null,null,null,null,null,null,null,null,null,null,null,null,"Université_de_Strasbourg_Unistra","Biotechnologies",20180989,"Master"]
[null,null,null,null,null,null,null,null,null,null,null,null,null,null,null,null,null,null,null,null,null,null,null,null,null,"Université_de_Strasbourg_Unistra","Chimie",20180990,"Master"]
[null,null,null,null,null,null,null,null,null,null,null,null,null,null,null,null,null,null,null,null,null,null,null,null,null,"Université_de_Strasbourg_Unistra","Cinéma et audiovisuel ",20180931,"Master"]
[null,null,null,null,null,null,null,null,null,null,null,null,null,null,null,null,null,null,null,null,null,null,null,null,null,"Université_de_Strasbourg_Unistra","Civilisations, cultures et sociétés ",20180967,"Master"]
[null,null,null,null,null,null,null,null,null,null,null,null,null,null,null,null,null,null,null,null,null,null,null,null,null,"Université_de_Strasbourg_Unistra","Comptabilité - contrôle - audit",20180942,"Master"]
[null,null,null,null,null,null,null,null,null,null,null,null,null,null,null,null,null,null,null,null,null,null,null,null,null,"Université_de_Strasbourg_Unistra","Démographie",20180968,"Master"]
[null,null,null,null,null,null,null,null,null,null,null,null,null,null,null,null,null,null,null,null,null,null,null,null,null,"Université_de_Strasbourg_Unistra","Design ",20180932,"Master"]
[null,null,null,null,null,null,null,null,null,null,null,null,null,null,null,null,null,null,null,null,null,null,null,null,null,"Université_de_Strasbourg_Unistra","Didactique des langues ",20180933,"Master"]
[null,null,null,null,null,null,null,null,null,null,null,null,null,null,null,null,null,null,null,null,null,null,null,null,null,"Université_de_Strasbourg_Unistra","Droit ",20180943,"Master"]
[null,null,null,null,null,null,null,null,null,null,null,null,null,null,null,null,null,null,null,null,null,null,null,null,null,"Université_de_Strasbourg_Unistra","Droit canonique ",20180944,"Master"]
[null,null,null,null,null,null,null,null,null,null,null,null,null,null,null,null,null,null,null,null,null,null,null,null,null,"Université_de_Strasbourg_Unistra","Droit de la propriété intellectuelle ",20180946,"Master"]
[null,null,null,null,null,null,null,null,null,null,null,null,null,null,null,null,null,null,null,null,null,null,null,null,null,"Université_de_Strasbourg_Unistra","Droit de l'environnement et de l'urbanisme",20180945,"Master"]
[null,null,null,null,null,null,null,null,null,null,null,null,null,null,null,null,null,null,null,null,null,null,null,null,null,"Université_de_Strasbourg_Unistra","Droit des affaires",20180947,"Master"]
[null,null,null,null,null,null,null,null,null,null,null,null,null,null,null,null,null,null,null,null,null,null,null,null,null,"Université_de_Strasbourg_Unistra","Droit des libertés ",20180948,"Master"]
[null,null,null,null,null,null,null,null,null,null,null,null,null,null,null,null,null,null,null,null,null,null,null,null,null,"Université_de_Strasbourg_Unistra","Droit du patrimoine ",20180949,"Master"]
[null,null,null,null,null,null,null,null,null,null,null,null,null,null,null,null,null,null,null,null,null,null,null,null,null,"Université_de_Strasbourg_Unistra","Droit européen ",20180950,"Master"]
[null,null,null,null,null,null,null,null,null,null,null,null,null,null,null,null,null,null,null,null,null,null,null,null,null,"Université_de_Strasbourg_Unistra","Droit international ",20180951,"Master"]
[null,null,null,null,null,null,null,null,null,null,null,null,null,null,null,null,null,null,null,null,null,null,null,null,null,"Université_de_Strasbourg_Unistra","Droit notarial ",20180952,"Master"]
[null,null,null,null,null,null,null,null,null,null,null,null,null,null,null,null,null,null,null,null,null,null,null,null,null,"Université_de_Strasbourg_Unistra","Droit pénal et sciences criminelles ",20180955,"Master"]
[null,null,null,null,null,null,null,null,null,null,null,null,null,null,null,null,null,null,null,null,null,null,null,null,null,"Université_de_Strasbourg_Unistra","Droit privé ",20180953,"Master"]
[null,null,null,null,null,null,null,null,null,null,null,null,null,null,null,null,null,null,null,null,null,null,null,null,null,"Université_de_Strasbourg_Unistra","Droit public ",20180954,"Master"]
[null,null,null,null,null,null,null,null,null,null,null,null,null,null,null,null,null,null,null,null,null,null,null,null,null,"Université_de_Strasbourg_Unistra","Droit social ",20180956,"Master"]
[null,null,null,null,null,null,null,null,null,null,null,null,null,null,null,null,null,null,null,null,null,null,null,null,null,"Université_de_Strasbourg_Unistra","Epistémologie, histoire des sciences et des techniques",20180969,"Master"]
[null,null,null,null,null,null,null,null,null,null,null,null,null,null,null,null,null,null,null,null,null,null,null,null,null,"Université_de_Strasbourg_Unistra","Ethique ",20180970,"Master"]
[null,null,null,null,null,null,null,null,null,null,null,null,null,null,null,null,null,null,null,null,null,null,null,null,null,"Université_de_Strasbourg_Unistra","Ethnologie",20180971,"Master"]
[null,null,null,null,null,null,null,null,null,null,null,null,null,null,null,null,null,null,null,null,null,null,null,null,null,"Université_de_Strasbourg_Unistra","Études européennes et internationales",20181004,"Master"]
[null,null,null,null,null,null,null,null,null,null,null,null,null,null,null,null,null,null,null,null,null,null,null,null,null,"Université_de_Strasbourg_Unistra","Finance",20180957,"Master"]
[null,null,null,null,null,null,null,null,null,null,null,null,null,null,null,null,null,null,null,null,null,null,null,null,null,"Université_de_Strasbourg_Unistra","Génie industriel ",20180991,"Master"]
[null,null,null,null,null,null,null,null,null,null,null,null,null,null,null,null,null,null,null,null,null,null,null,null,null,"Université_de_Strasbourg_Unistra","Géographie, aménagement, environnement et développement",20180992,"Master"]
[null,null,null,null,null,null,null,null,null,null,null,null,null,null,null,null,null,null,null,null,null,null,null,null,null,"Université_de_Strasbourg_Unistra","Géomatique",20180993,"Master"]
[null,null,null,null,null,null,null,null,null,null,null,null,null,null,null,null,null,null,null,null,null,null,null,null,null,"Université_de_Strasbourg_Unistra","Gestion de production, logistique, achats",20180958,"Master"]
[null,null,null,null,null,null,null,null,null,null,null,null,null,null,null,null,null,null,null,null,null,null,null,null,null,"Université_de_Strasbourg_Unistra","Histoire ",20180972,"Master"]
[null,null,null,null,null,null,null,null,null,null,null,null,null,null,null,null,null,null,null,null,null,null,null,null,null,"Université_de_Strasbourg_Unistra","Histoire de l'art ",20180973,"Master"]
[null,null,null,null,null,null,null,null,null,null,null,null,null,null,null,null,null,null,null,null,null,null,null,null,null,"Université_de_Strasbourg_Unistra","Histoire du droit et des institutions ",20180959,"Master"]
[null,null,null,null,null,null,null,null,null,null,null,null,null,null,null,null,null,null,null,null,null,null,null,null,null,"Université_de_Strasbourg_Unistra","Informatique",20180994,"Master"]
[null,null,null,null,null,null,null,null,null,null,null,null,null,null,null,null,null,null,null,null,null,null,null,null,null,"Université_de_Strasbourg_Unistra","Innovation, entreprise et société ",20180974,"Master"]
[null,null,null,null,null,null,null,null,null,null,null,null,null,null,null,null,null,null,null,null,null,null,null,null,null,"Université_de_Strasbourg_Unistra","Journalisme",20181005,"Master"]
[null,null,null,null,null,null,null,null,null,null,null,null,null,null,null,null,null,null,null,null,null,null,null,null,null,"Université_de_Strasbourg_Unistra","Langues et sociétés ",20180934,"Master"]
[null,null,null,null,null,null,null,null,null,null,null,null,null,null,null,null,null,null,null,null,null,null,null,null,null,"Université_de_Strasbourg_Unistra","Langues, littératures et civilisations étrangères et régionales",20180935,"Master"]
[null,null,null,null,null,null,null,null,null,null,null,null,null,null,null,null,null,null,null,null,null,null,null,null,null,"Université_de_Strasbourg_Unistra","Lettres ",20180936,"Master"]
[null,null,null,null,null,null,null,null,null,null,null,null,null,null,null,null,null,null,null,null,null,null,null,null,null,"Université_de_Strasbourg_Unistra","Management ",20180960,"Master"]
[null,null,null,null,null,null,null,null,null,null,null,null,null,null,null,null,null,null,null,null,null,null,null,null,null,"Université_de_Strasbourg_Unistra","Management de l'innovation",20180961,"Master"]
[null,null,null,null,null,null,null,null,null,null,null,null,null,null,null,null,null,null,null,null,null,null,null,null,null,"Université_de_Strasbourg_Unistra","Management et administration des entreprises",20180962,"Master"]
[null,null,null,null,null,null,null,null,null,null,null,null,null,null,null,null,null,null,null,null,null,null,null,null,null,"Université_de_Strasbourg_Unistra","Management et commerce international",20180963,"Master"]
[null,null,null,null,null,null,null,null,null,null,null,null,null,null,null,null,null,null,null,null,null,null,null,null,null,"Université_de_Strasbourg_Unistra","Mathématiques et applications",20180995,"Master"]
[null,null,null,null,null,null,null,null,null,null,null,null,null,null,null,null,null,null,null,null,null,null,null,null,null,"Université_de_Strasbourg_Unistra","Mondes médiévaux ",20180975,"Master"]
[null,null,null,null,null,null,null,null,null,null,null,null,null,null,null,null,null,null,null,null,null,null,null,null,null,"Université_de_Strasbourg_Unistra","Monnaie, banque, finance, assurance ",20180964,"Master"]
[null,null,null,null,null,null,null,null,null,null,null,null,null,null,null,null,null,null,null,null,null,null,null,null,null,"Université_de_Strasbourg_Unistra","Musicologie ",20180937,"Master"]
[null,null,null,null,null,null,null,null,null,null,null,null,null,null,null,null,null,null,null,null,null,null,null,null,null,"Université_de_Strasbourg_Unistra","Optique, image, vision, multimédia",20180996,"Master"]
[null,null,null,null,null,null,null,null,null,null,null,null,null,null,null,null,null,null,null,null,null,null,null,null,null,"Université_de_Strasbourg_Unistra","Philosophie",20180976,"Master"]
[null,null,null,null,null,null,null,null,null,null,null,null,null,null,null,null,null,null,null,null,null,null,null,null,null,"Université_de_Strasbourg_Unistra","Physique",20180997,"Master"]
[null,null,null,null,null,null,null,null,null,null,null,null,null,null,null,null,null,null,null,null,null,null,null,null,null,"Université_de_Strasbourg_Unistra","Physique appliquée et ingénierie physique",20180998,"Master"]
[null,null,null,null,null,null,null,null,null,null,null,null,null,null,null,null,null,null,null,null,null,null,null,null,null,"Université_de_Strasbourg_Unistra","Psychologie ",20180977,"Master"]
[null,null,null,null,null,null,null,null,null,null,null,null,null,null,null,null,null,null,null,null,null,null,null,null,null,"Université_de_Strasbourg_Unistra","Psychologie : psychopathologie clinique psychanalytique",20180978,"Master"]
[null,null,null,null,null,null,null,null,null,null,null,null,null,null,null,null,null,null,null,null,null,null,null,null,null,"Université_de_Strasbourg_Unistra","Psychologie sociale, du travail et des organisations",20180979,"Master"]
[null,null,null,null,null,null,null,null,null,null,null,null,null,null,null,null,null,null,null,null,null,null,null,null,null,"Université_de_Strasbourg_Unistra","Qualité, hygiène, sécurité",20180965,"Master"]
[null,null,null,null,null,null,null,null,null,null,null,null,null,null,null,null,null,null,null,null,null,null,null,null,null,"Université_de_Strasbourg_Unistra","Relations internationales ",20180980,"Master"]
[null,null,null,null,null,null,null,null,null,null,null,null,null,null,null,null,null,null,null,null,null,null,null,null,null,"Université_de_Strasbourg_Unistra","Santé",20180999,"Master"]
[null,null,null,null,null,null,null,null,null,null,null,null,null,null,null,null,null,null,null,null,null,null,null,null,null,"Université_de_Strasbourg_Unistra","Science politique",20181006,"Master"]
[null,null,null,null,null,null,null,null,null,null,null,null,null,null,null,null,null,null,null,null,null,null,null,null,null,"Université_de_Strasbourg_Unistra","Sciences de la Terre et des planètes, environnement",20181000,"Master"]
[null,null,null,null,null,null,null,null,null,null,null,null,null,null,null,null,null,null,null,null,null,null,null,null,null,"Université_de_Strasbourg_Unistra","Sciences de l'éducation",20180981,"Master"]
[null,null,null,null,null,null,null,null,null,null,null,null,null,null,null,null,null,null,null,null,null,null,null,null,null,"Université_de_Strasbourg_Unistra","Sciences du langage",20200346,"Master"]
[null,null,null,null,null,null,null,null,null,null,null,null,null,null,null,null,null,null,null,null,null,null,null,null,null,"Université_de_Strasbourg_Unistra","Sciences du médicament et des produits de santé",20181001,"Master"]
[null,null,null,null,null,null,null,null,null,null,null,null,null,null,null,null,null,null,null,null,null,null,null,null,null,"Université_de_Strasbourg_Unistra","Sciences du vivant",20181002,"Master"]
[null,null,null,null,null,null,null,null,null,null,null,null,null,null,null,null,null,null,null,null,null,null,null,null,null,"Université_de_Strasbourg_Unistra","Sciences et génie des matériaux",20181003,"Master"]
[null,null,null,null,null,null,null,null,null,null,null,null,null,null,null,null,null,null,null,null,null,null,null,null,null,"Université_de_Strasbourg_Unistra","Sociologie ",20180983,"Master"]
[null,null,null,null,null,null,null,null,null,null,null,null,null,null,null,null,null,null,null,null,null,null,null,null,null,"Université_de_Strasbourg_Unistra","STAPS : activité physique adaptée et santé",20200347,"Master"]
[null,null,null,null,null,null,null,null,null,null,null,null,null,null,null,null,null,null,null,null,null,null,null,null,null,"Université_de_Strasbourg_Unistra","STAPS : entraînement et optimisation de la performance sportive",20200348,"Master"]
[null,null,null,null,null,null,null,null,null,null,null,null,null,null,null,null,null,null,null,null,null,null,null,null,null,"Université_de_Strasbourg_Unistra","Théologie catholique ",20180984,"Master"]
[null,null,null,null,null,null,null,null,null,null,null,null,null,null,null,null,null,null,null,null,null,null,null,null,null,"Université_de_Strasbourg_Unistra","Théologie protestante ",20180985,"Master"]
[null,null,null,null,null,null,null,null,null,null,null,null,null,null,null,null,null,null,null,null,null,null,null,null,null,"Université_de_Strasbourg_Unistra","Traduction et interprétation",20180938,"Master"]
[null,null,null,null,null,null,null,null,null,null,null,null,null,null,null,null,null,null,null,null,null,null,null,null,null,"Université_de_Strasbourg_Unistra","Urbanisme et aménagement",20180986,"Master"]
[null,null,null,null,null,null,null,null,null,null,null,null,null,null,null,null,null,null,null,null,null,null,null,null,1,"Université_de_technologie_de_Belfort_Montbéliard_UTBM","Management",20170400,"Master"]
[null,null,null,null,null,null,null,null,null,null,null,null,null,null,null,null,null,null,null,null,null,null,null,null,2,"Université_de_technologie_de_Troyes_UTT","Ingénierie des systèmes\ncomplexes",20180051,"Master"]
[null,null,null,null,null,null,null,null,null,null,null,null,null,null,null,null,null,null,null,null,null,null,null,null,null,"Université_de_technologie_de_Troyes_UTT","Risques et environnement",20180052,"Master"]
[null,null,null,null,null,null,null,null,null,null,null,null,null,null,null,null,null,null,null,null,null,null,null,null,{"$f":"COUNTA(Z577:Z599)","v":23},"Université_de_Toulon","Chimie et sciences des matériaux",20180686,"Master"]
[null,null,null,null,null,null,null,null,null,null,null,null,null,null,null,null,null,null,null,null,null,null,null,null,null,"Université_de_Toulon","Civilisations, cultures et sociétés",20180672,"Master"]
[null,null,null,null,null,null,null,null,null,null,null,null,null,null,null,null,null,null,null,null,null,null,null,null,null,"Université_de_Toulon","Création numérique",20180685,"Master"]
[null,null,null,null,null,null,null,null,null,null,null,null,null,null,null,null,null,null,null,null,null,null,null,null,null,"Université_de_Toulon","Droit des affaires",20180675,"Master"]
[null,null,null,null,null,null,null,null,null,null,null,null,null,null,null,null,null,null,null,null,null,null,null,null,null,"Université_de_Toulon","Droit notarial",20180676,"Master"]
[null,null,null,null,null,null,null,null,null,null,null,null,null,null,null,null,null,null,null,null,null,null,null,null,null,"Université_de_Toulon","Droit public",20180677,"Master"]
[null,null,null,null,null,null,null,null,null,null,null,null,null,null,null,null,null,null,null,null,null,null,null,null,null,"Université_de_Toulon","Droit social",20180678,"Master"]
[null,null,null,null,null,null,null,null,null,null,null,null,null,null,null,null,null,null,null,null,null,null,null,null,null,"Université_de_Toulon","Economie du développement",20180679,"Master"]
[null,null,null,null,null,null,null,null,null,null,null,null,null,null,null,null,null,null,null,null,null,null,null,null,null,"Université_de_Toulon","Finance",20180680,"Master"]
[null,null,null,null,null,null,null,null,null,null,null,null,null,null,null,null,null,null,null,null,null,null,null,null,null,"Université_de_Toulon","Information, communication",20080977,"Master"]
[null,null,null,null,null,null,null,null,null,null,null,null,null,null,null,null,null,null,null,null,null,null,null,null,null,"Université_de_Toulon","Informatique",20180687,"Master"]
[null,null,null,null,null,null,null,null,null,null,null,null,null,null,null,null,null,null,null,null,null,null,null,null,null,"Université_de_Toulon","Ingénierie des systèmes complexes",20180688,"Master"]
[null,null,null,null,null,null,null,null,null,null,null,null,null,null,null,null,null,null,null,null,null,null,null,null,null,"Université_de_Toulon","Justice, procès et procédures",20180681,"Master"]
[null,null,null,null,null,null,null,null,null,null,null,null,null,null,null,null,null,null,null,null,null,null,null,null,null,"Université_de_Toulon","Langues et sociétés",20180673,"Master"]
[null,null,null,null,null,null,null,null,null,null,null,null,null,null,null,null,null,null,null,null,null,null,null,null,null,"Université_de_Toulon","Lettres et Humanités",20180674,"Master"]
[null,null,null,null,null,null,null,null,null,null,null,null,null,null,null,null,null,null,null,null,null,null,null,null,null,"Université_de_Toulon","Management",20180682,"Master"]
[null,null,null,null,null,null,null,null,null,null,null,null,null,null,null,null,null,null,null,null,null,null,null,null,null,"Université_de_Toulon","Management et administration des entreprises",20180683,"Master"]
[null,null,null,null,null,null,null,null,null,null,null,null,null,null,null,null,null,null,null,null,null,null,null,null,null,"Université_de_Toulon","Marketing, vente",20180684,"Master"]
[null,null,null,null,null,null,null,null,null,null,null,null,null,null,null,null,null,null,null,null,null,null,null,null,null,"Université_de_Toulon","Mathématiques et applications ",20180689,"Master"]
[null,null,null,null,null,null,null,null,null,null,null,null,null,null,null,null,null,null,null,null,null,null,null,null,null,"Université_de_Toulon","Monnaie, banque, finance, assurance",20151137,"Master"]
[null,null,null,null,null,null,null,null,null,null,null,null,null,null,null,null,null,null,null,null,null,null,null,null,null,"Université_de_Toulon","Sciences de la mer",20180690,"Master"]
[null,null,null,null,null,null,null,null,null,null,null,null,null,null,null,null,null,null,null,null,null,null,null,null,null,"Université_de_Toulon","STAPS : entraînement et optimisation de la performance sportive",20180671,"Master"]
[null,null,null,null,null,null,null,null,null,null,null,null,null,null,null,null,null,null,null,null,null,null,null,null,null,"Université_de_Toulon","Tourisme",20120365,"Master"]
[null,null,null,null,null,null,null,null,null,null,null,null,null,null,null,null,null,null,null,null,null,null,null,null,{"$f":"COUNTA(Z600:Z645)","v":46},"Université_de_Tours","Diplôme de formation approfondie en sciences médicales (DFASM)","NOACCRR2C_43","DFA"]
[null,null,null,null,null,null,null,null,null,null,null,null,null,null,null,null,null,null,null,null,null,null,null,null,null,"Université_de_Tours","Diplôme de formation approfondie en sciences pharmaceutiques (DFASP)","NOACCRR2C_44","DFA"]
[null,null,null,null,null,null,null,null,null,null,null,null,null,null,null,null,null,null,null,null,null,null,null,null,null,"Université_de_Tours","Diplôme d’État d’infirmier en pratique avancée (IPA)","NOACCRR2C_45","Diplôme d'État"]
[null,null,null,null,null,null,null,null,null,null,null,null,null,null,null,null,null,null,null,null,null,null,null,null,null,"Université_de_Tours","Diplôme d'État de sage-femme","NOACCRR2C_46","Diplôme d'État"]
[null,null,null,null,null,null,null,null,null,null,null,null,null,null,null,null,null,null,null,null,null,null,null,null,null,"Université_de_Tours","Arts, lettres et civilisations",20080696,"Master"]
[null,null,null,null,null,null,null,null,null,null,null,null,null,null,null,null,null,null,null,null,null,null,null,null,null,"Université_de_Tours","Biodiversité, écologie et évolution",20180853,"Master"]
[null,null,null,null,null,null,null,null,null,null,null,null,null,null,null,null,null,null,null,null,null,null,null,null,null,"Université_de_Tours","Biologie, agrosciences",20180854,"Master"]
[null,null,null,null,null,null,null,null,null,null,null,null,null,null,null,null,null,null,null,null,null,null,null,null,null,"Université_de_Tours","Biologie-santé",20180843,"Master"]
[null,null,null,null,null,null,null,null,null,null,null,null,null,null,null,null,null,null,null,null,null,null,null,null,null,"Université_de_Tours","Chimie et sciences des matériaux",20180855,"Master"]
[null,null,null,null,null,null,null,null,null,null,null,null,null,null,null,null,null,null,null,null,null,null,null,null,null,"Université_de_Tours","Contrôle de gestion et audit organisationnel ",20180829,"Master"]
[null,null,null,null,null,null,null,null,null,null,null,null,null,null,null,null,null,null,null,null,null,null,null,null,null,"Université_de_Tours","Droit de la santé ",20180832,"Master"]
[null,null,null,null,null,null,null,null,null,null,null,null,null,null,null,null,null,null,null,null,null,null,null,null,null,"Université_de_Tours","Droit de l'entreprise",20180830,"Master"]
[null,null,null,null,null,null,null,null,null,null,null,null,null,null,null,null,null,null,null,null,null,null,null,null,null,"Université_de_Tours","Droit de l'environnement et de l'urbanisme",20180831,"Master"]
[null,null,null,null,null,null,null,null,null,null,null,null,null,null,null,null,null,null,null,null,null,null,null,null,null,"Université_de_Tours","Droit du patrimoine",20180833,"Master"]
[null,null,null,null,null,null,null,null,null,null,null,null,null,null,null,null,null,null,null,null,null,null,null,null,null,"Université_de_Tours","Droit européen ",20180834,"Master"]
[null,null,null,null,null,null,null,null,null,null,null,null,null,null,null,null,null,null,null,null,null,null,null,null,null,"Université_de_Tours","Droit international",20180835,"Master"]
[null,null,null,null,null,null,null,null,null,null,null,null,null,null,null,null,null,null,null,null,null,null,null,null,null,"Université_de_Tours","Droit public",20180836,"Master"]
[null,null,null,null,null,null,null,null,null,null,null,null,null,null,null,null,null,null,null,null,null,null,null,null,null,"Université_de_Tours","Economie de l'entreprise et des marchés",20080706,"Master"]
[null,null,null,null,null,null,null,null,null,null,null,null,null,null,null,null,null,null,null,null,null,null,null,null,null,"Université_de_Tours","Finance",20180837,"Master"]
[null,null,null,null,null,null,null,null,null,null,null,null,null,null,null,null,null,null,null,null,null,null,null,null,null,"Université_de_Tours","Français langue étrangère",20080699,"Master"]
[null,null,null,null,null,null,null,null,null,null,null,null,null,null,null,null,null,null,null,null,null,null,null,null,null,"Université_de_Tours","Géographie, aménagement, environnement et développement",20180844,"Master"]
[null,null,null,null,null,null,null,null,null,null,null,null,null,null,null,null,null,null,null,null,null,null,null,null,null,"Université_de_Tours","Gestion des ressources humaines",20180838,"Master"]
[null,null,null,null,null,null,null,null,null,null,null,null,null,null,null,null,null,null,null,null,null,null,null,null,null,"Université_de_Tours","Histoire",20180845,"Master"]
[null,null,null,null,null,null,null,null,null,null,null,null,null,null,null,null,null,null,null,null,null,null,null,null,null,"Université_de_Tours","Histoire de l'art",20180846,"Master"]
[null,null,null,null,null,null,null,null,null,null,null,null,null,null,null,null,null,null,null,null,null,null,null,null,null,"Université_de_Tours","Histoire, civilisations, patrimoine",20180847,"Master"]
[null,null,null,null,null,null,null,null,null,null,null,null,null,null,null,null,null,null,null,null,null,null,null,null,null,"Université_de_Tours","Humanités numériques",20180848,"Master"]
[null,null,null,null,null,null,null,null,null,null,null,null,null,null,null,null,null,null,null,null,null,null,null,null,null,"Université_de_Tours","Journalisme",20180824,"Master"]
[null,null,null,null,null,null,null,null,null,null,null,null,null,null,null,null,null,null,null,null,null,null,null,null,null,"Université_de_Tours","Justice, procès et procédures",20180839,"Master"]
[null,null,null,null,null,null,null,null,null,null,null,null,null,null,null,null,null,null,null,null,null,null,null,null,null,"Université_de_Tours","Langues et société",20180825,"Master"]
[null,null,null,null,null,null,null,null,null,null,null,null,null,null,null,null,null,null,null,null,null,null,null,null,null,"Université_de_Tours","Langues étrangères appliquées",20180826,"Master"]
[null,null,null,null,null,null,null,null,null,null,null,null,null,null,null,null,null,null,null,null,null,null,null,null,null,"Université_de_Tours","Langues, littératures et civilisations étrangères et régionales",20180827,"Master"]
[null,null,null,null,null,null,null,null,null,null,null,null,null,null,null,null,null,null,null,null,null,null,null,null,null,"Université_de_Tours","lnfonmatique",20180856,"Master"]
[null,null,null,null,null,null,null,null,null,null,null,null,null,null,null,null,null,null,null,null,null,null,null,null,null,"Université_de_Tours","Management des PME-PMI",20180840,"Master"]
[null,null,null,null,null,null,null,null,null,null,null,null,null,null,null,null,null,null,null,null,null,null,null,null,null,"Université_de_Tours","Management et administration des entreprises",20180841,"Master"]
[null,null,null,null,null,null,null,null,null,null,null,null,null,null,null,null,null,null,null,null,null,null,null,null,null,"Université_de_Tours","Marketing, vente",20180842,"Master"]
[null,null,null,null,null,null,null,null,null,null,null,null,null,null,null,null,null,null,null,null,null,null,null,null,null,"Université_de_Tours","Mathématiques",20180857,"Master"]
[null,null,null,null,null,null,null,null,null,null,null,null,null,null,null,null,null,null,null,null,null,null,null,null,null,"Université_de_Tours","Philosophie",20180849,"Master"]
[null,null,null,null,null,null,null,null,null,null,null,null,null,null,null,null,null,null,null,null,null,null,null,null,null,"Université_de_Tours","Physique fondamentale et applications",20180771,"Master"]
[null,null,null,null,null,null,null,null,null,null,null,null,null,null,null,null,null,null,null,null,null,null,null,null,null,"Université_de_Tours","Psychologie",20180858,"Master"]
[null,null,null,null,null,null,null,null,null,null,null,null,null,null,null,null,null,null,null,null,null,null,null,null,null,"Université_de_Tours","Santé publique",20180859,"Master"]
[null,null,null,null,null,null,null,null,null,null,null,null,null,null,null,null,null,null,null,null,null,null,null,null,null,"Université_de_Tours","Sciences de l'eau",20180860,"Master"]
[null,null,null,null,null,null,null,null,null,null,null,null,null,null,null,null,null,null,null,null,null,null,null,null,null,"Université_de_Tours","Sciences de l'éducation",20180850,"Master"]
[null,null,null,null,null,null,null,null,null,null,null,null,null,null,null,null,null,null,null,null,null,null,null,null,null,"Université_de_Tours","Sciences du langage",20180828,"Master"]
[null,null,null,null,null,null,null,null,null,null,null,null,null,null,null,null,null,null,null,null,null,null,null,null,null,"Université_de_Tours","Sciences du vivant",20180861,"Master"]
[null,null,null,null,null,null,null,null,null,null,null,null,null,null,null,null,null,null,null,null,null,null,null,null,null,"Université_de_Tours","Sociologie",20180851,"Master"]
[null,null,null,null,null,null,null,null,null,null,null,null,null,null,null,null,null,null,null,null,null,null,null,null,null,"Université_de_Tours","Urbanisme et amenagement",20180852,"Master"]